Workbook

Sheet はじめに
A1: 一般請求書ＥＸＣＥＬ版をご使用になる前に
B3: １．本ソフトはMicrosoftExcel 2021 、2024、Microsoft365で動作が確認済みです。 以前のバージョーンでは正常に動作しない場合があります。
B7: ２．本ソフトを起動する前にExcelでマクロを有効にして下さい。
C9: ① MicrosoftExcel 2021 、2024、Microsoft365の設定
D10: Excel起動後保護ビューのメッセージが表示されたら、編集を有効にするをクリックします。
D33: セキュリティの警告が表示されたら、コンテンツの有効化をクリックします。
E57: 以上で使用可能となります。
E58: もし、コンテンツの有効化を行っても使用できない場合は以下の手順を行ってください。
B63: ３．“セキュリティリスクこのファイルのソースが信頼できないため、Microsoftによりマクロの実行がブロック
C64: されました”と警告が発生する場合の対処法
C73: ①ダウンロードした請求書（EXCEL）”の保存場所（ダウンロードフォルダ）を開き、対象ファイルを
D74: 右クリックし”プロパティ”を選択する。
C98: ②「全般」タブのセキュリティ：このファイルは…の「許可する」にチェックを入れ、「適用」ボタンを
E99: クリック後に「OK」ボタンをクリックする。
D124: ③許可設定した請求書（EXCEL）を開くと、セキュリティリスク警告が解消される。
B127: ４．“コンテンツの有効化”を実行しても請求書作成ボタンを押せない（反応しない）場合の対処法
C128: ① EXCELのファイルからオプションをクリックする。
C148: ② EXCELのオプションからトラストセンターを選択し、トラストセンターの設定ボタンをクリックする。
C166: ③ トラストセンターでActiveXの設定を選択し、”先に確認メッセージを表示してから、最低限の制限を
D167: 適用してすべてのコントロールを有効にする”にチェックをし”OK”ボタンをクリックする。
C187: ④ Excelを上書き保存し、再度、請求書（EXCEL）を開くと請求書作成ボタンを押す事ができる。
D188: ※使用後は元の状態（すべてのコントロールを無効）に戻す事を推奨します。

Sheet 操作方法
B2: 一般請求書の「Ｅｘｃｅｌ」での作成手順
B7: ① | C7: 「基本情報シート…１.取引先情報」の登録 | K7: 取引先コード・会社名・振込銀行・前月請求額等の情報登録
B14: ② | C14: 「基本情報シート…2.消費税情報」の登録 | K14: 消費税率・消費税丸め・税端数処理区分・登録番号の登録
B21: ③ | C21: 「基本情報シート…3.工事名称マスター」の登録 | K21: 工事名称(略称)・作業所長名の登録
B28: ④ | C28: 「明細情報シート…4.請求明細情報」の登録 | K28: 納入年月日・品名規格・数量・単価・備考の登録
B34: ⑤ | C34: 「基本情報シート…5.請求書作成ボタン」をクリック
K35: ①～④で登録した情報により「管理表/請求書」を作成
C36: 「管理表/請求書」のシートが自動作成されます
B43: ⑥ | C43: 「管理表/請求書の印刷」 | K43: ⑤で作成した「管理表/請求書」を印刷
A48: ①【基本情報の登録】 | E48: シートは、月別に原本のシートから利用し、新規の工事登録から実行する方法にて活用お願いします。
A50: １．「基本情報」シートを選択します。
A52: ２．背景色が水色のセルに、管理表となる情報を入力します。
A85: ※工事名称(略称)は「工事名称マスタ」の欄に最大60工事まで入力可能です。
A87: ※当月請求が発生しない工事は「工事名称マスタ」に登録しないでください。
A89: ※背景色が色塗りされている箇所のみ入力又はリストボックスより選択ができます。
A90: その他部分は入力・削除等は出来ません。
A93: ②【明細情報の登録】
A95: １．「明細情報」シートを選択します。
A97: ２．背景色が黄色のセルに、請求明細の情報を入力します。
B99: ※背景色が白色のセルには計算式がありますので入力は不要です。
A137: ※工事名称は「基本情報」シートに登録済みのもののみ入力可能です。
A140: ③【管理表／請求書の作成】
A142: １．基本情報と明細情報を登録後に「請求書作成」ボタンをクリックすると
B144: 「管理表」と「請求書」の提出用が自動的に作成されます。
A183: ※明細情報等を変更後に再度「請求書作成」ボタンを押すことで、請求書の再作成が可能です。
A187: ④【管理表／請求書の印刷】
A190: １．作成された管理表と請求書の内容を確認し、
A192: 内容に問題がなければ必要部数印刷してください。
B194: ･管理表(一般用)
T198: ･管理表(一般用) … １枚
T201: 但し、１回の請求で２０工事を超過する場合は、
T203: 管理表の枚数は２枚以上作成されます。
U205: MAX.６０工事の時は３枚作成します。
K208: 提出用
T219: 貴社→経理(控)
B235: ･請求書(一般用)
T237: ･請求書 ← １工事につき２枚で１セットです
T239: 但し、１５明細を超える場合、請求書は
T241: 次ページに作成されます。
T257: 貴社→請求書(添付)→経理(控)
T259: 貴社→請求書(添付)→経理→作業所長(控)
T261: 注意、必ず２枚提出お願いします！

Sheet 基本情報
H1: VER:2025/07/01A
B2: 1,取引先情報 | G2: 入力要件 | O2: ※凡例
B3: 取引先コード(6桁) | C3: 999999 | G3: ・６桁の取引先コード | Q3: ←固定項目
B4: 社名 | C4: (株）○○建設 | G4: ・会社名
B5: 住所 | C5: 酒田市○○○○１－１ | G5: ・全角１５文字 | Q5: ←変動項目
B6: 電話番号 | C6: 0234 - 00 - 0000 | Q6: （毎月入力）
B7: 請求締日 | C7: 2023-01-31 | G7: ・弊社の請求締日 | Q7: ←入力不要項目
B8: 振込銀行コード(4桁) | C8: 121 | G8: ・全銀協の金融機関コード４桁 | Q8: （自動計算）
B9: 振込銀行名 | C9: 荘内 | G9: ・銀行名 … 例、きらやか銀行の場合「きらやか」
B10: 振込支店コード(3桁) | C10: 133 | G10: ・支店コード … ３桁
B11: 振込支店名 | C11: 若竹町 | G11: ・支店名 … 例、酒田支店の場合「酒田」
B12: 当座/普通 | C12: 当 座 | G12: ・当座か普通かをリストボックスより選択
B13: 口座番号 | C13: 1234567 | G13: ・入金用の口座番号 … ７桁
B14: 口座名義/漢字 | C14: (株）○○建設 | G14: ・口座名義/漢字 … 通帳のご名義(漢字)
B15: 口座名義/カナ | C15: ｶ)ﾏﾙﾏﾙｹﾝｾﾂ | G15: ・口座名義/カナ … 通帳のご名義(カナ)
B16: 前月請求額 | C16: 0 | F16: A | G16: ・前月請求額
B17: 入金額 | C17: 0 | F17: B | G17: ・入金額 … 振込手数料も含む入金額
B18: 値引額 | C18: 0 | F18: C | G18: ・値引額 … 御社が値引された場合の金額
B19: 繰越金額 | C19: =C16-C17-C18 -> 0 | F19: D | G19: ・繰越金額 … 自動計算 (D=A-B-C)
B22: 2.消費税情報
B23: 適格請求書事業者登録 | C23: 有 | G23: ・適格請求書事業者登録状況を、有・無の別をリストボックより選択。 有の場合は、Tからはじまる事業者登録番号を入力。
B24: 事業者登録番号 | C24: T1-2345-6789-0123
B25: 消費税率 | C25: 0.1 | G25: ・消費税率 … １％きざみで変更可能
B26: 税端数丸め単位 | C26: 1 | G26: ･消費税の丸め単位 … \1･\10･\100･\1,000の別をリストボックスより選択
B27: 税端数処理区分 | C27: 四捨五入 | G27: ･端数処理区分 … 切捨て・四捨五入・切上げをリストボックスより選択
E29: 入力不要 （明細情報登録データを自動表示）
B30: 3. 工事名称マスタ
B31: 工事名称 (略称) (全角１７文字) | D31: 作業所長名 | E31: 課税金額 | F31: 非課税金額 | G31: 消費税額 | H31: 合計金額
B32: ○○○○○工事 | D32: 〇太郎 | E32: =SUMIF(請求明細_工事場所,B32,請求明細_課税金額) -> 350300 | F32: =SUMIF(請求明細_工事場所,B32,請求明細_非課税金額) -> 321 | G32: =IF(基本情報_税端数処理方法="切り捨て", ROUNDDOWN(E32*基本情報_消費税率,-LEN(基本情報_税端数丸め)+1), 0) + IF(基本情報_税端数処理方法="四捨五入",ROUND(E32*基本情報_消費税率,-LEN(基本情報_税端数丸め)+1),0) + IF(基本情報_税端数処理方法="切り上げ", ROUNDUP(E32*基本情報_消費税率,-LEN(基本情報_税端数丸め)+1), 0) -> 35030 | H32: =E32+G32+F32 -> 385651 | N32: ・工事名称 … 作業所長より略称を確認した後に登録
A33: 1 | B33: ×××××工事 | D33: ×次郎 | E33: =SUMIF(請求明細_工事場所,B33,請求明細_課税金額) -> 475000 | F33: =SUMIF(請求明細_工事場所,B33,請求明細_非課税金額) -> 0 | G33: 47500 | H33: =E33+G33+F33 -> 522500 | N33: ・作業所長名 ･･･ 当該工事の担当作業所長名を登録
A34: 2 | E34: =SUMIF(請求明細_工事場所,B34,請求明細_課税金額) -> 0 | F34: 0 | G34: 0 | H34: 0 | N34: ・課税金額 … 明細情報の課税金額を自動計算
A35: 3 | E35: 0 | F35: 0 | G35: 0 | H35: 0 | N35: ・非課税金額 … 軽油税等消費税が課税されない金額
A36: 4 | E36: 0 | F36: 0 | G36: 0 | H36: 0 | N36: （不課税金額） を明細情報より自動計算
A37: 5 | E37: 0 | F37: 0 | G37: 0 | H37: 0 | N37: ・合計金額 … 課税金額＋非課税金額＋消費税額
A38: 6 | E38: 0 | F38: 0 | G38: 0 | H38: 0 | N38: を自動計算
A39: 7 | E39: 0 | F39: 0 | G39: 0 | H39: 0 | N39: ※ 登録工事名称は最大６０工事まで登録可能です
A40: 8 | E40: 0 | F40: 0 | G40: 0 | H40: 0
A41: 9 | E41: 0 | F41: 0 | G41: 0 | H41: 0
A42: 10 | E42: 0 | F42: 0 | G42: 0 | H42: 0
A43: 11 | E43: 0 | F43: 0 | G43: 0 | H43: 0
A44: 12 | E44: 0 | F44: 0 | G44: 0 | H44: 0
A45: 13 | E45: 0 | F45: 0 | G45: 0 | H45: 0
A46: 14 | E46: 0 | F46: 0 | G46: 0 | H46: 0
A47: 15 | E47: 0 | F47: 0 | G47: 0 | H47: 0
A48: 16 | E48: 0 | F48: 0 | G48: 0 | H48: 0
A49: 17 | E49: 0 | F49: 0 | G49: 0 | H49: 0
A50: 18 | E50: 0 | F50: 0 | G50: 0 | H50: 0
A51: 19 | E51: 0 | F51: 0 | G51: 0 | H51: 0 | I51: １ページ目 | J51: =COUNTA(B32:C51) -> 2
A52: 20 | E52: 0 | F52: 0 | G52: 0 | H52: 0 | I52: =SUM(E32:F51) -> 825621 | J52: =SUM(G32:G51) -> 82530 | K52: =SUM(H32:H51) -> 908151
A53: 21 | E53: 0 | F53: 0 | G53: 0 | H53: 0
A54: 22 | E54: 0 | F54: 0 | G54: 0 | H54: 0
A55: 23 | E55: 0 | F55: 0 | G55: 0 | H55: 0
A56: 24 | E56: 0 | F56: 0 | G56: 0 | H56: 0
A57: 25 | E57: 0 | F57: 0 | G57: 0 | H57: 0
A58: 26 | E58: 0 | F58: 0 | G58: 0 | H58: 0
A59: 27 | E59: 0 | F59: 0 | G59: 0 | H59: 0
A60: 28 | E60: 0 | F60: 0 | G60: 0 | H60: 0
A61: 29 | E61: 0 | F61: 0 | G61: 0 | H61: 0
A62: 30 | E62: 0 | F62: 0 | G62: 0 | H62: 0
A63: 31 | E63: 0 | F63: 0 | G63: 0 | H63: 0
A64: 32 | E64: =SUMIF(請求明細_工事場所,B64,請求明細_課税金額) -> 0 | F64: =SUMIF(請求明細_工事場所,B64,請求明細_非課税金額) -> 0 | G64: =IF(基本情報_税端数処理方法="切り捨て", ROUNDDOWN(E64*基本情報_消費税率,-LEN(基本情報_税端数丸め)+1), 0) + IF(基本情報_税端数処理方法="四捨五入",ROUND(E64*基本情報_消費税率,-LEN(基本情報_税端数丸め)+1),0) + IF(基本情報_税端数処理方法="切り上げ", ROUNDUP(E64*基本情報_消費税率,-LEN(基本情報_税端数丸め)+1), 0) -> 0 | H64: 0
A65: 33 | E65: 0 | F65: 0 | G65: 0 | H65: 0
A66: 34 | E66: 0 | F66: 0 | G66: 0 | H66: 0
A67: 35 | E67: 0 | F67: 0 | G67: 0 | H67: 0
A68: 36 | E68: 0 | F68: 0 | G68: 0 | H68: 0
A69: 37 | E69: 0 | F69: 0 | G69: 0 | H69: 0
A70: 38 | E70: 0 | F70: 0 | G70: 0 | H70: 0
A71: 39 | E71: 0 | F71: 0 | G71: 0 | H71: 0 | I71: 2ページ目 | J71: =COUNTA(B52:C71) -> 0
A72: 40 | E72: 0 | F72: 0 | G72: 0 | H72: 0 | I72: =SUM(E52:F71) -> 0 | J72: =SUM(G52:G71) -> 0 | K72: =SUM(H52:H71) -> 0
A73: 41 | E73: 0 | F73: 0 | G73: 0 | H73: 0
A74: 42 | E74: 0 | F74: 0 | G74: 0 | H74: 0
A75: 43 | E75: 0 | F75: 0 | G75: 0 | H75: 0
A76: 44 | E76: 0 | F76: 0 | G76: 0 | H76: 0
A77: 45 | E77: 0 | F77: 0 | G77: 0 | H77: 0
A78: 46 | E78: 0 | F78: 0 | G78: 0 | H78: 0
A79: 47 | E79: 0 | F79: 0 | G79: 0 | H79: 0
A80: 48 | E80: 0 | F80: 0 | G80: 0 | H80: 0
A81: 49 | E81: 0 | F81: 0 | G81: 0 | H81: 0
A82: 50 | E82: 0 | F82: 0 | G82: 0 | H82: 0
A83: 51 | E83: 0 | F83: 0 | G83: 0 | H83: 0
A84: 52 | E84: 0 | F84: 0 | G84: 0 | H84: 0
A85: 53 | E85: 0 | F85: 0 | G85: 0 | H85: 0
A86: 54 | E86: 0 | F86: 0 | G86: 0 | H86: 0
A87: 55 | E87: 0 | F87: 0 | G87: 0 | H87: 0
A88: 56 | E88: 0 | F88: 0 | G88: 0 | H88: 0
A89: 57 | E89: 0 | F89: 0 | G89: 0 | H89: 0
A90: 58 | E90: 0 | F90: 0 | G90: 0 | H90: 0
A91: 59 | E91: 0 | F91: 0 | G91: 0 | H91: 0 | I91: 3ページ目 | J91: =COUNTA(B72:C91) -> 0
A92: 60 | B92: 合計金額 | E92: =SUM(E32:E91) -> 825300 | F92: =SUM(F32:F91) -> 321 | G92: =SUM(G32:G91) -> 82530 | H92: =SUM(H32:H91) -> 908151 | I92: =SUM(E72:F91) -> 0 | J92: =SUM(G72:G91) -> 0 | K92: =SUM(H72:H91) -> 0
I93: =基本情報_合計税込金額+基本情報_繰越金額 -> 908151

Sheet 明細情報
A2: 4.請求明細情報
A3: 通番 | B3: 工事名称 | C3: 納入年月日 | D3: 品 名 ・ 規 格 | E3: 数 量 | F3: 単位 | G3: 単 価 | H3: 税区分 | I3: 金 額 （自動計算） | J3: 備考（自由入力） | O3: 入力要件
L4: 課税 | M4: 非課税 | N4: =IF(基本情報!B32="","",基本情報!B32) -> ○○○○○工事
A5: 1 | B5: ○○○○○工事 | C5: 2023-01-10 | D5: 〇〇材料 | E5: 50 | F5: 個 | G5: 5000 | I5: =ROUND(ROUND(E5,2)*ROUND(G5,2),0) -> 250000 | L5: =IF($H5<>"非課税",$I5,0) -> 250000 | M5: =IF($H5="非課税",$I5,0) -> 0 | N5: =IF(基本情報!B33="","",基本情報!B33) -> ×××××工事 | O5: ・工事名称 … 基本情報シートに登録した工事をリストボックスから選択
A6: =A5+1 -> 2 | B6: ×××××工事 | C6: 2023-01-13 | D6: 〇〇材料 | E6: 50 | F6: 個 | G6: 5000 | I6: 250000 | L6: 250000 | M6: 0 | N6: =IF(基本情報!B34="","",基本情報!B34) ->  | O6: ・納入年月日 … 西暦の年月日 例、2008/06/30 か 06/30で2008/06/30と編集します
A7: 3 | B7: ×××××工事 | C7: 2023-01-13 | D7: 労務費 | E7: 25 | F7: 人 | G7: 10000 | I7: 250000 | L7: 250000 | M7: 0 | N7: =IF(基本情報!B35="","",基本情報!B35) ->  | O7: ・品名規格 … 全角１７文字
A8: 4 | B8: ○○○○○工事 | C8: 2023-01-20 | D8: 機械損科 | E8: 10 | F8: 日 | G8: 10000 | I8: 100000 | L8: 100000 | M8: 0 | N8: =IF(基本情報!B36="","",基本情報!B36) ->  | O8: ・数量 … 小数点以下第２位まで
A9: 5 | B9: ○○○○○工事 | C9: 2023-01-20 | D9: 軽油 | E9: 10 | F9: L | G9: 30 | I9: 300 | L9: 300 | M9: 0 | N9: =IF(基本情報!B37="","",基本情報!B37) ->  | O9: ・単位 … 全角３文字
A10: 6 | B10: ○○○○○工事 | C10: 2023-01-20 | D10: 軽油税 | E10: 10 | G10: 32.1 | H10: 非課税 | I10: 321 | L10: 0 | M10: 321 | N10: =IF(基本情報!B38="","",基本情報!B38) ->  | O10: ・単価 … 小数点以下第２位まで
A11: 7 | B11: ×××××工事 | C11: 2023-01-31 | D11: 値引き | E11: -1 | F11: 式 | G11: 25000 | I11: =ROUND(ROUND(E11,2)*ROUND(G11,2),0) -> -25000 | L11: -25000 | M11: 0 | N11: =IF(基本情報!B39="","",基本情報!B39) ->  | O11: ・税区分 … 課税・非課税の別をリストボックスより選択
A12: 8 | I12: 0 | L12: 0 | M12: 0 | N12: =IF(基本情報!B40="","",基本情報!B40) ->  | O12: ・税区分 … 課税・非課税を選択しない場合は、税区分が課税と判断され計算されます
A13: 9 | I13: 0 | L13: 0 | M13: 0 | N13: =IF(基本情報!B41="","",基本情報!B41) ->  | O13: ・金額 … 数量×単価 を自動計算 (有効桁数９桁)
A14: 10 | I14: 0 | L14: 0 | M14: 0 | N14: =IF(基本情報!B42="","",基本情報!B42) ->  | O14: ・備考 … 全角１６文字 (注文ＮＯ含む)
A15: 11 | I15: 0 | L15: 0 | M15: 0 | N15: =IF(基本情報!B43="","",基本情報!B43) -> 
A16: 12 | I16: 0 | L16: 0 | M16: 0 | N16: =IF(基本情報!B44="","",基本情報!B44) ->  | O16: 注意
A17: 13 | I17: 0 | L17: 0 | M17: 0 | N17: =IF(基本情報!B45="","",基本情報!B45) ->  | O17: 1.工事は、昇順でなくても自動で集計されます
A18: 14 | I18: 0 | L18: 0 | M18: 0 | N18: =IF(基本情報!B46="","",基本情報!B46) ->  | O18: 2.１ヶ月分の総明細数は、最大300明細です
A19: 15 | I19: 0 | L19: 0 | M19: 0 | N19: =IF(基本情報!B47="","",基本情報!B47) -> 
A20: 16 | I20: 0 | L20: 0 | M20: 0 | N20: =IF(基本情報!B48="","",基本情報!B48) -> 
A21: 17 | I21: 0 | L21: 0 | M21: 0 | N21: =IF(基本情報!B49="","",基本情報!B49) -> 
A22: 18 | I22: 0 | L22: 0 | M22: 0 | N22: =IF(基本情報!B50="","",基本情報!B50) -> 
A23: 19 | I23: 0 | L23: 0 | M23: 0 | N23: =IF(基本情報!B51="","",基本情報!B51) -> 
A24: 20 | I24: 0 | L24: 0 | M24: 0 | N24: =IF(基本情報!B52="","",基本情報!B52) -> 
A25: 21 | I25: 0 | L25: 0 | M25: 0 | N25: =IF(基本情報!B53="","",基本情報!B53) -> 
A26: 22 | I26: 0 | L26: 0 | M26: 0 | N26: =IF(基本情報!B54="","",基本情報!B54) -> 
A27: 23 | I27: 0 | L27: 0 | M27: 0 | N27: =IF(基本情報!B55="","",基本情報!B55) -> 
A28: 24 | I28: 0 | L28: 0 | M28: 0 | N28: =IF(基本情報!B56="","",基本情報!B56) -> 
A29: 25 | I29: 0 | L29: 0 | M29: 0 | N29: =IF(基本情報!B57="","",基本情報!B57) -> 
A30: 26 | I30: 0 | L30: 0 | M30: 0 | N30: =IF(基本情報!B58="","",基本情報!B58) -> 
A31: 27 | B31: e | I31: 0 | L31: 0 | M31: 0 | N31: =IF(基本情報!B59="","",基本情報!B59) -> 
A32: 28 | I32: 0 | L32: 0 | M32: 0 | N32: =IF(基本情報!B60="","",基本情報!B60) -> 
A33: 29 | I33: 0 | L33: 0 | M33: 0 | N33: =IF(基本情報!B61="","",基本情報!B61) -> 
A34: 30 | I34: 0 | L34: 0 | M34: 0 | N34: =IF(基本情報!B62="","",基本情報!B62) -> 
A35: 31 | I35: 0 | L35: 0 | M35: 0 | N35: =IF(基本情報!B63="","",基本情報!B63) -> 
A36: 32 | I36: 0 | L36: 0 | M36: 0 | N36: =IF(基本情報!B64="","",基本情報!B64) -> 
A37: 33 | I37: 0 | L37: 0 | M37: 0 | N37: =IF(基本情報!B65="","",基本情報!B65) -> 
A38: 34 | I38: 0 | L38: 0 | M38: 0 | N38: =IF(基本情報!B66="","",基本情報!B66) -> 
A39: 35 | I39: 0 | L39: 0 | M39: 0 | N39: =IF(基本情報!B67="","",基本情報!B67) -> 
A40: 36 | I40: 0 | L40: 0 | M40: 0 | N40: =IF(基本情報!B68="","",基本情報!B68) -> 
A41: 37 | I41: 0 | L41: 0 | M41: 0 | N41: =IF(基本情報!B69="","",基本情報!B69) -> 
A42: 38 | I42: 0 | L42: 0 | M42: 0 | N42: =IF(基本情報!B70="","",基本情報!B70) -> 
A43: 39 | I43: 0 | L43: 0 | M43: 0 | N43: =IF(基本情報!B71="","",基本情報!B71) -> 
A44: 40 | I44: 0 | L44: 0 | M44: 0 | N44: =IF(基本情報!B72="","",基本情報!B72) -> 
A45: 41 | I45: 0 | L45: 0 | M45: 0 | N45: =IF(基本情報!B73="","",基本情報!B73) -> 
A46: 42 | I46: 0 | L46: 0 | M46: 0 | N46: =IF(基本情報!B74="","",基本情報!B74) -> 
A47: 43 | I47: 0 | L47: 0 | M47: 0 | N47: =IF(基本情報!B75="","",基本情報!B75) -> 
A48: 44 | I48: 0 | L48: 0 | M48: 0 | N48: =IF(基本情報!B76="","",基本情報!B76) -> 
A49: 45 | I49: 0 | L49: 0 | M49: 0 | N49: =IF(基本情報!B77="","",基本情報!B77) -> 
A50: 46 | I50: 0 | L50: 0 | M50: 0 | N50: =IF(基本情報!B78="","",基本情報!B78) -> 
A51: 47 | I51: 0 | L51: 0 | M51: 0 | N51: =IF(基本情報!B79="","",基本情報!B79) -> 
A52: 48 | I52: 0 | L52: 0 | M52: 0 | N52: =IF(基本情報!B80="","",基本情報!B80) -> 
A53: 49 | I53: 0 | L53: 0 | M53: 0 | N53: =IF(基本情報!B81="","",基本情報!B81) -> 
A54: 50 | I54: 0 | L54: 0 | M54: 0 | N54: =IF(基本情報!B82="","",基本情報!B82) -> 
A55: 51 | I55: 0 | L55: 0 | M55: 0 | N55: =IF(基本情報!B83="","",基本情報!B83) -> 
A56: 52 | I56: 0 | L56: 0 | M56: 0 | N56: =IF(基本情報!B84="","",基本情報!B84) -> 
A57: 53 | I57: 0 | L57: 0 | M57: 0 | N57: =IF(基本情報!B85="","",基本情報!B85) -> 
A58: 54 | I58: 0 | L58: 0 | M58: 0 | N58: =IF(基本情報!B86="","",基本情報!B86) -> 
A59: 55 | I59: 0 | L59: 0 | M59: 0 | N59: =IF(基本情報!B87="","",基本情報!B87) -> 
A60: 56 | I60: 0 | L60: 0 | M60: 0 | N60: =IF(基本情報!B88="","",基本情報!B88) -> 
A61: 57 | I61: 0 | L61: 0 | M61: 0 | N61: =IF(基本情報!B89="","",基本情報!B89) -> 
A62: 58 | I62: 0 | L62: 0 | M62: 0 | N62: =IF(基本情報!B90="","",基本情報!B90) -> 
A63: 59 | I63: 0 | L63: 0 | M63: 0 | N63: =IF(基本情報!B91="","",基本情報!B91) -> 
A64: 60 | I64: 0 | L64: 0 | M64: 0
A65: 61 | I65: 0 | L65: 0 | M65: 0
A66: 62 | I66: 0 | L66: 0 | M66: 0
A67: 63 | I67: 0 | L67: 0 | M67: 0
A68: 64 | I68: 0 | L68: 0 | M68: 0
A69: 65 | I69: =ROUND(ROUND(E69,2)*ROUND(G69,2),0) -> 0 | L69: =IF($H69<>"非課税",$I69,0) -> 0 | M69: =IF($H69="非課税",$I69,0) -> 0
A70: =A69+1 -> 66 | I70: 0 | L70: 0 | M70: 0
A71: 67 | I71: 0 | L71: 0 | M71: 0
A72: 68 | I72: 0 | L72: 0 | M72: 0
A73: 69 | I73: 0 | L73: 0 | M73: 0
A74: 70 | I74: 0 | L74: 0 | M74: 0
A75: 71 | I75: 0 | L75: 0 | M75: 0
A76: 72 | I76: 0 | L76: 0 | M76: 0
A77: 73 | I77: 0 | L77: 0 | M77: 0
A78: 74 | I78: 0 | L78: 0 | M78: 0
A79: 75 | I79: 0 | L79: 0 | M79: 0
A80: 76 | I80: 0 | L80: 0 | M80: 0
A81: 77 | I81: 0 | L81: 0 | M81: 0
A82: 78 | I82: 0 | L82: 0 | M82: 0
A83: 79 | I83: 0 | L83: 0 | M83: 0
A84: 80 | I84: 0 | L84: 0 | M84: 0
A85: 81 | I85: 0 | L85: 0 | M85: 0
A86: 82 | I86: 0 | L86: 0 | M86: 0
A87: 83 | I87: 0 | L87: 0 | M87: 0
A88: 84 | I88: 0 | L88: 0 | M88: 0
A89: 85 | I89: 0 | L89: 0 | M89: 0
A90: 86 | I90: 0 | L90: 0 | M90: 0
A91: 87 | I91: 0 | L91: 0 | M91: 0
A92: 88 | I92: 0 | L92: 0 | M92: 0
A93: 89 | I93: 0 | L93: 0 | M93: 0
A94: 90 | I94: 0 | L94: 0 | M94: 0
A95: 91 | I95: 0 | L95: 0 | M95: 0
A96: 92 | I96: 0 | L96: 0 | M96: 0
A97: 93 | I97: 0 | L97: 0 | M97: 0
A98: 94 | I98: 0 | L98: 0 | M98: 0
A99: 95 | I99: 0 | L99: 0 | M99: 0
A100: 96 | I100: 0 | L100: 0 | M100: 0
A101: 97 | I101: 0 | L101: 0 | M101: 0
A102: 98 | I102: 0 | L102: 0 | M102: 0
A103: 99 | I103: 0 | L103: 0 | M103: 0
A104: 100 | I104: 0 | L104: 0 | M104: 0
A105: 101 | I105: 0 | L105: 0 | M105: 0
A106: 102 | I106: 0 | L106: 0 | M106: 0
A107: 103 | I107: 0 | L107: 0 | M107: 0
A108: 104 | I108: 0 | L108: 0 | M108: 0
A109: 105 | I109: 0 | L109: 0 | M109: 0
A110: 106 | I110: 0 | L110: 0 | M110: 0
A111: 107 | I111: 0 | L111: 0 | M111: 0
A112: 108 | I112: 0 | L112: 0 | M112: 0
A113: 109 | I113: 0 | L113: 0 | M113: 0
A114: 110 | I114: 0 | L114: 0 | M114: 0
A115: 111 | I115: 0 | L115: 0 | M115: 0
A116: 112 | I116: 0 | L116: 0 | M116: 0
A117: 113 | I117: 0 | L117: 0 | M117: 0
A118: 114 | I118: 0 | L118: 0 | M118: 0
A119: 115 | I119: 0 | L119: 0 | M119: 0
A120: 116 | I120: 0 | L120: 0 | M120: 0
A121: 117 | I121: 0 | L121: 0 | M121: 0
A122: 118 | I122: 0 | L122: 0 | M122: 0
A123: 119 | I123: 0 | L123: 0 | M123: 0
A124: 120 | I124: 0 | L124: 0 | M124: 0
A125: 121 | I125: 0 | L125: 0 | M125: 0
A126: 122 | I126: 0 | L126: 0 | M126: 0
A127: 123 | I127: 0 | L127: 0 | M127: 0
A128: 124 | I128: 0 | L128: 0 | M128: 0
A129: 125 | I129: 0 | L129: 0 | M129: 0
A130: 126 | I130: 0 | L130: 0 | M130: 0
A131: 127 | I131: 0 | L131: 0 | M131: 0
A132: 128 | I132: 0 | L132: 0 | M132: 0
A133: 129 | I133: =ROUND(ROUND(E133,2)*ROUND(G133,2),0) -> 0 | L133: =IF($H133<>"非課税",$I133,0) -> 0 | M133: =IF($H133="非課税",$I133,0) -> 0
A134: =A133+1 -> 130 | I134: 0 | L134: 0 | M134: 0
A135: 131 | I135: 0 | L135: 0 | M135: 0
A136: 132 | I136: 0 | L136: 0 | M136: 0
A137: 133 | I137: 0 | L137: 0 | M137: 0
A138: 134 | I138: 0 | L138: 0 | M138: 0
A139: 135 | I139: 0 | L139: 0 | M139: 0
A140: 136 | I140: 0 | L140: 0 | M140: 0
A141: 137 | I141: 0 | L141: 0 | M141: 0
A142: 138 | I142: 0 | L142: 0 | M142: 0
A143: 139 | I143: 0 | L143: 0 | M143: 0
A144: 140 | I144: 0 | L144: 0 | M144: 0
A145: 141 | I145: 0 | L145: 0 | M145: 0
A146: 142 | I146: 0 | L146: 0 | M146: 0
A147: 143 | I147: 0 | L147: 0 | M147: 0
A148: 144 | I148: 0 | L148: 0 | M148: 0
A149: 145 | I149: 0 | L149: 0 | M149: 0
A150: 146 | I150: 0 | L150: 0 | M150: 0
A151: 147 | I151: 0 | L151: 0 | M151: 0
A152: 148 | I152: 0 | L152: 0 | M152: 0
A153: 149 | I153: 0 | L153: 0 | M153: 0
A154: 150 | I154: 0 | L154: 0 | M154: 0
A155: 151 | I155: 0 | L155: 0 | M155: 0
A156: 152 | I156: 0 | L156: 0 | M156: 0
A157: 153 | I157: 0 | L157: 0 | M157: 0
A158: 154 | I158: 0 | L158: 0 | M158: 0
A159: 155 | I159: 0 | L159: 0 | M159: 0
A160: 156 | I160: 0 | L160: 0 | M160: 0
A161: 157 | I161: 0 | L161: 0 | M161: 0
A162: 158 | I162: 0 | L162: 0 | M162: 0
A163: 159 | I163: 0 | L163: 0 | M163: 0
A164: 160 | I164: 0 | L164: 0 | M164: 0
A165: 161 | I165: 0 | L165: 0 | M165: 0
A166: 162 | I166: 0 | L166: 0 | M166: 0
A167: 163 | I167: 0 | L167: 0 | M167: 0
A168: 164 | I168: 0 | L168: 0 | M168: 0
A169: 165 | I169: 0 | L169: 0 | M169: 0
A170: 166 | I170: 0 | L170: 0 | M170: 0
A171: 167 | I171: 0 | L171: 0 | M171: 0
A172: 168 | I172: 0 | L172: 0 | M172: 0
A173: 169 | I173: 0 | L173: 0 | M173: 0
A174: 170 | I174: 0 | L174: 0 | M174: 0
A175: 171 | I175: 0 | L175: 0 | M175: 0
A176: 172 | I176: 0 | L176: 0 | M176: 0
A177: 173 | I177: 0 | L177: 0 | M177: 0
A178: 174 | I178: 0 | L178: 0 | M178: 0
A179: 175 | I179: 0 | L179: 0 | M179: 0
A180: 176 | I180: 0 | L180: 0 | M180: 0
A181: 177 | I181: 0 | L181: 0 | M181: 0
A182: 178 | I182: 0 | L182: 0 | M182: 0
A183: 179 | I183: 0 | L183: 0 | M183: 0
A184: 180 | I184: 0 | L184: 0 | M184: 0
A185: 181 | I185: 0 | L185: 0 | M185: 0
A186: 182 | I186: 0 | L186: 0 | M186: 0
A187: 183 | I187: 0 | L187: 0 | M187: 0
A188: 184 | I188: 0 | L188: 0 | M188: 0
A189: 185 | I189: 0 | L189: 0 | M189: 0
A190: 186 | I190: 0 | L190: 0 | M190: 0
A191: 187 | I191: 0 | L191: 0 | M191: 0
A192: 188 | I192: 0 | L192: 0 | M192: 0
A193: 189 | I193: 0 | L193: 0 | M193: 0
A194: 190 | I194: 0 | L194: 0 | M194: 0
A195: 191 | I195: 0 | L195: 0 | M195: 0
A196: 192 | I196: 0 | L196: 0 | M196: 0
A197: 193 | I197: =ROUND(ROUND(E197,2)*ROUND(G197,2),0) -> 0 | L197: =IF($H197<>"非課税",$I197,0) -> 0 | M197: =IF($H197="非課税",$I197,0) -> 0
A198: =A197+1 -> 194 | I198: 0 | L198: 0 | M198: 0
A199: 195 | I199: 0 | L199: 0 | M199: 0
A200: 196 | I200: 0 | L200: 0 | M200: 0
A201: 197 | I201: 0 | L201: 0 | M201: 0
... 104 more rows

Sheet ひな管理表 (hidden)
B1: 管理表（一般用） | AX1: 適格請求書発行事業者登録 | AZ1: =基本情報_事業者登録 -> 有 | BC1: 登録番号 : | BJ1: =IF(基本情報_登録番号="","",基本情報_登録番号) -> T1-2345-6789-0123 | BW1: ="P 1/"&COUNTA(基本情報_工事名称1, 基本情報_工事名称2, 基本情報_工事名称3) -> P 1/1
AC2: 変更時当社記入欄 | AV2: 取引先コード | AY2: =基本情報_取引先コード -> 999999 | AZ2: 締 日 | BE2: =基本情報_請求締日 -> 2023-01-31
A3: 株式会社 丸 高 御中 | BJ3: 振込銀行 | BN3: =基本情報_銀行名 -> 荘内 | BU3: 銀 行 | BV3: =基本情報_支店名 -> 若竹町 | CC3: 支 店
A4: 下記の通り御請求申し上げます。 | M4: ="税率 ( " & (基本情報_消費税率*100) & "% )" -> 税率 ( 10% ) | AW4: （住所） | AY4: =基本情報_住所 -> 酒田市○○○○１－１ | BJ4: 銀行ｺｰﾄﾞ | BN4: 4桁 | BP4: =基本情報_銀行コード -> 121 | BU4: 支店 ｺｰﾄﾞ | BW4: 3桁 | BY4: =基本情報_支店コード -> 133
A5: 前月請求額 | C5: =getnumketa(基本情報_前月請求額,9) ->  | D5: =getnumketa(基本情報_前月請求額,8) ->  | E5: =getnumketa(基本情報_前月請求額,7) ->  | F5: =getnumketa(基本情報_前月請求額,6) ->  | G5: =getnumketa(基本情報_前月請求額,5) ->  | H5: =getnumketa(基本情報_前月請求額,4) ->  | I5: =getnumketa(基本情報_前月請求額,3) ->  | J5: =getnumketa(基本情報_前月請求額,2) ->  | K5: =getnumketa(基本情報_前月請求額,1) -> 0 | M5: 税抜金額計 | S5: =getnumketa(基本情報_合計税抜金額+基本情報_合計非課税金額,9) ->  | T5: =getnumketa(基本情報_合計税抜金額+基本情報_合計非課税金額,8) ->  | U5: =getnumketa(基本情報_合計税抜金額+基本情報_合計非課税金額,7) ->  | V5: =getnumketa(基本情報_合計税抜金額+基本情報_合計非課税金額,6) -> 8 | W5: =getnumketa(基本情報_合計税抜金額+基本情報_合計非課税金額,5) -> 2 | X5: =getnumketa(基本情報_合計税抜金額+基本情報_合計非課税金額,4) -> 5 | Y5: =getnumketa(基本情報_合計税抜金額+基本情報_合計非課税金額,3) -> 6 | Z5: =getnumketa(基本情報_合計税抜金額+基本情報_合計非課税金額,2) -> 2 | AA5: =getnumketa(基本情報_合計税抜金額+基本情報_合計非課税金額,1) -> 1 | AW5: （社名） | AY5: =基本情報_社名 -> (株）○○建設 | BJ5: 口座番号 | BN5: =基本情報_口座種別 -> 当 座 | BS5: =基本情報_口座番号 -> 1234567
A6: 入 金 額 | C6: =getnumketa(基本情報_入金額,9) ->  | D6: =getnumketa(基本情報_入金額,8) ->  | E6: =getnumketa(基本情報_入金額,7) ->  | F6: =getnumketa(基本情報_入金額,6) ->  | G6: =getnumketa(基本情報_入金額,5) ->  | H6: =getnumketa(基本情報_入金額,4) ->  | I6: =getnumketa(基本情報_入金額,3) ->  | J6: =getnumketa(基本情報_入金額,2) ->  | K6: =getnumketa(基本情報_入金額,1) -> 0 | M6: 請求明細 消費税合計 | S6: =getnumketa(基本情報_合計消費税額,9) ->  | T6: =getnumketa(基本情報_合計消費税額,8) ->  | U6: =getnumketa(基本情報_合計消費税額,7) ->  | V6: =getnumketa(基本情報_合計消費税額,6) ->  | W6: =getnumketa(基本情報_合計消費税額,5) -> 8 | X6: =getnumketa(基本情報_合計消費税額,4) -> 2 | Y6: =getnumketa(基本情報_合計消費税額,3) -> 5 | Z6: =getnumketa(基本情報_合計消費税額,2) -> 3 | AA6: =getnumketa(基本情報_合計消費税額,1) -> 0 | BJ6: 口座名義:漢字
A7: 値 引 額 | C7: =getnumketa(基本情報_値引額,9) ->  | D7: =getnumketa(基本情報_値引額,8) ->  | E7: =getnumketa(基本情報_値引額,7) ->  | F7: =getnumketa(基本情報_値引額,6) ->  | G7: =getnumketa(基本情報_値引額,5) ->  | H7: =getnumketa(基本情報_値引額,4) ->  | I7: =getnumketa(基本情報_値引額,3) ->  | J7: =getnumketa(基本情報_値引額,2) ->  | K7: =getnumketa(基本情報_値引額,1) -> 0 | M7: 税込当月請求額 | S7: =getnumketa(基本情報_合計税込金額,9) ->  | T7: =getnumketa(基本情報_合計税込金額,8) ->  | U7: =getnumketa(基本情報_合計税込金額,7) ->  | V7: =getnumketa(基本情報_合計税込金額,6) -> 9 | W7: =getnumketa(基本情報_合計税込金額,5) -> 0 | X7: =getnumketa(基本情報_合計税込金額,4) -> 8 | Y7: =getnumketa(基本情報_合計税込金額,3) -> 1 | Z7: =getnumketa(基本情報_合計税込金額,2) -> 5 | AA7: =getnumketa(基本情報_合計税込金額,1) -> 1 | AW7: （電話） | AY7: =基本情報_電話番号 -> 0234 - 00 - 0000 | BJ7: =基本情報_口座名義漢字 -> (株）○○建設
A8: 繰越金額 | C8: =getnumketa(基本情報_繰越金額,9) ->  | D8: =getnumketa(基本情報_繰越金額,8) ->  | E8: =getnumketa(基本情報_繰越金額,7) ->  | F8: =getnumketa(基本情報_繰越金額,6) ->  | G8: =getnumketa(基本情報_繰越金額,5) ->  | H8: =getnumketa(基本情報_繰越金額,4) ->  | I8: =getnumketa(基本情報_繰越金額,3) ->  | J8: =getnumketa(基本情報_繰越金額,2) ->  | K8: =getnumketa(基本情報_繰越金額,1) -> 0 | M8: 税込当月総請求額 | S8: =getnumketa(基本情報_合計請求額,9) ->  | T8: =getnumketa(基本情報_合計請求額,8) ->  | U8: =getnumketa(基本情報_合計請求額,7) ->  | V8: =getnumketa(基本情報_合計請求額,6) -> 9 | W8: =getnumketa(基本情報_合計請求額,5) -> 0 | X8: =getnumketa(基本情報_合計請求額,4) -> 8 | Y8: =getnumketa(基本情報_合計請求額,3) -> 1 | Z8: =getnumketa(基本情報_合計請求額,2) -> 5 | AA8: =getnumketa(基本情報_合計請求額,1) -> 1 | BJ8: 口座名義:カナ | BP8: =基本情報_口座名義カナ -> ｶ)ﾏﾙﾏﾙｹﾝｾﾂ
A9: 工 事 名 | L9: ＣＫ | N9: 税抜金額 | W9: 消費税 | AF9: 税込金額 | AX9: 工 事 名 | BA9: ＣＫ | BB9: 税抜金額 | BL9: 消費税 | BT9: 税込金額
A10: =基本情報!$B32 -> ○○○○○工事 | N10: =getNumKeta0(基本情報!$E32+基本情報!$F32,9) ->  | O10: =getNumKeta0(基本情報!$E32+基本情報!$F32,8) ->  | P10: =getNumKeta0(基本情報!$E32+基本情報!$F32,7) ->  | Q10: =getNumKeta0(基本情報!$E32+基本情報!$F32,6) -> 3 | R10: =getNumKeta0(基本情報!$E32+基本情報!$F32,5) -> 5 | S10: =getNumKeta0(基本情報!$E32+基本情報!$F32,4) -> 0 | T10: =getNumKeta0(基本情報!$E32+基本情報!$F32,3) -> 6 | U10: =getNumKeta0(基本情報!$E32+基本情報!$F32,2) -> 2 | V10: =getNumKeta0(基本情報!$E32+基本情報!$F32,1) -> 1 | W10: =getNumKeta0(基本情報!$G32,7) ->  | X10: =getNumKeta0(基本情報!$G32,6) ->  | Y10: =getNumKeta0(基本情報!$G32,5) -> 3 | Z10: =getNumKeta0(基本情報!$G32,4) -> 5 | AA10: =getNumKeta0(基本情報!$G32,3) -> 0 | AB10: =getNumKeta0(基本情報!$G32,2) -> 3 | AC10: =getnumketa(基本情報!M33,1) -> 0 | AD10: =getNumKeta0(基本情報!$G32,1) -> 0 | AF10: =getNumKeta0(基本情報!$H32,9) ->  | AH10: =getNumKeta0(基本情報!$H32,8) ->  | AJ10: =getNumKeta0(基本情報!$H32,7) ->  | AL10: =getNumKeta0(基本情報!$H32,6) -> 3 | AN10: =getNumKeta0(基本情報!$H32,5) -> 8 | AP10: =getNumKeta0(基本情報!$H32,4) -> 5 | AR10: =getNumKeta0(基本情報!$H32,3) -> 6 | AT10: =getNumKeta0(基本情報!$H32,2) -> 5 | AW10: =getNumKeta0(基本情報!$H32,1) -> 1 | AX10: =基本情報!$B44 -> 0 | BB10: =getNumKeta0(基本情報!$E44+基本情報!$F44,9) ->  | BC10: =getNumKeta0(基本情報!$E44+基本情報!$F44,8) ->  | BD10: =getNumKeta0(基本情報!$E44+基本情報!$F44,7) ->  | BE10: =getnumketa(基本情報!AQ33,6) ->  | BF10: =getNumKeta0(基本情報!$E44+基本情報!$F44,6) ->  | BG10: =getNumKeta0(基本情報!$E44+基本情報!$F44,5) ->  | BH10: =getNumKeta0(基本情報!$E44+基本情報!$F44,4) ->  | BI10: =getNumKeta0(基本情報!$E44+基本情報!$F44,3) ->  | BJ10: =getNumKeta0(基本情報!$E44+基本情報!$F44,2) ->  | BK10: =getNumKeta0(基本情報!$E44+基本情報!$F44,1) ->  | BL10: =getNumKeta0(基本情報!$G44,7) ->  | BM10: =getNumKeta0(基本情報!$G44,6) ->  | BN10: =getNumKeta0(基本情報!$G44,5) ->  | BO10: =getNumKeta0(基本情報!$G44,4) ->  | BP10: =getnumketa(基本情報!N45,4) ->  | BQ10: =getNumKeta0(基本情報!$G44,3) ->  | BR10: =getNumKeta0(基本情報!$G44,2) ->  | BS10: =getNumKeta0(基本情報!$G44,1) ->  | BT10: =getNumKeta0(基本情報!$H44,9) ->  | BU10: =getNumKeta0(基本情報!$H44,8) ->  | BV10: =getNumKeta0(基本情報!$H44,7) ->  | BW10: =getNumKeta0(基本情報!$H44,6) ->  | BX10: =getNumKeta0(基本情報!$H44,5) ->  | BZ10: =getNumKeta0(基本情報!$H44,4) ->  | CA10: =getNumKeta0(基本情報!$H44,3) ->  | CB10: =getNumKeta0(基本情報!$H44,2) ->  | CC10: =getNumKeta0(基本情報!$H44,1) -> 
A11: =基本情報!$B33 -> ×××××工事 | N11: =getNumKeta0(基本情報!$E33+基本情報!$F33,9) ->  | O11: =getNumKeta0(基本情報!$E33+基本情報!$F33,8) ->  | P11: =getNumKeta0(基本情報!$E33+基本情報!$F33,7) ->  | Q11: =getNumKeta0(基本情報!$E33+基本情報!$F33,6) -> 4 | R11: =getNumKeta0(基本情報!$E33+基本情報!$F33,5) -> 7 | S11: =getNumKeta0(基本情報!$E33+基本情報!$F33,4) -> 5 | T11: =getNumKeta0(基本情報!$E33+基本情報!$F33,3) -> 0 | U11: =getNumKeta0(基本情報!$E33+基本情報!$F33,2) -> 0 | V11: =getNumKeta0(基本情報!$E33+基本情報!$F33,1) -> 0 | W11: =getNumKeta0(基本情報!$G33,7) ->  | X11: =getNumKeta0(基本情報!$G33,6) ->  | Y11: =getNumKeta0(基本情報!$G33,5) -> 4 | Z11: =getNumKeta0(基本情報!$G33,4) -> 7 | AA11: =getNumKeta0(基本情報!$G33,3) -> 5 | AB11: =getNumKeta0(基本情報!$G33,2) -> 0 | AC11: =getnumketa(基本情報!M34,1) -> 0 | AD11: =getNumKeta0(基本情報!$G33,1) -> 0 | AF11: =getNumKeta0(基本情報!$H33,9) ->  | AH11: =getNumKeta0(基本情報!$H33,8) ->  | AJ11: =getNumKeta0(基本情報!$H33,7) ->  | AL11: =getNumKeta0(基本情報!$H33,6) -> 5 | AN11: =getNumKeta0(基本情報!$H33,5) -> 2 | AP11: =getNumKeta0(基本情報!$H33,4) -> 2 | AR11: =getNumKeta0(基本情報!$H33,3) -> 5 | AT11: =getNumKeta0(基本情報!$H33,2) -> 0 | AW11: =getNumKeta0(基本情報!$H33,1) -> 0 | AX11: =基本情報!$B45 -> 0 | BB11: =getNumKeta0(基本情報!$E45+基本情報!$F45,9) ->  | BC11: =getNumKeta0(基本情報!$E45+基本情報!$F45,8) ->  | BD11: =getNumKeta0(基本情報!$E45+基本情報!$F45,7) ->  | BE11: =getnumketa(基本情報!AQ34,6) ->  | BF11: =getNumKeta0(基本情報!$E45+基本情報!$F45,6) ->  | BG11: =getNumKeta0(基本情報!$E45+基本情報!$F45,5) ->  | BH11: =getNumKeta0(基本情報!$E45+基本情報!$F45,4) ->  | BI11: =getNumKeta0(基本情報!$E45+基本情報!$F45,3) ->  | BJ11: =getNumKeta0(基本情報!$E45+基本情報!$F45,2) ->  | BK11: =getNumKeta0(基本情報!$E45+基本情報!$F45,1) ->  | BL11: =getNumKeta0(基本情報!$G45,7) ->  | BM11: =getNumKeta0(基本情報!$G45,6) ->  | BN11: =getNumKeta0(基本情報!$G45,5) ->  | BO11: =getNumKeta0(基本情報!$G45,4) ->  | BP11: =getnumketa(基本情報!N46,4) ->  | BQ11: =getNumKeta0(基本情報!$G45,3) ->  | BR11: =getNumKeta0(基本情報!$G45,2) ->  | BS11: =getNumKeta0(基本情報!$G45,1) ->  | BT11: =getNumKeta0(基本情報!$H45,9) ->  | BU11: =getNumKeta0(基本情報!$H45,8) ->  | BV11: =getNumKeta0(基本情報!$H45,7) ->  | BW11: =getNumKeta0(基本情報!$H45,6) ->  | BX11: =getNumKeta0(基本情報!$H45,5) ->  | BZ11: =getNumKeta0(基本情報!$H45,4) ->  | CA11: =getNumKeta0(基本情報!$H45,3) ->  | CB11: =getNumKeta0(基本情報!$H45,2) ->  | CC11: =getNumKeta0(基本情報!$H45,1) -> 
A12: =基本情報!$B34 -> 0 | N12: =getNumKeta0(基本情報!$E34+基本情報!$F34,9) ->  | O12: =getNumKeta0(基本情報!$E34+基本情報!$F34,8) ->  | P12: =getNumKeta0(基本情報!$E34+基本情報!$F34,7) ->  | Q12: =getNumKeta0(基本情報!$E34+基本情報!$F34,6) ->  | R12: =getNumKeta0(基本情報!$E34+基本情報!$F34,5) ->  | S12: =getNumKeta0(基本情報!$E34+基本情報!$F34,4) ->  | T12: =getNumKeta0(基本情報!$E34+基本情報!$F34,3) ->  | U12: =getNumKeta0(基本情報!$E34+基本情報!$F34,2) ->  | V12: =getNumKeta0(基本情報!$E34+基本情報!$F34,1) ->  | W12: =getNumKeta0(基本情報!$G34,7) ->  | X12: =getNumKeta0(基本情報!$G34,6) ->  | Y12: =getNumKeta0(基本情報!$G34,5) ->  | Z12: =getNumKeta0(基本情報!$G34,4) ->  | AA12: =getNumKeta0(基本情報!$G34,3) ->  | AB12: =getNumKeta0(基本情報!$G34,2) ->  | AC12: =getnumketa(基本情報!M35,1) -> 0 | AD12: =getNumKeta0(基本情報!$G34,1) ->  | AF12: =getNumKeta0(基本情報!$H34,9) ->  | AH12: =getNumKeta0(基本情報!$H34,8) ->  | AJ12: =getNumKeta0(基本情報!$H34,7) ->  | AL12: =getNumKeta0(基本情報!$H34,6) ->  | AN12: =getNumKeta0(基本情報!$H34,5) ->  | AP12: =getNumKeta0(基本情報!$H34,4) ->  | AR12: =getNumKeta0(基本情報!$H34,3) ->  | AT12: =getNumKeta0(基本情報!$H34,2) ->  | AW12: =getNumKeta0(基本情報!$H34,1) ->  | AX12: =基本情報!$B46 -> 0 | BB12: =getNumKeta0(基本情報!$E46+基本情報!$F46,9) ->  | BC12: =getNumKeta0(基本情報!$E46+基本情報!$F46,8) ->  | BD12: =getNumKeta0(基本情報!$E46+基本情報!$F46,7) ->  | BE12: =getnumketa(基本情報!AQ35,6) ->  | BF12: =getNumKeta0(基本情報!$E46+基本情報!$F46,6) ->  | BG12: =getNumKeta0(基本情報!$E46+基本情報!$F46,5) ->  | BH12: =getNumKeta0(基本情報!$E46+基本情報!$F46,4) ->  | BI12: =getNumKeta0(基本情報!$E46+基本情報!$F46,3) ->  | BJ12: =getNumKeta0(基本情報!$E46+基本情報!$F46,2) ->  | BK12: =getNumKeta0(基本情報!$E46+基本情報!$F46,1) ->  | BL12: =getNumKeta0(基本情報!$G46,7) ->  | BM12: =getNumKeta0(基本情報!$G46,6) ->  | BN12: =getNumKeta0(基本情報!$G46,5) ->  | BO12: =getNumKeta0(基本情報!$G46,4) ->  | BP12: =getnumketa(基本情報!N47,4) ->  | BQ12: =getNumKeta0(基本情報!$G46,3) ->  | BR12: =getNumKeta0(基本情報!$G46,2) ->  | BS12: =getNumKeta0(基本情報!$G46,1) ->  | BT12: =getNumKeta0(基本情報!$H46,9) ->  | BU12: =getNumKeta0(基本情報!$H46,8) ->  | BV12: =getNumKeta0(基本情報!$H46,7) ->  | BW12: =getNumKeta0(基本情報!$H46,6) ->  | BX12: =getNumKeta0(基本情報!$H46,5) ->  | BZ12: =getNumKeta0(基本情報!$H46,4) ->  | CA12: =getNumKeta0(基本情報!$H46,3) ->  | CB12: =getNumKeta0(基本情報!$H46,2) ->  | CC12: =getNumKeta0(基本情報!$H46,1) -> 
A13: =基本情報!$B35 -> 0 | N13: =getNumKeta0(基本情報!$E35+基本情報!$F35,9) ->  | O13: =getNumKeta0(基本情報!$E35+基本情報!$F35,8) ->  | P13: =getNumKeta0(基本情報!$E35+基本情報!$F35,7) ->  | Q13: =getNumKeta0(基本情報!$E35+基本情報!$F35,6) ->  | R13: =getNumKeta0(基本情報!$E35+基本情報!$F35,5) ->  | S13: =getNumKeta0(基本情報!$E35+基本情報!$F35,4) ->  | T13: =getNumKeta0(基本情報!$E35+基本情報!$F35,3) ->  | U13: =getNumKeta0(基本情報!$E35+基本情報!$F35,2) ->  | V13: =getNumKeta0(基本情報!$E35+基本情報!$F35,1) ->  | W13: =getNumKeta0(基本情報!$G35,7) ->  | X13: =getNumKeta0(基本情報!$G35,6) ->  | Y13: =getNumKeta0(基本情報!$G35,5) ->  | Z13: =getNumKeta0(基本情報!$G35,4) ->  | AA13: =getNumKeta0(基本情報!$G35,3) ->  | AB13: =getNumKeta0(基本情報!$G35,2) ->  | AC13: =getnumketa(基本情報!M36,1) -> 0 | AD13: =getNumKeta0(基本情報!$G35,1) ->  | AF13: =getNumKeta0(基本情報!$H35,9) ->  | AH13: =getNumKeta0(基本情報!$H35,8) ->  | AJ13: =getNumKeta0(基本情報!$H35,7) ->  | AL13: =getNumKeta0(基本情報!$H35,6) ->  | AN13: =getNumKeta0(基本情報!$H35,5) ->  | AP13: =getNumKeta0(基本情報!$H35,4) ->  | AR13: =getNumKeta0(基本情報!$H35,3) ->  | AT13: =getNumKeta0(基本情報!$H35,2) ->  | AW13: =getNumKeta0(基本情報!$H35,1) ->  | AX13: =基本情報!$B47 -> 0 | BB13: =getNumKeta0(基本情報!$E47+基本情報!$F47,9) ->  | BC13: =getNumKeta0(基本情報!$E47+基本情報!$F47,8) ->  | BD13: =getNumKeta0(基本情報!$E47+基本情報!$F47,7) ->  | BE13: =getnumketa(基本情報!AQ36,6) ->  | BF13: =getNumKeta0(基本情報!$E47+基本情報!$F47,6) ->  | BG13: =getNumKeta0(基本情報!$E47+基本情報!$F47,5) ->  | BH13: =getNumKeta0(基本情報!$E47+基本情報!$F47,4) ->  | BI13: =getNumKeta0(基本情報!$E47+基本情報!$F47,3) ->  | BJ13: =getNumKeta0(基本情報!$E47+基本情報!$F47,2) ->  | BK13: =getNumKeta0(基本情報!$E47+基本情報!$F47,1) ->  | BL13: =getNumKeta0(基本情報!$G47,7) ->  | BM13: =getNumKeta0(基本情報!$G47,6) ->  | BN13: =getNumKeta0(基本情報!$G47,5) ->  | BO13: =getNumKeta0(基本情報!$G47,4) ->  | BP13: =getnumketa(基本情報!N48,4) ->  | BQ13: =getNumKeta0(基本情報!$G47,3) ->  | BR13: =getNumKeta0(基本情報!$G47,2) ->  | BS13: =getNumKeta0(基本情報!$G47,1) ->  | BT13: =getNumKeta0(基本情報!$H47,9) ->  | BU13: =getNumKeta0(基本情報!$H47,8) ->  | BV13: =getNumKeta0(基本情報!$H47,7) ->  | BW13: =getNumKeta0(基本情報!$H47,6) ->  | BX13: =getNumKeta0(基本情報!$H47,5) ->  | BZ13: =getNumKeta0(基本情報!$H47,4) ->  | CA13: =getNumKeta0(基本情報!$H47,3) ->  | CB13: =getNumKeta0(基本情報!$H47,2) ->  | CC13: =getNumKeta0(基本情報!$H47,1) -> 
A14: =基本情報!$B36 -> 0 | N14: =getNumKeta0(基本情報!$E36+基本情報!$F36,9) ->  | O14: =getNumKeta0(基本情報!$E36+基本情報!$F36,8) ->  | P14: =getNumKeta0(基本情報!$E36+基本情報!$F36,7) ->  | Q14: =getNumKeta0(基本情報!$E36+基本情報!$F36,6) ->  | R14: =getNumKeta0(基本情報!$E36+基本情報!$F36,5) ->  | S14: =getNumKeta0(基本情報!$E36+基本情報!$F36,4) ->  | T14: =getNumKeta0(基本情報!$E36+基本情報!$F36,3) ->  | U14: =getNumKeta0(基本情報!$E36+基本情報!$F36,2) ->  | V14: =getNumKeta0(基本情報!$E36+基本情報!$F36,1) ->  | W14: =getNumKeta0(基本情報!$G36,7) ->  | X14: =getNumKeta0(基本情報!$G36,6) ->  | Y14: =getNumKeta0(基本情報!$G36,5) ->  | Z14: =getNumKeta0(基本情報!$G36,4) ->  | AA14: =getNumKeta0(基本情報!$G36,3) ->  | AB14: =getNumKeta0(基本情報!$G36,2) ->  | AC14: =getnumketa(基本情報!M37,1) -> 0 | AD14: =getNumKeta0(基本情報!$G36,1) ->  | AF14: =getNumKeta0(基本情報!$H36,9) ->  | AH14: =getNumKeta0(基本情報!$H36,8) ->  | AJ14: =getNumKeta0(基本情報!$H36,7) ->  | AL14: =getNumKeta0(基本情報!$H36,6) ->  | AN14: =getNumKeta0(基本情報!$H36,5) ->  | AP14: =getNumKeta0(基本情報!$H36,4) ->  | AR14: =getNumKeta0(基本情報!$H36,3) ->  | AT14: =getNumKeta0(基本情報!$H36,2) ->  | AW14: =getNumKeta0(基本情報!$H36,1) ->  | AX14: =基本情報!$B48 -> 0 | BB14: =getNumKeta0(基本情報!$E48+基本情報!$F48,9) ->  | BC14: =getNumKeta0(基本情報!$E48+基本情報!$F48,8) ->  | BD14: =getNumKeta0(基本情報!$E48+基本情報!$F48,7) ->  | BE14: =getnumketa(基本情報!AQ37,6) ->  | BF14: =getNumKeta0(基本情報!$E48+基本情報!$F48,6) ->  | BG14: =getNumKeta0(基本情報!$E48+基本情報!$F48,5) ->  | BH14: =getNumKeta0(基本情報!$E48+基本情報!$F48,4) ->  | BI14: =getNumKeta0(基本情報!$E48+基本情報!$F48,3) ->  | BJ14: =getNumKeta0(基本情報!$E48+基本情報!$F48,2) ->  | BK14: =getNumKeta0(基本情報!$E48+基本情報!$F48,1) ->  | BL14: =getNumKeta0(基本情報!$G48,7) ->  | BM14: =getNumKeta0(基本情報!$G48,6) ->  | BN14: =getNumKeta0(基本情報!$G48,5) ->  | BO14: =getNumKeta0(基本情報!$G48,4) ->  | BP14: =getnumketa(基本情報!N49,4) ->  | BQ14: =getNumKeta0(基本情報!$G48,3) ->  | BR14: =getNumKeta0(基本情報!$G48,2) ->  | BS14: =getNumKeta0(基本情報!$G48,1) ->  | BT14: =getNumKeta0(基本情報!$H48,9) ->  | BU14: =getNumKeta0(基本情報!$H48,8) ->  | BV14: =getNumKeta0(基本情報!$H48,7) ->  | BW14: =getNumKeta0(基本情報!$H48,6) ->  | BX14: =getNumKeta0(基本情報!$H48,5) ->  | BZ14: =getNumKeta0(基本情報!$H48,4) ->  | CA14: =getNumKeta0(基本情報!$H48,3) ->  | CB14: =getNumKeta0(基本情報!$H48,2) ->  | CC14: =getNumKeta0(基本情報!$H48,1) -> 
A15: =基本情報!$B37 -> 0 | N15: =getNumKeta0(基本情報!$E37+基本情報!$F37,9) ->  | O15: =getNumKeta0(基本情報!$E37+基本情報!$F37,8) ->  | P15: =getNumKeta0(基本情報!$E37+基本情報!$F37,7) ->  | Q15: =getNumKeta0(基本情報!$E37+基本情報!$F37,6) ->  | R15: =getNumKeta0(基本情報!$E37+基本情報!$F37,5) ->  | S15: =getNumKeta0(基本情報!$E37+基本情報!$F37,4) ->  | T15: =getNumKeta0(基本情報!$E37+基本情報!$F37,3) ->  | U15: =getNumKeta0(基本情報!$E37+基本情報!$F37,2) ->  | V15: =getNumKeta0(基本情報!$E37+基本情報!$F37,1) ->  | W15: =getNumKeta0(基本情報!$G37,7) ->  | X15: =getNumKeta0(基本情報!$G37,6) ->  | Y15: =getNumKeta0(基本情報!$G37,5) ->  | Z15: =getNumKeta0(基本情報!$G37,4) ->  | AA15: =getNumKeta0(基本情報!$G37,3) ->  | AB15: =getNumKeta0(基本情報!$G37,2) ->  | AC15: =getnumketa(基本情報!M38,1) -> 0 | AD15: =getNumKeta0(基本情報!$G37,1) ->  | AF15: =getNumKeta0(基本情報!$H37,9) ->  | AH15: =getNumKeta0(基本情報!$H37,8) ->  | AJ15: =getNumKeta0(基本情報!$H37,7) ->  | AL15: =getNumKeta0(基本情報!$H37,6) ->  | AN15: =getNumKeta0(基本情報!$H37,5) ->  | AP15: =getNumKeta0(基本情報!$H37,4) ->  | AR15: =getNumKeta0(基本情報!$H37,3) ->  | AT15: =getNumKeta0(基本情報!$H37,2) ->  | AW15: =getNumKeta0(基本情報!$H37,1) ->  | AX15: =基本情報!$B49 -> 0 | BB15: =getNumKeta0(基本情報!$E49+基本情報!$F49,9) ->  | BC15: =getNumKeta0(基本情報!$E49+基本情報!$F49,8) ->  | BD15: =getNumKeta0(基本情報!$E49+基本情報!$F49,7) ->  | BE15: =getnumketa(基本情報!AQ38,6) ->  | BF15: =getNumKeta0(基本情報!$E49+基本情報!$F49,6) ->  | BG15: =getNumKeta0(基本情報!$E49+基本情報!$F49,5) ->  | BH15: =getNumKeta0(基本情報!$E49+基本情報!$F49,4) ->  | BI15: =getNumKeta0(基本情報!$E49+基本情報!$F49,3) ->  | BJ15: =getNumKeta0(基本情報!$E49+基本情報!$F49,2) ->  | BK15: =getNumKeta0(基本情報!$E49+基本情報!$F49,1) ->  | BL15: =getNumKeta0(基本情報!$G49,7) ->  | BM15: =getNumKeta0(基本情報!$G49,6) ->  | BN15: =getNumKeta0(基本情報!$G49,5) ->  | BO15: =getNumKeta0(基本情報!$G49,4) ->  | BP15: =getnumketa(基本情報!N50,4) ->  | BQ15: =getNumKeta0(基本情報!$G49,3) ->  | BR15: =getNumKeta0(基本情報!$G49,2) ->  | BS15: =getNumKeta0(基本情報!$G49,1) ->  | BT15: =getNumKeta0(基本情報!$H49,9) ->  | BU15: =getNumKeta0(基本情報!$H49,8) ->  | BV15: =getNumKeta0(基本情報!$H49,7) ->  | BW15: =getNumKeta0(基本情報!$H49,6) ->  | BX15: =getNumKeta0(基本情報!$H49,5) ->  | BZ15: =getNumKeta0(基本情報!$H49,4) ->  | CA15: =getNumKeta0(基本情報!$H49,3) ->  | CB15: =getNumKeta0(基本情報!$H49,2) ->  | CC15: =getNumKeta0(基本情報!$H49,1) -> 
A16: =基本情報!$B38 -> 0 | N16: =getNumKeta0(基本情報!$E38+基本情報!$F38,9) ->  | O16: =getNumKeta0(基本情報!$E38+基本情報!$F38,8) ->  | P16: =getNumKeta0(基本情報!$E38+基本情報!$F38,7) ->  | Q16: =getNumKeta0(基本情報!$E38+基本情報!$F38,6) ->  | R16: =getNumKeta0(基本情報!$E38+基本情報!$F38,5) ->  | S16: =getNumKeta0(基本情報!$E38+基本情報!$F38,4) ->  | T16: =getNumKeta0(基本情報!$E38+基本情報!$F38,3) ->  | U16: =getNumKeta0(基本情報!$E38+基本情報!$F38,2) ->  | V16: =getNumKeta0(基本情報!$E38+基本情報!$F38,1) ->  | W16: =getNumKeta0(基本情報!$G38,7) ->  | X16: =getNumKeta0(基本情報!$G38,6) ->  | Y16: =getNumKeta0(基本情報!$G38,5) ->  | Z16: =getNumKeta0(基本情報!$G38,4) ->  | AA16: =getNumKeta0(基本情報!$G38,3) ->  | AB16: =getNumKeta0(基本情報!$G38,2) ->  | AC16: =getnumketa(基本情報!M39,1) -> 0 | AD16: =getNumKeta0(基本情報!$G38,1) ->  | AF16: =getNumKeta0(基本情報!$H38,9) ->  | AH16: =getNumKeta0(基本情報!$H38,8) ->  | AJ16: =getNumKeta0(基本情報!$H38,7) ->  | AL16: =getNumKeta0(基本情報!$H38,6) ->  | AN16: =getNumKeta0(基本情報!$H38,5) ->  | AP16: =getNumKeta0(基本情報!$H38,4) ->  | AR16: =getNumKeta0(基本情報!$H38,3) ->  | AT16: =getNumKeta0(基本情報!$H38,2) ->  | AW16: =getNumKeta0(基本情報!$H38,1) ->  | AX16: =基本情報!$B50 -> 0 | BB16: =getNumKeta0(基本情報!$E50+基本情報!$F50,9) ->  | BC16: =getNumKeta0(基本情報!$E50+基本情報!$F50,8) ->  | BD16: =getNumKeta0(基本情報!$E50+基本情報!$F50,7) ->  | BE16: =getnumketa(基本情報!AQ39,6) ->  | BF16: =getNumKeta0(基本情報!$E50+基本情報!$F50,6) ->  | BG16: =getNumKeta0(基本情報!$E50+基本情報!$F50,5) ->  | BH16: =getNumKeta0(基本情報!$E50+基本情報!$F50,4) ->  | BI16: =getNumKeta0(基本情報!$E50+基本情報!$F50,3) ->  | BJ16: =getNumKeta0(基本情報!$E50+基本情報!$F50,2) ->  | BK16: =getNumKeta0(基本情報!$E50+基本情報!$F50,1) ->  | BL16: =getNumKeta0(基本情報!$G50,7) ->  | BM16: =getNumKeta0(基本情報!$G50,6) ->  | BN16: =getNumKeta0(基本情報!$G50,5) ->  | BO16: =getNumKeta0(基本情報!$G50,4) ->  | BP16: =getnumketa(基本情報!N51,4) ->  | BQ16: =getNumKeta0(基本情報!$G50,3) ->  | BR16: =getNumKeta0(基本情報!$G50,2) ->  | BS16: =getNumKeta0(基本情報!$G50,1) ->  | BT16: =getNumKeta0(基本情報!$H50,9) ->  | BU16: =getNumKeta0(基本情報!$H50,8) ->  | BV16: =getNumKeta0(基本情報!$H50,7) ->  | BW16: =getNumKeta0(基本情報!$H50,6) ->  | BX16: =getNumKeta0(基本情報!$H50,5) ->  | BZ16: =getNumKeta0(基本情報!$H50,4) ->  | CA16: =getNumKeta0(基本情報!$H50,3) ->  | CB16: =getNumKeta0(基本情報!$H50,2) ->  | CC16: =getNumKeta0(基本情報!$H50,1) -> 
A17: =基本情報!$B39 -> 0 | N17: =getNumKeta0(基本情報!$E39+基本情報!$F39,9) ->  | O17: =getNumKeta0(基本情報!$E39+基本情報!$F39,8) ->  | P17: =getNumKeta0(基本情報!$E39+基本情報!$F39,7) ->  | Q17: =getNumKeta0(基本情報!$E39+基本情報!$F39,6) ->  | R17: =getNumKeta0(基本情報!$E39+基本情報!$F39,5) ->  | S17: =getNumKeta0(基本情報!$E39+基本情報!$F39,4) ->  | T17: =getNumKeta0(基本情報!$E39+基本情報!$F39,3) ->  | U17: =getNumKeta0(基本情報!$E39+基本情報!$F39,2) ->  | V17: =getNumKeta0(基本情報!$E39+基本情報!$F39,1) ->  | W17: =getNumKeta0(基本情報!$G39,7) ->  | X17: =getNumKeta0(基本情報!$G39,6) ->  | Y17: =getNumKeta0(基本情報!$G39,5) ->  | Z17: =getNumKeta0(基本情報!$G39,4) ->  | AA17: =getNumKeta0(基本情報!$G39,3) ->  | AB17: =getNumKeta0(基本情報!$G39,2) ->  | AC17: =getnumketa(基本情報!M40,1) -> 0 | AD17: =getNumKeta0(基本情報!$G39,1) ->  | AF17: =getNumKeta0(基本情報!$H39,9) ->  | AH17: =getNumKeta0(基本情報!$H39,8) ->  | AJ17: =getNumKeta0(基本情報!$H39,7) ->  | AL17: =getNumKeta0(基本情報!$H39,6) ->  | AN17: =getNumKeta0(基本情報!$H39,5) ->  | AP17: =getNumKeta0(基本情報!$H39,4) ->  | AR17: =getNumKeta0(基本情報!$H39,3) ->  | AT17: =getNumKeta0(基本情報!$H39,2) ->  | AW17: =getNumKeta0(基本情報!$H39,1) ->  | AX17: =基本情報!$B51 -> 0 | BB17: =getNumKeta0(基本情報!$E51+基本情報!$F51,9) ->  | BC17: =getNumKeta0(基本情報!$E51+基本情報!$F51,8) ->  | BD17: =getNumKeta0(基本情報!$E51+基本情報!$F51,7) ->  | BE17: =getnumketa(基本情報!AQ40,6) ->  | BF17: =getNumKeta0(基本情報!$E51+基本情報!$F51,6) ->  | BG17: =getNumKeta0(基本情報!$E51+基本情報!$F51,5) ->  | BH17: =getNumKeta0(基本情報!$E51+基本情報!$F51,4) ->  | BI17: =getNumKeta0(基本情報!$E51+基本情報!$F51,3) ->  | BJ17: =getNumKeta0(基本情報!$E51+基本情報!$F51,2) ->  | BK17: =getNumKeta0(基本情報!$E51+基本情報!$F51,1) ->  | BL17: =getNumKeta0(基本情報!$G51,7) ->  | BM17: =getNumKeta0(基本情報!$G51,6) ->  | BN17: =getNumKeta0(基本情報!$G51,5) ->  | BO17: =getNumKeta0(基本情報!$G51,4) ->  | BP17: =getnumketa(基本情報!N52,4) ->  | BQ17: =getNumKeta0(基本情報!$G51,3) ->  | BR17: =getNumKeta0(基本情報!$G51,2) ->  | BS17: =getNumKeta0(基本情報!$G51,1) ->  | BT17: =getNumKeta0(基本情報!$H51,9) ->  | BU17: =getNumKeta0(基本情報!$H51,8) ->  | BV17: =getNumKeta0(基本情報!$H51,7) ->  | BW17: =getNumKeta0(基本情報!$H51,6) ->  | BX17: =getNumKeta0(基本情報!$H51,5) ->  | BZ17: =getNumKeta0(基本情報!$H51,4) ->  | CA17: =getNumKeta0(基本情報!$H51,3) ->  | CB17: =getNumKeta0(基本情報!$H51,2) ->  | CC17: =getNumKeta0(基本情報!$H51,1) -> 
A18: =基本情報!$B40 -> 0 | N18: =getNumKeta0(基本情報!$E40+基本情報!$F40,9) ->  | O18: =getNumKeta0(基本情報!$E40+基本情報!$F40,8) ->  | P18: =getNumKeta0(基本情報!$E40+基本情報!$F40,7) ->  | Q18: =getNumKeta0(基本情報!$E40+基本情報!$F40,6) ->  | R18: =getNumKeta0(基本情報!$E40+基本情報!$F40,5) ->  | S18: =getNumKeta0(基本情報!$E40+基本情報!$F40,4) ->  | T18: =getNumKeta0(基本情報!$E40+基本情報!$F40,3) ->  | U18: =getNumKeta0(基本情報!$E40+基本情報!$F40,2) ->  | V18: =getNumKeta0(基本情報!$E40+基本情報!$F40,1) ->  | W18: =getNumKeta0(基本情報!$G40,7) ->  | X18: =getNumKeta0(基本情報!$G40,6) ->  | Y18: =getNumKeta0(基本情報!$G40,5) ->  | Z18: =getNumKeta0(基本情報!$G40,4) ->  | AA18: =getNumKeta0(基本情報!$G40,3) ->  | AB18: =getNumKeta0(基本情報!$G40,2) ->  | AC18: =getnumketa(基本情報!M41,1) -> 0 | AD18: =getNumKeta0(基本情報!$G40,1) ->  | AF18: =getNumKeta0(基本情報!$H40,9) ->  | AH18: =getNumKeta0(基本情報!$H40,8) ->  | AJ18: =getNumKeta0(基本情報!$H40,7) ->  | AL18: =getNumKeta0(基本情報!$H40,6) ->  | AN18: =getNumKeta0(基本情報!$H40,5) ->  | AP18: =getNumKeta0(基本情報!$H40,4) ->  | AR18: =getNumKeta0(基本情報!$H40,3) ->  | AT18: =getNumKeta0(基本情報!$H40,2) ->  | AW18: =getNumKeta0(基本情報!$H40,1) ->  | AX18: 小 計 ・ 合 計 | BB18: =getnumketa(基本情報_合計税抜金額1,9) ->  | BC18: =getnumketa(基本情報_合計税抜金額1,8) ->  | BD18: =getnumketa(基本情報_合計税抜金額1,7) ->  | BF18: =getnumketa(基本情報_合計税抜金額1,6) -> 8 | BG18: =getnumketa(基本情報_合計税抜金額1,5) -> 2 | BH18: =getnumketa(基本情報_合計税抜金額1,4) -> 5 | BI18: =getnumketa(基本情報_合計税抜金額1,3) -> 6 | BJ18: =getnumketa(基本情報_合計税抜金額1,2) -> 2 | BK18: =getnumketa(基本情報_合計税抜金額1,1) -> 1 | BL18: =getnumketa(基本情報_合計消費税額1,7) ->  | BM18: =getnumketa(基本情報_合計消費税額1,6) ->  | BN18: =getnumketa(基本情報_合計消費税額1,5) -> 8 | BO18: =getnumketa(基本情報_合計消費税額1,4) -> 2 | BQ18: =getnumketa(基本情報_合計消費税額1,3) -> 5 | BR18: =getnumketa(基本情報_合計消費税額1,2) -> 3 | BS18: =getnumketa(基本情報_合計消費税額1,1) -> 0 | BT18: =getnumketa(基本情報_合計税込金額1,9) ->  | BU18: =getnumketa(基本情報_合計税込金額1,8) ->  | BV18: =getnumketa(基本情報_合計税込金額1,7) ->  | BW18: =getnumketa(基本情報_合計税込金額1,6) -> 9 | BX18: =getnumketa(基本情報_合計税込金額1,5) -> 0 | BZ18: =getnumketa(基本情報_合計税込金額1,4) -> 8 | CA18: =getnumketa(基本情報_合計税込金額1,3) -> 1 | CB18: =getnumketa(基本情報_合計税込金額1,2) -> 5 | CC18: =getnumketa(基本情報_合計税込金額1,1) -> 1
A19: =基本情報!$B41 -> 0 | N19: =getNumKeta0(基本情報!$E41+基本情報!$F41,9) ->  | O19: =getNumKeta0(基本情報!$E41+基本情報!$F41,8) ->  | P19: =getNumKeta0(基本情報!$E41+基本情報!$F41,7) ->  | Q19: =getNumKeta0(基本情報!$E41+基本情報!$F41,6) ->  | R19: =getNumKeta0(基本情報!$E41+基本情報!$F41,5) ->  | S19: =getNumKeta0(基本情報!$E41+基本情報!$F41,4) ->  | T19: =getNumKeta0(基本情報!$E41+基本情報!$F41,3) ->  | U19: =getNumKeta0(基本情報!$E41+基本情報!$F41,2) ->  | V19: =getNumKeta0(基本情報!$E41+基本情報!$F41,1) ->  | W19: =getNumKeta0(基本情報!$G41,7) ->  | X19: =getNumKeta0(基本情報!$G41,6) ->  | Y19: =getNumKeta0(基本情報!$G41,5) ->  | Z19: =getNumKeta0(基本情報!$G41,4) ->  | AA19: =getNumKeta0(基本情報!$G41,3) ->  | AB19: =getNumKeta0(基本情報!$G41,2) ->  | AC19: =getnumketa(基本情報!M42,1) -> 0 | AD19: =getNumKeta0(基本情報!$G41,1) ->  | AF19: =getNumKeta0(基本情報!$H41,9) ->  | AH19: =getNumKeta0(基本情報!$H41,8) ->  | AJ19: =getNumKeta0(基本情報!$H41,7) ->  | AL19: =getNumKeta0(基本情報!$H41,6) ->  | AN19: =getNumKeta0(基本情報!$H41,5) ->  | AP19: =getNumKeta0(基本情報!$H41,4) ->  | AR19: =getNumKeta0(基本情報!$H41,3) ->  | AT19: =getNumKeta0(基本情報!$H41,2) ->  | AW19: =getNumKeta0(基本情報!$H41,1) -> 
A20: =基本情報!$B42 -> 0 | N20: =getNumKeta0(基本情報!$E42+基本情報!$F42,9) ->  | O20: =getNumKeta0(基本情報!$E42+基本情報!$F42,8) ->  | P20: =getNumKeta0(基本情報!$E42+基本情報!$F42,7) ->  | Q20: =getNumKeta0(基本情報!$E42+基本情報!$F42,6) ->  | R20: =getNumKeta0(基本情報!$E42+基本情報!$F42,5) ->  | S20: =getNumKeta0(基本情報!$E42+基本情報!$F42,4) ->  | T20: =getNumKeta0(基本情報!$E42+基本情報!$F42,3) ->  | U20: =getNumKeta0(基本情報!$E42+基本情報!$F42,2) ->  | V20: =getNumKeta0(基本情報!$E42+基本情報!$F42,1) ->  | W20: =getNumKeta0(基本情報!$G42,7) ->  | X20: =getNumKeta0(基本情報!$G42,6) ->  | Y20: =getNumKeta0(基本情報!$G42,5) ->  | Z20: =getNumKeta0(基本情報!$G42,4) ->  | AA20: =getNumKeta0(基本情報!$G42,3) ->  | AB20: =getNumKeta0(基本情報!$G42,2) ->  | AC20: =getnumketa(基本情報!M43,1) -> 0 | AD20: =getNumKeta0(基本情報!$G42,1) ->  | AF20: =getNumKeta0(基本情報!$H42,9) ->  | AH20: =getNumKeta0(基本情報!$H42,8) ->  | AJ20: =getNumKeta0(基本情報!$H42,7) ->  | AL20: =getNumKeta0(基本情報!$H42,6) ->  | AN20: =getNumKeta0(基本情報!$H42,5) ->  | AP20: =getNumKeta0(基本情報!$H42,4) ->  | AR20: =getNumKeta0(基本情報!$H42,3) ->  | AT20: =getNumKeta0(基本情報!$H42,2) ->  | AW20: =getNumKeta0(基本情報!$H42,1) ->  | AX20: 訂正内容
A21: =基本情報!$B43 -> 0 | N21: =getNumKeta0(基本情報!$E43+基本情報!$F43,9) ->  | O21: =getNumKeta0(基本情報!$E43+基本情報!$F43,8) ->  | P21: =getNumKeta0(基本情報!$E43+基本情報!$F43,7) ->  | Q21: =getNumKeta0(基本情報!$E43+基本情報!$F43,6) ->  | R21: =getNumKeta0(基本情報!$E43+基本情報!$F43,5) ->  | S21: =getNumKeta0(基本情報!$E43+基本情報!$F43,4) ->  | T21: =getNumKeta0(基本情報!$E43+基本情報!$F43,3) ->  | U21: =getNumKeta0(基本情報!$E43+基本情報!$F43,2) ->  | V21: =getNumKeta0(基本情報!$E43+基本情報!$F43,1) ->  | W21: =getNumKeta0(基本情報!$G43,7) ->  | X21: =getNumKeta0(基本情報!$G43,6) ->  | Y21: =getNumKeta0(基本情報!$G43,5) ->  | Z21: =getNumKeta0(基本情報!$G43,4) ->  | AA21: =getNumKeta0(基本情報!$G43,3) ->  | AB21: =getNumKeta0(基本情報!$G43,2) ->  | AC21: =getnumketa(基本情報!M44,1) -> 0 | AD21: =getNumKeta0(基本情報!$G43,1) ->  | AF21: =getNumKeta0(基本情報!$H43,9) ->  | AH21: =getNumKeta0(基本情報!$H43,8) ->  | AJ21: =getNumKeta0(基本情報!$H43,7) ->  | AL21: =getNumKeta0(基本情報!$H43,6) ->  | AN21: =getNumKeta0(基本情報!$H43,5) ->  | AP21: =getNumKeta0(基本情報!$H43,4) ->  | AR21: =getNumKeta0(基本情報!$H43,3) ->  | AT21: =getNumKeta0(基本情報!$H43,2) ->  | AW21: =getNumKeta0(基本情報!$H43,1) -> 
B23: （注） | C23: １．請求書の締切日は、原則末日５日迄提出願います。又、支払は締の翌月20日となります。
C24: 但し、提出期限が当社休日の場合は前日とし、支払日は翌銀行営業日と致します。
C25: 尚、例外として4月と12月は、締日と必着日が毎年異なりますので十分ご注意ください。（別紙カレンダー参照）
C26: 期日迄に提出されない場合は、翌月計上となります。
C27: ２．当社への登録内容に変更を生じた場合は、速やかに「取引情報（新規・変更）届出書」を提出願います。 | AZ27: 貴社→経理(控)
B28: 管理表（一般用） | AX28: 適格請求書発行事業者登録 | AZ28: =基本情報_事業者登録 -> 有 | BC28: 登録番号 : | BJ28: =IF(基本情報_登録番号="","",基本情報_登録番号) -> T1-2345-6789-0123 | BW28: ="P 2/"&COUNTA(基本情報_工事名称1, 基本情報_工事名称2, 基本情報_工事名称3) -> P 2/1
AC29: 変更時当社記入欄 | AV29: 取引先コード | AY29: =基本情報_取引先コード -> 999999 | AZ29: 締 日 | BE29: =基本情報_請求締日 -> 2023-01-31
A30: 株式会社 丸 高 御中 | BJ30: 振込銀行 | BN30: =基本情報_銀行名 -> 荘内 | BU30: 銀 行 | BV30: =基本情報_支店名 -> 若竹町 | CC30: 支 店
A31: 下記の通り御請求申し上げます。 | M31: ="税率 ( " & (基本情報_消費税率*100) & "% )" -> 税率 ( 10% ) | AW31: （住所） | AY31: =基本情報_住所 -> 酒田市○○○○１－１ | BJ31: 銀行ｺｰﾄﾞ | BN31: 4桁 | BP31: =基本情報_銀行コード -> 121 | BU31: 支店 ｺｰﾄﾞ | BW31: 3桁 | BY31: =基本情報_支店コード -> 133
A32: 前月請求額 | M32: 税抜金額計 | AW32: （社名） | AY32: =基本情報_社名 -> (株）○○建設 | BJ32: 口座番号 | BN32: =基本情報_口座種別 -> 当 座 | BS32: =基本情報_口座番号 -> 1234567
A33: 入 金 額 | M33: 請求明細 消費税合計 | BJ33: 口座名義:漢字
A34: 値 引 額 | M34: 税込当月請求額 | AW34: （電話） | AY34: =基本情報_電話番号 -> 0234 - 00 - 0000 | BJ34: =基本情報_口座名義漢字 -> (株）○○建設
A35: 繰越金額 | M35: 税込当月総請求額 | BJ35: 口座名義:カナ | BP35: =基本情報_口座名義カナ -> ｶ)ﾏﾙﾏﾙｹﾝｾﾂ
A36: 工 事 名 | L36: ＣＫ | N36: 税抜金額 | W36: 消費税 | AF36: 税込金額 | AX36: 工 事 名 | BA36: ＣＫ | BB36: 税抜金額 | BL36: 消費税 | BT36: 税込金額
A37: =基本情報!$B52 -> 0 | N37: =getNumKeta0(基本情報!$E52+基本情報!$F52,9) ->  | O37: =getNumKeta0(基本情報!$E52+基本情報!$F52,8) ->  | P37: =getNumKeta0(基本情報!$E52+基本情報!$F52,7) ->  | Q37: =getNumKeta0(基本情報!$E52+基本情報!$F52,6) ->  | R37: =getNumKeta0(基本情報!$E52+基本情報!$F52,5) ->  | S37: =getNumKeta0(基本情報!$E52+基本情報!$F52,4) ->  | T37: =getNumKeta0(基本情報!$E52+基本情報!$F52,3) ->  | U37: =getNumKeta0(基本情報!$E52+基本情報!$F52,2) ->  | V37: =getNumKeta0(基本情報!$E52+基本情報!$F52,1) ->  | W37: =getNumKeta0(基本情報!$G52,7) ->  | X37: =getNumKeta0(基本情報!$G52,6) ->  | Y37: =getNumKeta0(基本情報!$G52,5) ->  | Z37: =getNumKeta0(基本情報!$G52,4) ->  | AA37: =getNumKeta0(基本情報!$G52,3) ->  | AB37: =getNumKeta0(基本情報!$G52,2) ->  | AC37: =getnumketa(基本情報!M60,1) -> 0 | AD37: =getNumKeta0(基本情報!$G52,1) ->  | AF37: =getNumKeta0(基本情報!$H52,9) ->  | AH37: =getNumKeta0(基本情報!$H52,8) ->  | AJ37: =getNumKeta0(基本情報!$H52,7) ->  | AL37: =getNumKeta0(基本情報!$H52,6) ->  | AN37: =getNumKeta0(基本情報!$H52,5) ->  | AP37: =getNumKeta0(基本情報!$H52,4) ->  | AR37: =getNumKeta0(基本情報!$H52,3) ->  | AT37: =getNumKeta0(基本情報!$H52,2) ->  | AW37: =getNumKeta0(基本情報!$H52,1) ->  | AX37: =基本情報!$B64 -> 0 | BB37: =getNumKeta0(基本情報!$E64+基本情報!$F64,9) ->  | BC37: =getNumKeta0(基本情報!$E64+基本情報!$F64,8) ->  | BD37: =getNumKeta0(基本情報!$E64+基本情報!$F64,7) ->  | BE37: =getnumketa(基本情報!AQ60,6) ->  | BF37: =getNumKeta0(基本情報!$E64+基本情報!$F64,6) ->  | BG37: =getNumKeta0(基本情報!$E64+基本情報!$F64,5) ->  | BH37: =getNumKeta0(基本情報!$E64+基本情報!$F64,4) ->  | BI37: =getNumKeta0(基本情報!$E64+基本情報!$F64,3) ->  | BJ37: =getNumKeta0(基本情報!$E64+基本情報!$F64,2) ->  | BK37: =getNumKeta0(基本情報!$E64+基本情報!$F64,1) ->  | BL37: =getNumKeta0(基本情報!$G64,7) ->  | BM37: =getNumKeta0(基本情報!$G64,6) ->  | BN37: =getNumKeta0(基本情報!$G64,5) ->  | BO37: =getNumKeta0(基本情報!$G64,4) ->  | BP37: =getnumketa(基本情報!N72,4) ->  | BQ37: =getNumKeta0(基本情報!$G64,3) ->  | BR37: =getNumKeta0(基本情報!$G64,2) ->  | BS37: =getNumKeta0(基本情報!$G64,1) ->  | BT37: =getNumKeta0(基本情報!$H64,9) ->  | BU37: =getNumKeta0(基本情報!$H64,8) ->  | BV37: =getNumKeta0(基本情報!$H64,7) ->  | BW37: =getNumKeta0(基本情報!$H64,6) ->  | BX37: =getNumKeta0(基本情報!$H64,5) ->  | BZ37: =getNumKeta0(基本情報!$H64,4) ->  | CA37: =getNumKeta0(基本情報!$H64,3) ->  | CB37: =getNumKeta0(基本情報!$H64,2) ->  | CC37: =getNumKeta0(基本情報!$H64,1) -> 
A38: =基本情報!$B53 -> 0 | N38: =getNumKeta0(基本情報!$E53+基本情報!$F53,9) ->  | O38: =getNumKeta0(基本情報!$E53+基本情報!$F53,8) ->  | P38: =getNumKeta0(基本情報!$E53+基本情報!$F53,7) ->  | Q38: =getNumKeta0(基本情報!$E53+基本情報!$F53,6) ->  | R38: =getNumKeta0(基本情報!$E53+基本情報!$F53,5) ->  | S38: =getNumKeta0(基本情報!$E53+基本情報!$F53,4) ->  | T38: =getNumKeta0(基本情報!$E53+基本情報!$F53,3) ->  | U38: =getNumKeta0(基本情報!$E53+基本情報!$F53,2) ->  | V38: =getNumKeta0(基本情報!$E53+基本情報!$F53,1) ->  | W38: =getNumKeta0(基本情報!$G53,7) ->  | X38: =getNumKeta0(基本情報!$G53,6) ->  | Y38: =getNumKeta0(基本情報!$G53,5) ->  | Z38: =getNumKeta0(基本情報!$G53,4) ->  | AA38: =getNumKeta0(基本情報!$G53,3) ->  | AB38: =getNumKeta0(基本情報!$G53,2) ->  | AC38: =getnumketa(基本情報!M61,1) -> 0 | AD38: =getNumKeta0(基本情報!$G53,1) ->  | AF38: =getNumKeta0(基本情報!$H53,9) ->  | AH38: =getNumKeta0(基本情報!$H53,8) ->  | AJ38: =getNumKeta0(基本情報!$H53,7) ->  | AL38: =getNumKeta0(基本情報!$H53,6) ->  | AN38: =getNumKeta0(基本情報!$H53,5) ->  | AP38: =getNumKeta0(基本情報!$H53,4) ->  | AR38: =getNumKeta0(基本情報!$H53,3) ->  | AT38: =getNumKeta0(基本情報!$H53,2) ->  | AW38: =getNumKeta0(基本情報!$H53,1) ->  | AX38: =基本情報!$B65 -> 0 | BB38: =getNumKeta0(基本情報!$E65+基本情報!$F65,9) ->  | BC38: =getNumKeta0(基本情報!$E65+基本情報!$F65,8) ->  | BD38: =getNumKeta0(基本情報!$E65+基本情報!$F65,7) ->  | BE38: =getnumketa(基本情報!AQ61,6) ->  | BF38: =getNumKeta0(基本情報!$E65+基本情報!$F65,6) ->  | BG38: =getNumKeta0(基本情報!$E65+基本情報!$F65,5) ->  | BH38: =getNumKeta0(基本情報!$E65+基本情報!$F65,4) ->  | BI38: =getNumKeta0(基本情報!$E65+基本情報!$F65,3) ->  | BJ38: =getNumKeta0(基本情報!$E65+基本情報!$F65,2) ->  | BK38: =getNumKeta0(基本情報!$E65+基本情報!$F65,1) ->  | BL38: =getNumKeta0(基本情報!$G65,7) ->  | BM38: =getNumKeta0(基本情報!$G65,6) ->  | BN38: =getNumKeta0(基本情報!$G65,5) ->  | BO38: =getNumKeta0(基本情報!$G65,4) ->  | BP38: =getnumketa(基本情報!N73,4) ->  | BQ38: =getNumKeta0(基本情報!$G65,3) ->  | BR38: =getNumKeta0(基本情報!$G65,2) ->  | BS38: =getNumKeta0(基本情報!$G65,1) ->  | BT38: =getNumKeta0(基本情報!$H65,9) ->  | BU38: =getNumKeta0(基本情報!$H65,8) ->  | BV38: =getNumKeta0(基本情報!$H65,7) ->  | BW38: =getNumKeta0(基本情報!$H65,6) ->  | BX38: =getNumKeta0(基本情報!$H65,5) ->  | BZ38: =getNumKeta0(基本情報!$H65,4) ->  | CA38: =getNumKeta0(基本情報!$H65,3) ->  | CB38: =getNumKeta0(基本情報!$H65,2) ->  | CC38: =getNumKeta0(基本情報!$H65,1) -> 
A39: =基本情報!$B54 -> 0 | N39: =getNumKeta0(基本情報!$E54+基本情報!$F54,9) ->  | O39: =getNumKeta0(基本情報!$E54+基本情報!$F54,8) ->  | P39: =getNumKeta0(基本情報!$E54+基本情報!$F54,7) ->  | Q39: =getNumKeta0(基本情報!$E54+基本情報!$F54,6) ->  | R39: =getNumKeta0(基本情報!$E54+基本情報!$F54,5) ->  | S39: =getNumKeta0(基本情報!$E54+基本情報!$F54,4) ->  | T39: =getNumKeta0(基本情報!$E54+基本情報!$F54,3) ->  | U39: =getNumKeta0(基本情報!$E54+基本情報!$F54,2) ->  | V39: =getNumKeta0(基本情報!$E54+基本情報!$F54,1) ->  | W39: =getNumKeta0(基本情報!$G54,7) ->  | X39: =getNumKeta0(基本情報!$G54,6) ->  | Y39: =getNumKeta0(基本情報!$G54,5) ->  | Z39: =getNumKeta0(基本情報!$G54,4) ->  | AA39: =getNumKeta0(基本情報!$G54,3) ->  | AB39: =getNumKeta0(基本情報!$G54,2) ->  | AC39: =getnumketa(基本情報!M62,1) -> 0 | AD39: =getNumKeta0(基本情報!$G54,1) ->  | AF39: =getNumKeta0(基本情報!$H54,9) ->  | AH39: =getNumKeta0(基本情報!$H54,8) ->  | AJ39: =getNumKeta0(基本情報!$H54,7) ->  | AL39: =getNumKeta0(基本情報!$H54,6) ->  | AN39: =getNumKeta0(基本情報!$H54,5) ->  | AP39: =getNumKeta0(基本情報!$H54,4) ->  | AR39: =getNumKeta0(基本情報!$H54,3) ->  | AT39: =getNumKeta0(基本情報!$H54,2) ->  | AW39: =getNumKeta0(基本情報!$H54,1) ->  | AX39: =基本情報!$B66 -> 0 | BB39: =getNumKeta0(基本情報!$E66+基本情報!$F66,9) ->  | BC39: =getNumKeta0(基本情報!$E66+基本情報!$F66,8) ->  | BD39: =getNumKeta0(基本情報!$E66+基本情報!$F66,7) ->  | BE39: =getnumketa(基本情報!AQ62,6) ->  | BF39: =getNumKeta0(基本情報!$E66+基本情報!$F66,6) ->  | BG39: =getNumKeta0(基本情報!$E66+基本情報!$F66,5) ->  | BH39: =getNumKeta0(基本情報!$E66+基本情報!$F66,4) ->  | BI39: =getNumKeta0(基本情報!$E66+基本情報!$F66,3) ->  | BJ39: =getNumKeta0(基本情報!$E66+基本情報!$F66,2) ->  | BK39: =getNumKeta0(基本情報!$E66+基本情報!$F66,1) ->  | BL39: =getNumKeta0(基本情報!$G66,7) ->  | BM39: =getNumKeta0(基本情報!$G66,6) ->  | BN39: =getNumKeta0(基本情報!$G66,5) ->  | BO39: =getNumKeta0(基本情報!$G66,4) ->  | BP39: =getnumketa(基本情報!N74,4) ->  | BQ39: =getNumKeta0(基本情報!$G66,3) ->  | BR39: =getNumKeta0(基本情報!$G66,2) ->  | BS39: =getNumKeta0(基本情報!$G66,1) ->  | BT39: =getNumKeta0(基本情報!$H66,9) ->  | BU39: =getNumKeta0(基本情報!$H66,8) ->  | BV39: =getNumKeta0(基本情報!$H66,7) ->  | BW39: =getNumKeta0(基本情報!$H66,6) ->  | BX39: =getNumKeta0(基本情報!$H66,5) ->  | BZ39: =getNumKeta0(基本情報!$H66,4) ->  | CA39: =getNumKeta0(基本情報!$H66,3) ->  | CB39: =getNumKeta0(基本情報!$H66,2) ->  | CC39: =getNumKeta0(基本情報!$H66,1) -> 
A40: =基本情報!$B55 -> 0 | N40: =getNumKeta0(基本情報!$E55+基本情報!$F55,9) ->  | O40: =getNumKeta0(基本情報!$E55+基本情報!$F55,8) ->  | P40: =getNumKeta0(基本情報!$E55+基本情報!$F55,7) ->  | Q40: =getNumKeta0(基本情報!$E55+基本情報!$F55,6) ->  | R40: =getNumKeta0(基本情報!$E55+基本情報!$F55,5) ->  | S40: =getNumKeta0(基本情報!$E55+基本情報!$F55,4) ->  | T40: =getNumKeta0(基本情報!$E55+基本情報!$F55,3) ->  | U40: =getNumKeta0(基本情報!$E55+基本情報!$F55,2) ->  | V40: =getNumKeta0(基本情報!$E55+基本情報!$F55,1) ->  | W40: =getNumKeta0(基本情報!$G55,7) ->  | X40: =getNumKeta0(基本情報!$G55,6) ->  | Y40: =getNumKeta0(基本情報!$G55,5) ->  | Z40: =getNumKeta0(基本情報!$G55,4) ->  | AA40: =getNumKeta0(基本情報!$G55,3) ->  | AB40: =getNumKeta0(基本情報!$G55,2) ->  | AC40: =getnumketa(基本情報!M63,1) -> 0 | AD40: =getNumKeta0(基本情報!$G55,1) ->  | AF40: =getNumKeta0(基本情報!$H55,9) ->  | AH40: =getNumKeta0(基本情報!$H55,8) ->  | AJ40: =getNumKeta0(基本情報!$H55,7) ->  | AL40: =getNumKeta0(基本情報!$H55,6) ->  | AN40: =getNumKeta0(基本情報!$H55,5) ->  | AP40: =getNumKeta0(基本情報!$H55,4) ->  | AR40: =getNumKeta0(基本情報!$H55,3) ->  | AT40: =getNumKeta0(基本情報!$H55,2) ->  | AW40: =getNumKeta0(基本情報!$H55,1) ->  | AX40: =基本情報!$B67 -> 0 | BB40: =getNumKeta0(基本情報!$E67+基本情報!$F67,9) ->  | BC40: =getNumKeta0(基本情報!$E67+基本情報!$F67,8) ->  | BD40: =getNumKeta0(基本情報!$E67+基本情報!$F67,7) ->  | BE40: =getnumketa(基本情報!AQ63,6) ->  | BF40: =getNumKeta0(基本情報!$E67+基本情報!$F67,6) ->  | BG40: =getNumKeta0(基本情報!$E67+基本情報!$F67,5) ->  | BH40: =getNumKeta0(基本情報!$E67+基本情報!$F67,4) ->  | BI40: =getNumKeta0(基本情報!$E67+基本情報!$F67,3) ->  | BJ40: =getNumKeta0(基本情報!$E67+基本情報!$F67,2) ->  | BK40: =getNumKeta0(基本情報!$E67+基本情報!$F67,1) ->  | BL40: =getNumKeta0(基本情報!$G67,7) ->  | BM40: =getNumKeta0(基本情報!$G67,6) ->  | BN40: =getNumKeta0(基本情報!$G67,5) ->  | BO40: =getNumKeta0(基本情報!$G67,4) ->  | BP40: =getnumketa(基本情報!N75,4) ->  | BQ40: =getNumKeta0(基本情報!$G67,3) ->  | BR40: =getNumKeta0(基本情報!$G67,2) ->  | BS40: =getNumKeta0(基本情報!$G67,1) ->  | BT40: =getNumKeta0(基本情報!$H67,9) ->  | BU40: =getNumKeta0(基本情報!$H67,8) ->  | BV40: =getNumKeta0(基本情報!$H67,7) ->  | BW40: =getNumKeta0(基本情報!$H67,6) ->  | BX40: =getNumKeta0(基本情報!$H67,5) ->  | BZ40: =getNumKeta0(基本情報!$H67,4) ->  | CA40: =getNumKeta0(基本情報!$H67,3) ->  | CB40: =getNumKeta0(基本情報!$H67,2) ->  | CC40: =getNumKeta0(基本情報!$H67,1) -> 
A41: =基本情報!$B56 -> 0 | N41: =getNumKeta0(基本情報!$E56+基本情報!$F56,9) ->  | O41: =getNumKeta0(基本情報!$E56+基本情報!$F56,8) ->  | P41: =getNumKeta0(基本情報!$E56+基本情報!$F56,7) ->  | Q41: =getNumKeta0(基本情報!$E56+基本情報!$F56,6) ->  | R41: =getNumKeta0(基本情報!$E56+基本情報!$F56,5) ->  | S41: =getNumKeta0(基本情報!$E56+基本情報!$F56,4) ->  | T41: =getNumKeta0(基本情報!$E56+基本情報!$F56,3) ->  | U41: =getNumKeta0(基本情報!$E56+基本情報!$F56,2) ->  | V41: =getNumKeta0(基本情報!$E56+基本情報!$F56,1) ->  | W41: =getNumKeta0(基本情報!$G56,7) ->  | X41: =getNumKeta0(基本情報!$G56,6) ->  | Y41: =getNumKeta0(基本情報!$G56,5) ->  | Z41: =getNumKeta0(基本情報!$G56,4) ->  | AA41: =getNumKeta0(基本情報!$G56,3) ->  | AB41: =getNumKeta0(基本情報!$G56,2) ->  | AC41: =getnumketa(基本情報!M64,1) -> 0 | AD41: =getNumKeta0(基本情報!$G56,1) ->  | AF41: =getNumKeta0(基本情報!$H56,9) ->  | AH41: =getNumKeta0(基本情報!$H56,8) ->  | AJ41: =getNumKeta0(基本情報!$H56,7) ->  | AL41: =getNumKeta0(基本情報!$H56,6) ->  | AN41: =getNumKeta0(基本情報!$H56,5) ->  | AP41: =getNumKeta0(基本情報!$H56,4) ->  | AR41: =getNumKeta0(基本情報!$H56,3) ->  | AT41: =getNumKeta0(基本情報!$H56,2) ->  | AW41: =getNumKeta0(基本情報!$H56,1) ->  | AX41: =基本情報!$B68 -> 0 | BB41: =getNumKeta0(基本情報!$E68+基本情報!$F68,9) ->  | BC41: =getNumKeta0(基本情報!$E68+基本情報!$F68,8) ->  | BD41: =getNumKeta0(基本情報!$E68+基本情報!$F68,7) ->  | BE41: =getnumketa(基本情報!AQ64,6) ->  | BF41: =getNumKeta0(基本情報!$E68+基本情報!$F68,6) ->  | BG41: =getNumKeta0(基本情報!$E68+基本情報!$F68,5) ->  | BH41: =getNumKeta0(基本情報!$E68+基本情報!$F68,4) ->  | BI41: =getNumKeta0(基本情報!$E68+基本情報!$F68,3) ->  | BJ41: =getNumKeta0(基本情報!$E68+基本情報!$F68,2) ->  | BK41: =getNumKeta0(基本情報!$E68+基本情報!$F68,1) ->  | BL41: =getNumKeta0(基本情報!$G68,7) ->  | BM41: =getNumKeta0(基本情報!$G68,6) ->  | BN41: =getNumKeta0(基本情報!$G68,5) ->  | BO41: =getNumKeta0(基本情報!$G68,4) ->  | BP41: =getnumketa(基本情報!N76,4) ->  | BQ41: =getNumKeta0(基本情報!$G68,3) ->  | BR41: =getNumKeta0(基本情報!$G68,2) ->  | BS41: =getNumKeta0(基本情報!$G68,1) ->  | BT41: =getNumKeta0(基本情報!$H68,9) ->  | BU41: =getNumKeta0(基本情報!$H68,8) ->  | BV41: =getNumKeta0(基本情報!$H68,7) ->  | BW41: =getNumKeta0(基本情報!$H68,6) ->  | BX41: =getNumKeta0(基本情報!$H68,5) ->  | BZ41: =getNumKeta0(基本情報!$H68,4) ->  | CA41: =getNumKeta0(基本情報!$H68,3) ->  | CB41: =getNumKeta0(基本情報!$H68,2) ->  | CC41: =getNumKeta0(基本情報!$H68,1) -> 
A42: =基本情報!$B57 -> 0 | N42: =getNumKeta0(基本情報!$E57+基本情報!$F57,9) ->  | O42: =getNumKeta0(基本情報!$E57+基本情報!$F57,8) ->  | P42: =getNumKeta0(基本情報!$E57+基本情報!$F57,7) ->  | Q42: =getNumKeta0(基本情報!$E57+基本情報!$F57,6) ->  | R42: =getNumKeta0(基本情報!$E57+基本情報!$F57,5) ->  | S42: =getNumKeta0(基本情報!$E57+基本情報!$F57,4) ->  | T42: =getNumKeta0(基本情報!$E57+基本情報!$F57,3) ->  | U42: =getNumKeta0(基本情報!$E57+基本情報!$F57,2) ->  | V42: =getNumKeta0(基本情報!$E57+基本情報!$F57,1) ->  | W42: =getNumKeta0(基本情報!$G57,7) ->  | X42: =getNumKeta0(基本情報!$G57,6) ->  | Y42: =getNumKeta0(基本情報!$G57,5) ->  | Z42: =getNumKeta0(基本情報!$G57,4) ->  | AA42: =getNumKeta0(基本情報!$G57,3) ->  | AB42: =getNumKeta0(基本情報!$G57,2) ->  | AC42: =getnumketa(基本情報!M65,1) -> 0 | AD42: =getNumKeta0(基本情報!$G57,1) ->  | AF42: =getNumKeta0(基本情報!$H57,9) ->  | AH42: =getNumKeta0(基本情報!$H57,8) ->  | AJ42: =getNumKeta0(基本情報!$H57,7) ->  | AL42: =getNumKeta0(基本情報!$H57,6) ->  | AN42: =getNumKeta0(基本情報!$H57,5) ->  | AP42: =getNumKeta0(基本情報!$H57,4) ->  | AR42: =getNumKeta0(基本情報!$H57,3) ->  | AT42: =getNumKeta0(基本情報!$H57,2) ->  | AW42: =getNumKeta0(基本情報!$H57,1) ->  | AX42: =基本情報!$B69 -> 0 | BB42: =getNumKeta0(基本情報!$E69+基本情報!$F69,9) ->  | BC42: =getNumKeta0(基本情報!$E69+基本情報!$F69,8) ->  | BD42: =getNumKeta0(基本情報!$E69+基本情報!$F69,7) ->  | BE42: =getnumketa(基本情報!AQ65,6) ->  | BF42: =getNumKeta0(基本情報!$E69+基本情報!$F69,6) ->  | BG42: =getNumKeta0(基本情報!$E69+基本情報!$F69,5) ->  | BH42: =getNumKeta0(基本情報!$E69+基本情報!$F69,4) ->  | BI42: =getNumKeta0(基本情報!$E69+基本情報!$F69,3) ->  | BJ42: =getNumKeta0(基本情報!$E69+基本情報!$F69,2) ->  | BK42: =getNumKeta0(基本情報!$E69+基本情報!$F69,1) ->  | BL42: =getNumKeta0(基本情報!$G69,7) ->  | BM42: =getNumKeta0(基本情報!$G69,6) ->  | BN42: =getNumKeta0(基本情報!$G69,5) ->  | BO42: =getNumKeta0(基本情報!$G69,4) ->  | BP42: =getnumketa(基本情報!N77,4) ->  | BQ42: =getNumKeta0(基本情報!$G69,3) ->  | BR42: =getNumKeta0(基本情報!$G69,2) ->  | BS42: =getNumKeta0(基本情報!$G69,1) ->  | BT42: =getNumKeta0(基本情報!$H69,9) ->  | BU42: =getNumKeta0(基本情報!$H69,8) ->  | BV42: =getNumKeta0(基本情報!$H69,7) ->  | BW42: =getNumKeta0(基本情報!$H69,6) ->  | BX42: =getNumKeta0(基本情報!$H69,5) ->  | BZ42: =getNumKeta0(基本情報!$H69,4) ->  | CA42: =getNumKeta0(基本情報!$H69,3) ->  | CB42: =getNumKeta0(基本情報!$H69,2) ->  | CC42: =getNumKeta0(基本情報!$H69,1) -> 
A43: =基本情報!$B58 -> 0 | N43: =getNumKeta0(基本情報!$E58+基本情報!$F58,9) ->  | O43: =getNumKeta0(基本情報!$E58+基本情報!$F58,8) ->  | P43: =getNumKeta0(基本情報!$E58+基本情報!$F58,7) ->  | Q43: =getNumKeta0(基本情報!$E58+基本情報!$F58,6) ->  | R43: =getNumKeta0(基本情報!$E58+基本情報!$F58,5) ->  | S43: =getNumKeta0(基本情報!$E58+基本情報!$F58,4) ->  | T43: =getNumKeta0(基本情報!$E58+基本情報!$F58,3) ->  | U43: =getNumKeta0(基本情報!$E58+基本情報!$F58,2) ->  | V43: =getNumKeta0(基本情報!$E58+基本情報!$F58,1) ->  | W43: =getNumKeta0(基本情報!$G58,7) ->  | X43: =getNumKeta0(基本情報!$G58,6) ->  | Y43: =getNumKeta0(基本情報!$G58,5) ->  | Z43: =getNumKeta0(基本情報!$G58,4) ->  | AA43: =getNumKeta0(基本情報!$G58,3) ->  | AB43: =getNumKeta0(基本情報!$G58,2) ->  | AC43: =getnumketa(基本情報!M66,1) -> 0 | AD43: =getNumKeta0(基本情報!$G58,1) ->  | AF43: =getNumKeta0(基本情報!$H58,9) ->  | AH43: =getNumKeta0(基本情報!$H58,8) ->  | AJ43: =getNumKeta0(基本情報!$H58,7) ->  | AL43: =getNumKeta0(基本情報!$H58,6) ->  | AN43: =getNumKeta0(基本情報!$H58,5) ->  | AP43: =getNumKeta0(基本情報!$H58,4) ->  | AR43: =getNumKeta0(基本情報!$H58,3) ->  | AT43: =getNumKeta0(基本情報!$H58,2) ->  | AW43: =getNumKeta0(基本情報!$H58,1) ->  | AX43: =基本情報!$B70 -> 0 | BB43: =getNumKeta0(基本情報!$E70+基本情報!$F70,9) ->  | BC43: =getNumKeta0(基本情報!$E70+基本情報!$F70,8) ->  | BD43: =getNumKeta0(基本情報!$E70+基本情報!$F70,7) ->  | BE43: =getnumketa(基本情報!AQ66,6) ->  | BF43: =getNumKeta0(基本情報!$E70+基本情報!$F70,6) ->  | BG43: =getNumKeta0(基本情報!$E70+基本情報!$F70,5) ->  | BH43: =getNumKeta0(基本情報!$E70+基本情報!$F70,4) ->  | BI43: =getNumKeta0(基本情報!$E70+基本情報!$F70,3) ->  | BJ43: =getNumKeta0(基本情報!$E70+基本情報!$F70,2) ->  | BK43: =getNumKeta0(基本情報!$E70+基本情報!$F70,1) ->  | BL43: =getNumKeta0(基本情報!$G70,7) ->  | BM43: =getNumKeta0(基本情報!$G70,6) ->  | BN43: =getNumKeta0(基本情報!$G70,5) ->  | BO43: =getNumKeta0(基本情報!$G70,4) ->  | BP43: =getnumketa(基本情報!N78,4) ->  | BQ43: =getNumKeta0(基本情報!$G70,3) ->  | BR43: =getNumKeta0(基本情報!$G70,2) ->  | BS43: =getNumKeta0(基本情報!$G70,1) ->  | BT43: =getNumKeta0(基本情報!$H70,9) ->  | BU43: =getNumKeta0(基本情報!$H70,8) ->  | BV43: =getNumKeta0(基本情報!$H70,7) ->  | BW43: =getNumKeta0(基本情報!$H70,6) ->  | BX43: =getNumKeta0(基本情報!$H70,5) ->  | BZ43: =getNumKeta0(基本情報!$H70,4) ->  | CA43: =getNumKeta0(基本情報!$H70,3) ->  | CB43: =getNumKeta0(基本情報!$H70,2) ->  | CC43: =getNumKeta0(基本情報!$H70,1) -> 
A44: =基本情報!$B59 -> 0 | N44: =getNumKeta0(基本情報!$E59+基本情報!$F59,9) ->  | O44: =getNumKeta0(基本情報!$E59+基本情報!$F59,8) ->  | P44: =getNumKeta0(基本情報!$E59+基本情報!$F59,7) ->  | Q44: =getNumKeta0(基本情報!$E59+基本情報!$F59,6) ->  | R44: =getNumKeta0(基本情報!$E59+基本情報!$F59,5) ->  | S44: =getNumKeta0(基本情報!$E59+基本情報!$F59,4) ->  | T44: =getNumKeta0(基本情報!$E59+基本情報!$F59,3) ->  | U44: =getNumKeta0(基本情報!$E59+基本情報!$F59,2) ->  | V44: =getNumKeta0(基本情報!$E59+基本情報!$F59,1) ->  | W44: =getNumKeta0(基本情報!$G59,7) ->  | X44: =getNumKeta0(基本情報!$G59,6) ->  | Y44: =getNumKeta0(基本情報!$G59,5) ->  | Z44: =getNumKeta0(基本情報!$G59,4) ->  | AA44: =getNumKeta0(基本情報!$G59,3) ->  | AB44: =getNumKeta0(基本情報!$G59,2) ->  | AC44: =getnumketa(基本情報!M67,1) -> 0 | AD44: =getNumKeta0(基本情報!$G59,1) ->  | AF44: =getNumKeta0(基本情報!$H59,9) ->  | AH44: =getNumKeta0(基本情報!$H59,8) ->  | AJ44: =getNumKeta0(基本情報!$H59,7) ->  | AL44: =getNumKeta0(基本情報!$H59,6) ->  | AN44: =getNumKeta0(基本情報!$H59,5) ->  | AP44: =getNumKeta0(基本情報!$H59,4) ->  | AR44: =getNumKeta0(基本情報!$H59,3) ->  | AT44: =getNumKeta0(基本情報!$H59,2) ->  | AW44: =getNumKeta0(基本情報!$H59,1) ->  | AX44: =基本情報!$B71 -> 0 | BB44: =getNumKeta0(基本情報!$E71+基本情報!$F71,9) ->  | BC44: =getNumKeta0(基本情報!$E71+基本情報!$F71,8) ->  | BD44: =getNumKeta0(基本情報!$E71+基本情報!$F71,7) ->  | BE44: =getnumketa(基本情報!AQ67,6) ->  | BF44: =getNumKeta0(基本情報!$E71+基本情報!$F71,6) ->  | BG44: =getNumKeta0(基本情報!$E71+基本情報!$F71,5) ->  | BH44: =getNumKeta0(基本情報!$E71+基本情報!$F71,4) ->  | BI44: =getNumKeta0(基本情報!$E71+基本情報!$F71,3) ->  | BJ44: =getNumKeta0(基本情報!$E71+基本情報!$F71,2) ->  | BK44: =getNumKeta0(基本情報!$E71+基本情報!$F71,1) ->  | BL44: =getNumKeta0(基本情報!$G71,7) ->  | BM44: =getNumKeta0(基本情報!$G71,6) ->  | BN44: =getNumKeta0(基本情報!$G71,5) ->  | BO44: =getNumKeta0(基本情報!$G71,4) ->  | BP44: =getnumketa(基本情報!N79,4) ->  | BQ44: =getNumKeta0(基本情報!$G71,3) ->  | BR44: =getNumKeta0(基本情報!$G71,2) ->  | BS44: =getNumKeta0(基本情報!$G71,1) ->  | BT44: =getNumKeta0(基本情報!$H71,9) ->  | BU44: =getNumKeta0(基本情報!$H71,8) ->  | BV44: =getNumKeta0(基本情報!$H71,7) ->  | BW44: =getNumKeta0(基本情報!$H71,6) ->  | BX44: =getNumKeta0(基本情報!$H71,5) ->  | BZ44: =getNumKeta0(基本情報!$H71,4) ->  | CA44: =getNumKeta0(基本情報!$H71,3) ->  | CB44: =getNumKeta0(基本情報!$H71,2) ->  | CC44: =getNumKeta0(基本情報!$H71,1) -> 
A45: =基本情報!$B60 -> 0 | N45: =getNumKeta0(基本情報!$E60+基本情報!$F60,9) ->  | O45: =getNumKeta0(基本情報!$E60+基本情報!$F60,8) ->  | P45: =getNumKeta0(基本情報!$E60+基本情報!$F60,7) ->  | Q45: =getNumKeta0(基本情報!$E60+基本情報!$F60,6) ->  | R45: =getNumKeta0(基本情報!$E60+基本情報!$F60,5) ->  | S45: =getNumKeta0(基本情報!$E60+基本情報!$F60,4) ->  | T45: =getNumKeta0(基本情報!$E60+基本情報!$F60,3) ->  | U45: =getNumKeta0(基本情報!$E60+基本情報!$F60,2) ->  | V45: =getNumKeta0(基本情報!$E60+基本情報!$F60,1) ->  | W45: =getNumKeta0(基本情報!$G60,7) ->  | X45: =getNumKeta0(基本情報!$G60,6) ->  | Y45: =getNumKeta0(基本情報!$G60,5) ->  | Z45: =getNumKeta0(基本情報!$G60,4) ->  | AA45: =getNumKeta0(基本情報!$G60,3) ->  | AB45: =getNumKeta0(基本情報!$G60,2) ->  | AC45: =getnumketa(基本情報!M68,1) -> 0 | AD45: =getNumKeta0(基本情報!$G60,1) ->  | AF45: =getNumKeta0(基本情報!$H60,9) ->  | AH45: =getNumKeta0(基本情報!$H60,8) ->  | AJ45: =getNumKeta0(基本情報!$H60,7) ->  | AL45: =getNumKeta0(基本情報!$H60,6) ->  | AN45: =getNumKeta0(基本情報!$H60,5) ->  | AP45: =getNumKeta0(基本情報!$H60,4) ->  | AR45: =getNumKeta0(基本情報!$H60,3) ->  | AT45: =getNumKeta0(基本情報!$H60,2) ->  | AW45: =getNumKeta0(基本情報!$H60,1) ->  | AX45: 小 計 ・ 合 計 | BB45: =getnumketa(基本情報_合計税抜金額2,9) ->  | BC45: =getnumketa(基本情報_合計税抜金額2,8) ->  | BD45: =getnumketa(基本情報_合計税抜金額2,7) ->  | BF45: =getnumketa(基本情報_合計税抜金額2,6) ->  | BG45: =getnumketa(基本情報_合計税抜金額2,5) ->  | BH45: =getnumketa(基本情報_合計税抜金額2,4) ->  | BI45: =getnumketa(基本情報_合計税抜金額2,3) ->  | BJ45: =getnumketa(基本情報_合計税抜金額2,2) ->  | BK45: =getnumketa(基本情報_合計税抜金額2,1) -> 0 | BL45: =getnumketa(基本情報_合計消費税額2,7) ->  | BM45: =getnumketa(基本情報_合計消費税額2,6) ->  | BN45: =getnumketa(基本情報_合計消費税額2,5) ->  | BO45: =getnumketa(基本情報_合計消費税額2,4) ->  | BQ45: =getnumketa(基本情報_合計消費税額2,3) ->  | BR45: =getnumketa(基本情報_合計消費税額2,2) ->  | BS45: =getnumketa(基本情報_合計消費税額2,1) -> 0 | BT45: =getnumketa(基本情報_合計税込金額2,9) ->  | BU45: =getnumketa(基本情報_合計税込金額2,8) ->  | BV45: =getnumketa(基本情報_合計税込金額2,7) ->  | BW45: =getnumketa(基本情報_合計税込金額2,6) ->  | BX45: =getnumketa(基本情報_合計税込金額2,5) ->  | BZ45: =getnumketa(基本情報_合計税込金額2,4) ->  | CA45: =getnumketa(基本情報_合計税込金額2,3) ->  | CB45: =getnumketa(基本情報_合計税込金額2,2) ->  | CC45: =getnumketa(基本情報_合計税込金額2,1) -> 0
A46: =基本情報!$B61 -> 0 | N46: =getNumKeta0(基本情報!$E61+基本情報!$F61,9) ->  | O46: =getNumKeta0(基本情報!$E61+基本情報!$F61,8) ->  | P46: =getNumKeta0(基本情報!$E61+基本情報!$F61,7) ->  | Q46: =getNumKeta0(基本情報!$E61+基本情報!$F61,6) ->  | R46: =getNumKeta0(基本情報!$E61+基本情報!$F61,5) ->  | S46: =getNumKeta0(基本情報!$E61+基本情報!$F61,4) ->  | T46: =getNumKeta0(基本情報!$E61+基本情報!$F61,3) ->  | U46: =getNumKeta0(基本情報!$E61+基本情報!$F61,2) ->  | V46: =getNumKeta0(基本情報!$E61+基本情報!$F61,1) ->  | W46: =getNumKeta0(基本情報!$G61,7) ->  | X46: =getNumKeta0(基本情報!$G61,6) ->  | Y46: =getNumKeta0(基本情報!$G61,5) ->  | Z46: =getNumKeta0(基本情報!$G61,4) ->  | AA46: =getNumKeta0(基本情報!$G61,3) ->  | AB46: =getNumKeta0(基本情報!$G61,2) ->  | AC46: =getnumketa(基本情報!M69,1) -> 0 | AD46: =getNumKeta0(基本情報!$G61,1) ->  | AF46: =getNumKeta0(基本情報!$H61,9) ->  | AH46: =getNumKeta0(基本情報!$H61,8) ->  | AJ46: =getNumKeta0(基本情報!$H61,7) ->  | AL46: =getNumKeta0(基本情報!$H61,6) ->  | AN46: =getNumKeta0(基本情報!$H61,5) ->  | AP46: =getNumKeta0(基本情報!$H61,4) ->  | AR46: =getNumKeta0(基本情報!$H61,3) ->  | AT46: =getNumKeta0(基本情報!$H61,2) ->  | AW46: =getNumKeta0(基本情報!$H61,1) -> 
A47: =基本情報!$B62 -> 0 | N47: =getNumKeta0(基本情報!$E62+基本情報!$F62,9) ->  | O47: =getNumKeta0(基本情報!$E62+基本情報!$F62,8) ->  | P47: =getNumKeta0(基本情報!$E62+基本情報!$F62,7) ->  | Q47: =getNumKeta0(基本情報!$E62+基本情報!$F62,6) ->  | R47: =getNumKeta0(基本情報!$E62+基本情報!$F62,5) ->  | S47: =getNumKeta0(基本情報!$E62+基本情報!$F62,4) ->  | T47: =getNumKeta0(基本情報!$E62+基本情報!$F62,3) ->  | U47: =getNumKeta0(基本情報!$E62+基本情報!$F62,2) ->  | V47: =getNumKeta0(基本情報!$E62+基本情報!$F62,1) ->  | W47: =getNumKeta0(基本情報!$G62,7) ->  | X47: =getNumKeta0(基本情報!$G62,6) ->  | Y47: =getNumKeta0(基本情報!$G62,5) ->  | Z47: =getNumKeta0(基本情報!$G62,4) ->  | AA47: =getNumKeta0(基本情報!$G62,3) ->  | AB47: =getNumKeta0(基本情報!$G62,2) ->  | AC47: =getnumketa(基本情報!M70,1) -> 0 | AD47: =getNumKeta0(基本情報!$G62,1) ->  | AF47: =getNumKeta0(基本情報!$H62,9) ->  | AH47: =getNumKeta0(基本情報!$H62,8) ->  | AJ47: =getNumKeta0(基本情報!$H62,7) ->  | AL47: =getNumKeta0(基本情報!$H62,6) ->  | AN47: =getNumKeta0(基本情報!$H62,5) ->  | AP47: =getNumKeta0(基本情報!$H62,4) ->  | AR47: =getNumKeta0(基本情報!$H62,3) ->  | AT47: =getNumKeta0(基本情報!$H62,2) ->  | AW47: =getNumKeta0(基本情報!$H62,1) ->  | AX47: 訂正内容
A48: =基本情報!$B63 -> 0 | N48: =getNumKeta0(基本情報!$E63+基本情報!$F63,9) ->  | O48: =getNumKeta0(基本情報!$E63+基本情報!$F63,8) ->  | P48: =getNumKeta0(基本情報!$E63+基本情報!$F63,7) ->  | Q48: =getNumKeta0(基本情報!$E63+基本情報!$F63,6) ->  | R48: =getNumKeta0(基本情報!$E63+基本情報!$F63,5) ->  | S48: =getNumKeta0(基本情報!$E63+基本情報!$F63,4) ->  | T48: =getNumKeta0(基本情報!$E63+基本情報!$F63,3) ->  | U48: =getNumKeta0(基本情報!$E63+基本情報!$F63,2) ->  | V48: =getNumKeta0(基本情報!$E63+基本情報!$F63,1) ->  | W48: =getNumKeta0(基本情報!$G63,7) ->  | X48: =getNumKeta0(基本情報!$G63,6) ->  | Y48: =getNumKeta0(基本情報!$G63,5) ->  | Z48: =getNumKeta0(基本情報!$G63,4) ->  | AA48: =getNumKeta0(基本情報!$G63,3) ->  | AB48: =getNumKeta0(基本情報!$G63,2) ->  | AC48: =getnumketa(基本情報!M71,1) -> 0 | AD48: =getNumKeta0(基本情報!$G63,1) ->  | AF48: =getNumKeta0(基本情報!$H63,9) ->  | AH48: =getNumKeta0(基本情報!$H63,8) ->  | AJ48: =getNumKeta0(基本情報!$H63,7) ->  | AL48: =getNumKeta0(基本情報!$H63,6) ->  | AN48: =getNumKeta0(基本情報!$H63,5) ->  | AP48: =getNumKeta0(基本情報!$H63,4) ->  | AR48: =getNumKeta0(基本情報!$H63,3) ->  | AT48: =getNumKeta0(基本情報!$H63,2) ->  | AW48: =getNumKeta0(基本情報!$H63,1) -> 
B50: （注） | C50: １．請求書の締切日は、原則末日５日迄提出願います。又、支払は締の翌月20日となります。
C51: 但し、提出期限が当社休日の場合は前日とし、支払日は翌銀行営業日と致します。
C52: 尚、例外として4月と12月は、締日と必着日が毎年異なりますので十分ご注意ください。（別紙カレンダー参照）
C53: 期日迄に提出されない場合は、翌月計上となります。
C54: ２．当社への登録内容に変更を生じた場合は、速やかに「取引情報（新規・変更）届出書」を提出願います。 | AZ54: 貴社→経理(控)
B55: 管理表（一般用） | AX55: 適格請求書発行事業者登録 | AZ55: =基本情報_事業者登録 -> 有 | BC55: 登録番号 : | BJ55: =IF(基本情報_登録番号="","",基本情報_登録番号) -> T1-2345-6789-0123 | BW55: ="P 3/"&COUNTA(基本情報_工事名称1, 基本情報_工事名称2, 基本情報_工事名称3) -> P 3/1
AC56: 変更時当社記入欄 | AV56: 取引先コード | AY56: =基本情報_取引先コード -> 999999 | AZ56: 締 日 | BE56: =基本情報_請求締日 -> 2023-01-31
A57: 株式会社 丸 高 御中 | BJ57: 振込銀行 | BN57: =基本情報_銀行名 -> 荘内 | BU57: 銀 行 | BV57: =基本情報_支店名 -> 若竹町 | CC57: 支 店
A58: 下記の通り御請求申し上げます。 | M58: ="税率 ( " & (基本情報_消費税率*100) & "% )" -> 税率 ( 10% ) | AW58: （住所） | AY58: =基本情報_住所 -> 酒田市○○○○１－１ | BJ58: 銀行ｺｰﾄﾞ | BN58: 4桁 | BP58: =基本情報_銀行コード -> 121 | BU58: 支店 ｺｰﾄﾞ | BW58: 3桁 | BY58: =基本情報_支店コード -> 133
A59: 前月請求額 | M59: 税抜金額計 | AW59: （社名） | AY59: =基本情報_社名 -> (株）○○建設 | BJ59: 口座番号 | BN59: =基本情報_口座種別 -> 当 座 | BS59: =基本情報_口座番号 -> 1234567
A60: 入 金 額 | M60: 請求明細 消費税合計 | BJ60: 口座名義:漢字
A61: 値 引 額 | M61: 税込当月請求額 | AW61: （電話） | AY61: =基本情報_電話番号 -> 0234 - 00 - 0000 | BJ61: =基本情報_口座名義漢字 -> (株）○○建設
A62: 繰越金額 | M62: 税込当月総請求額 | BJ62: 口座名義:カナ | BP62: =基本情報_口座名義カナ -> ｶ)ﾏﾙﾏﾙｹﾝｾﾂ
A63: 工 事 名 | L63: ＣＫ | N63: 税抜金額 | W63: 消費税 | AF63: 税込金額 | AX63: 工 事 名 | BA63: ＣＫ | BB63: 税抜金額 | BL63: 消費税 | BT63: 税込金額
A64: =基本情報!$B72 -> 0 | N64: =getNumKeta0(基本情報!$E72+基本情報!$F72,9) ->  | O64: =getNumKeta0(基本情報!$E72+基本情報!$F72,8) ->  | P64: =getNumKeta0(基本情報!$E72+基本情報!$F72,7) ->  | Q64: =getNumKeta0(基本情報!$E72+基本情報!$F72,6) ->  | R64: =getNumKeta0(基本情報!$E72+基本情報!$F72,5) ->  | S64: =getNumKeta0(基本情報!$E72+基本情報!$F72,4) ->  | T64: =getNumKeta0(基本情報!$E72+基本情報!$F72,3) ->  | U64: =getNumKeta0(基本情報!$E72+基本情報!$F72,2) ->  | V64: =getNumKeta0(基本情報!$E72+基本情報!$F72,1) ->  | W64: =getNumKeta0(基本情報!$G72,7) ->  | X64: =getNumKeta0(基本情報!$G72,6) ->  | Y64: =getNumKeta0(基本情報!$G72,5) ->  | Z64: =getNumKeta0(基本情報!$G72,4) ->  | AA64: =getNumKeta0(基本情報!$G72,3) ->  | AB64: =getNumKeta0(基本情報!$G72,2) ->  | AC64: =getnumketa(基本情報!M87,1) -> 0 | AD64: =getNumKeta0(基本情報!$G72,1) ->  | AF64: =getNumKeta0(基本情報!$H72,9) ->  | AH64: =getNumKeta0(基本情報!$H72,8) ->  | AJ64: =getNumKeta0(基本情報!$H72,7) ->  | AL64: =getNumKeta0(基本情報!$H72,6) ->  | AN64: =getNumKeta0(基本情報!$H72,5) ->  | AP64: =getNumKeta0(基本情報!$H72,4) ->  | AR64: =getNumKeta0(基本情報!$H72,3) ->  | AT64: =getNumKeta0(基本情報!$H72,2) ->  | AW64: =getNumKeta0(基本情報!$H72,1) ->  | AX64: =基本情報!$B84 -> 0 | BB64: =getNumKeta0(基本情報!$E84+基本情報!$F84,9) ->  | BC64: =getNumKeta0(基本情報!$E84+基本情報!$F84,8) ->  | BD64: =getNumKeta0(基本情報!$E84+基本情報!$F84,7) ->  | BE64: =getnumketa(基本情報!AQ87,6) ->  | BF64: =getNumKeta0(基本情報!$E84+基本情報!$F84,6) ->  | BG64: =getNumKeta0(基本情報!$E84+基本情報!$F84,5) ->  | BH64: =getNumKeta0(基本情報!$E84+基本情報!$F84,4) ->  | BI64: =getNumKeta0(基本情報!$E84+基本情報!$F84,3) ->  | BJ64: =getNumKeta0(基本情報!$E84+基本情報!$F84,2) ->  | BK64: =getNumKeta0(基本情報!$E84+基本情報!$F84,1) ->  | BL64: =getNumKeta0(基本情報!$G84,7) ->  | BM64: =getNumKeta0(基本情報!$G84,6) ->  | BN64: =getNumKeta0(基本情報!$G84,5) ->  | BO64: =getNumKeta0(基本情報!$G84,4) ->  | BP64: =getnumketa(基本情報!N99,4) ->  | BQ64: =getNumKeta0(基本情報!$G84,3) ->  | BR64: =getNumKeta0(基本情報!$G84,2) ->  | BS64: =getNumKeta0(基本情報!$G84,1) ->  | BT64: =getNumKeta0(基本情報!$H84,9) ->  | BU64: =getNumKeta0(基本情報!$H84,8) ->  | BV64: =getNumKeta0(基本情報!$H84,7) ->  | BW64: =getNumKeta0(基本情報!$H84,6) ->  | BX64: =getNumKeta0(基本情報!$H84,5) ->  | BZ64: =getNumKeta0(基本情報!$H84,4) ->  | CA64: =getNumKeta0(基本情報!$H84,3) ->  | CB64: =getNumKeta0(基本情報!$H84,2) ->  | CC64: =getNumKeta0(基本情報!$H84,1) -> 
A65: =基本情報!$B73 -> 0 | N65: =getNumKeta0(基本情報!$E73+基本情報!$F73,9) ->  | O65: =getNumKeta0(基本情報!$E73+基本情報!$F73,8) ->  | P65: =getNumKeta0(基本情報!$E73+基本情報!$F73,7) ->  | Q65: =getNumKeta0(基本情報!$E73+基本情報!$F73,6) ->  | R65: =getNumKeta0(基本情報!$E73+基本情報!$F73,5) ->  | S65: =getNumKeta0(基本情報!$E73+基本情報!$F73,4) ->  | T65: =getNumKeta0(基本情報!$E73+基本情報!$F73,3) ->  | U65: =getNumKeta0(基本情報!$E73+基本情報!$F73,2) ->  | V65: =getNumKeta0(基本情報!$E73+基本情報!$F73,1) ->  | W65: =getNumKeta0(基本情報!$G73,7) ->  | X65: =getNumKeta0(基本情報!$G73,6) ->  | Y65: =getNumKeta0(基本情報!$G73,5) ->  | Z65: =getNumKeta0(基本情報!$G73,4) ->  | AA65: =getNumKeta0(基本情報!$G73,3) ->  | AB65: =getNumKeta0(基本情報!$G73,2) ->  | AC65: =getnumketa(基本情報!M88,1) -> 0 | AD65: =getNumKeta0(基本情報!$G73,1) ->  | AF65: =getNumKeta0(基本情報!$H73,9) ->  | AH65: =getNumKeta0(基本情報!$H73,8) ->  | AJ65: =getNumKeta0(基本情報!$H73,7) ->  | AL65: =getNumKeta0(基本情報!$H73,6) ->  | AN65: =getNumKeta0(基本情報!$H73,5) ->  | AP65: =getNumKeta0(基本情報!$H73,4) ->  | AR65: =getNumKeta0(基本情報!$H73,3) ->  | AT65: =getNumKeta0(基本情報!$H73,2) ->  | AW65: =getNumKeta0(基本情報!$H73,1) ->  | AX65: =基本情報!$B85 -> 0 | BB65: =getNumKeta0(基本情報!$E85+基本情報!$F85,9) ->  | BC65: =getNumKeta0(基本情報!$E85+基本情報!$F85,8) ->  | BD65: =getNumKeta0(基本情報!$E85+基本情報!$F85,7) ->  | BE65: =getnumketa(基本情報!AQ88,6) ->  | BF65: =getNumKeta0(基本情報!$E85+基本情報!$F85,6) ->  | BG65: =getNumKeta0(基本情報!$E85+基本情報!$F85,5) ->  | BH65: =getNumKeta0(基本情報!$E85+基本情報!$F85,4) ->  | BI65: =getNumKeta0(基本情報!$E85+基本情報!$F85,3) ->  | BJ65: =getNumKeta0(基本情報!$E85+基本情報!$F85,2) ->  | BK65: =getNumKeta0(基本情報!$E85+基本情報!$F85,1) ->  | BL65: =getNumKeta0(基本情報!$G85,7) ->  | BM65: =getNumKeta0(基本情報!$G85,6) ->  | BN65: =getNumKeta0(基本情報!$G85,5) ->  | BO65: =getNumKeta0(基本情報!$G85,4) ->  | BP65: =getnumketa(基本情報!N100,4) ->  | BQ65: =getNumKeta0(基本情報!$G85,3) ->  | BR65: =getNumKeta0(基本情報!$G85,2) ->  | BS65: =getNumKeta0(基本情報!$G85,1) ->  | BT65: =getNumKeta0(基本情報!$H85,9) ->  | BU65: =getNumKeta0(基本情報!$H85,8) ->  | BV65: =getNumKeta0(基本情報!$H85,7) ->  | BW65: =getNumKeta0(基本情報!$H85,6) ->  | BX65: =getNumKeta0(基本情報!$H85,5) ->  | BZ65: =getNumKeta0(基本情報!$H85,4) ->  | CA65: =getNumKeta0(基本情報!$H85,3) ->  | CB65: =getNumKeta0(基本情報!$H85,2) ->  | CC65: =getNumKeta0(基本情報!$H85,1) -> 
A66: =基本情報!$B74 -> 0 | N66: =getNumKeta0(基本情報!$E74+基本情報!$F74,9) ->  | O66: =getNumKeta0(基本情報!$E74+基本情報!$F74,8) ->  | P66: =getNumKeta0(基本情報!$E74+基本情報!$F74,7) ->  | Q66: =getNumKeta0(基本情報!$E74+基本情報!$F74,6) ->  | R66: =getNumKeta0(基本情報!$E74+基本情報!$F74,5) ->  | S66: =getNumKeta0(基本情報!$E74+基本情報!$F74,4) ->  | T66: =getNumKeta0(基本情報!$E74+基本情報!$F74,3) ->  | U66: =getNumKeta0(基本情報!$E74+基本情報!$F74,2) ->  | V66: =getNumKeta0(基本情報!$E74+基本情報!$F74,1) ->  | W66: =getNumKeta0(基本情報!$G74,7) ->  | X66: =getNumKeta0(基本情報!$G74,6) ->  | Y66: =getNumKeta0(基本情報!$G74,5) ->  | Z66: =getNumKeta0(基本情報!$G74,4) ->  | AA66: =getNumKeta0(基本情報!$G74,3) ->  | AB66: =getNumKeta0(基本情報!$G74,2) ->  | AC66: =getnumketa(基本情報!M89,1) -> 0 | AD66: =getNumKeta0(基本情報!$G74,1) ->  | AF66: =getNumKeta0(基本情報!$H74,9) ->  | AH66: =getNumKeta0(基本情報!$H74,8) ->  | AJ66: =getNumKeta0(基本情報!$H74,7) ->  | AL66: =getNumKeta0(基本情報!$H74,6) ->  | AN66: =getNumKeta0(基本情報!$H74,5) ->  | AP66: =getNumKeta0(基本情報!$H74,4) ->  | AR66: =getNumKeta0(基本情報!$H74,3) ->  | AT66: =getNumKeta0(基本情報!$H74,2) ->  | AW66: =getNumKeta0(基本情報!$H74,1) ->  | AX66: =基本情報!$B86 -> 0 | BB66: =getNumKeta0(基本情報!$E86+基本情報!$F86,9) ->  | BC66: =getNumKeta0(基本情報!$E86+基本情報!$F86,8) ->  | BD66: =getNumKeta0(基本情報!$E86+基本情報!$F86,7) ->  | BE66: =getnumketa(基本情報!AQ89,6) ->  | BF66: =getNumKeta0(基本情報!$E86+基本情報!$F86,6) ->  | BG66: =getNumKeta0(基本情報!$E86+基本情報!$F86,5) ->  | BH66: =getNumKeta0(基本情報!$E86+基本情報!$F86,4) ->  | BI66: =getNumKeta0(基本情報!$E86+基本情報!$F86,3) ->  | BJ66: =getNumKeta0(基本情報!$E86+基本情報!$F86,2) ->  | BK66: =getNumKeta0(基本情報!$E86+基本情報!$F86,1) ->  | BL66: =getNumKeta0(基本情報!$G86,7) ->  | BM66: =getNumKeta0(基本情報!$G86,6) ->  | BN66: =getNumKeta0(基本情報!$G86,5) ->  | BO66: =getNumKeta0(基本情報!$G86,4) ->  | BP66: =getnumketa(基本情報!N101,4) ->  | BQ66: =getNumKeta0(基本情報!$G86,3) ->  | BR66: =getNumKeta0(基本情報!$G86,2) ->  | BS66: =getNumKeta0(基本情報!$G86,1) ->  | BT66: =getNumKeta0(基本情報!$H86,9) ->  | BU66: =getNumKeta0(基本情報!$H86,8) ->  | BV66: =getNumKeta0(基本情報!$H86,7) ->  | BW66: =getNumKeta0(基本情報!$H86,6) ->  | BX66: =getNumKeta0(基本情報!$H86,5) ->  | BZ66: =getNumKeta0(基本情報!$H86,4) ->  | CA66: =getNumKeta0(基本情報!$H86,3) ->  | CB66: =getNumKeta0(基本情報!$H86,2) ->  | CC66: =getNumKeta0(基本情報!$H86,1) -> 
A67: =基本情報!$B75 -> 0 | N67: =getNumKeta0(基本情報!$E75+基本情報!$F75,9) ->  | O67: =getNumKeta0(基本情報!$E75+基本情報!$F75,8) ->  | P67: =getNumKeta0(基本情報!$E75+基本情報!$F75,7) ->  | Q67: =getNumKeta0(基本情報!$E75+基本情報!$F75,6) ->  | R67: =getNumKeta0(基本情報!$E75+基本情報!$F75,5) ->  | S67: =getNumKeta0(基本情報!$E75+基本情報!$F75,4) ->  | T67: =getNumKeta0(基本情報!$E75+基本情報!$F75,3) ->  | U67: =getNumKeta0(基本情報!$E75+基本情報!$F75,2) ->  | V67: =getNumKeta0(基本情報!$E75+基本情報!$F75,1) ->  | W67: =getNumKeta0(基本情報!$G75,7) ->  | X67: =getNumKeta0(基本情報!$G75,6) ->  | Y67: =getNumKeta0(基本情報!$G75,5) ->  | Z67: =getNumKeta0(基本情報!$G75,4) ->  | AA67: =getNumKeta0(基本情報!$G75,3) ->  | AB67: =getNumKeta0(基本情報!$G75,2) ->  | AC67: =getnumketa(基本情報!M90,1) -> 0 | AD67: =getNumKeta0(基本情報!$G75,1) ->  | AF67: =getNumKeta0(基本情報!$H75,9) ->  | AH67: =getNumKeta0(基本情報!$H75,8) ->  | AJ67: =getNumKeta0(基本情報!$H75,7) ->  | AL67: =getNumKeta0(基本情報!$H75,6) ->  | AN67: =getNumKeta0(基本情報!$H75,5) ->  | AP67: =getNumKeta0(基本情報!$H75,4) ->  | AR67: =getNumKeta0(基本情報!$H75,3) ->  | AT67: =getNumKeta0(基本情報!$H75,2) ->  | AW67: =getNumKeta0(基本情報!$H75,1) ->  | AX67: =基本情報!$B87 -> 0 | BB67: =getNumKeta0(基本情報!$E87+基本情報!$F87,9) ->  | BC67: =getNumKeta0(基本情報!$E87+基本情報!$F87,8) ->  | BD67: =getNumKeta0(基本情報!$E87+基本情報!$F87,7) ->  | BE67: =getnumketa(基本情報!AQ90,6) ->  | BF67: =getNumKeta0(基本情報!$E87+基本情報!$F87,6) ->  | BG67: =getNumKeta0(基本情報!$E87+基本情報!$F87,5) ->  | BH67: =getNumKeta0(基本情報!$E87+基本情報!$F87,4) ->  | BI67: =getNumKeta0(基本情報!$E87+基本情報!$F87,3) ->  | BJ67: =getNumKeta0(基本情報!$E87+基本情報!$F87,2) ->  | BK67: =getNumKeta0(基本情報!$E87+基本情報!$F87,1) ->  | BL67: =getNumKeta0(基本情報!$G87,7) ->  | BM67: =getNumKeta0(基本情報!$G87,6) ->  | BN67: =getNumKeta0(基本情報!$G87,5) ->  | BO67: =getNumKeta0(基本情報!$G87,4) ->  | BP67: =getnumketa(基本情報!N102,4) ->  | BQ67: =getNumKeta0(基本情報!$G87,3) ->  | BR67: =getNumKeta0(基本情報!$G87,2) ->  | BS67: =getNumKeta0(基本情報!$G87,1) ->  | BT67: =getNumKeta0(基本情報!$H87,9) ->  | BU67: =getNumKeta0(基本情報!$H87,8) ->  | BV67: =getNumKeta0(基本情報!$H87,7) ->  | BW67: =getNumKeta0(基本情報!$H87,6) ->  | BX67: =getNumKeta0(基本情報!$H87,5) ->  | BZ67: =getNumKeta0(基本情報!$H87,4) ->  | CA67: =getNumKeta0(基本情報!$H87,3) ->  | CB67: =getNumKeta0(基本情報!$H87,2) ->  | CC67: =getNumKeta0(基本情報!$H87,1) -> 
A68: =基本情報!$B76 -> 0 | N68: =getNumKeta0(基本情報!$E76+基本情報!$F76,9) ->  | O68: =getNumKeta0(基本情報!$E76+基本情報!$F76,8) ->  | P68: =getNumKeta0(基本情報!$E76+基本情報!$F76,7) ->  | Q68: =getNumKeta0(基本情報!$E76+基本情報!$F76,6) ->  | R68: =getNumKeta0(基本情報!$E76+基本情報!$F76,5) ->  | S68: =getNumKeta0(基本情報!$E76+基本情報!$F76,4) ->  | T68: =getNumKeta0(基本情報!$E76+基本情報!$F76,3) ->  | U68: =getNumKeta0(基本情報!$E76+基本情報!$F76,2) ->  | V68: =getNumKeta0(基本情報!$E76+基本情報!$F76,1) ->  | W68: =getNumKeta0(基本情報!$G76,7) ->  | X68: =getNumKeta0(基本情報!$G76,6) ->  | Y68: =getNumKeta0(基本情報!$G76,5) ->  | Z68: =getNumKeta0(基本情報!$G76,4) ->  | AA68: =getNumKeta0(基本情報!$G76,3) ->  | AB68: =getNumKeta0(基本情報!$G76,2) ->  | AC68: =getnumketa(基本情報!M91,1) -> 0 | AD68: =getNumKeta0(基本情報!$G76,1) ->  | AF68: =getNumKeta0(基本情報!$H76,9) ->  | AH68: =getNumKeta0(基本情報!$H76,8) ->  | AJ68: =getNumKeta0(基本情報!$H76,7) ->  | AL68: =getNumKeta0(基本情報!$H76,6) ->  | AN68: =getNumKeta0(基本情報!$H76,5) ->  | AP68: =getNumKeta0(基本情報!$H76,4) ->  | AR68: =getNumKeta0(基本情報!$H76,3) ->  | AT68: =getNumKeta0(基本情報!$H76,2) ->  | AW68: =getNumKeta0(基本情報!$H76,1) ->  | AX68: =基本情報!$B88 -> 0 | BB68: =getNumKeta0(基本情報!$E88+基本情報!$F88,9) ->  | BC68: =getNumKeta0(基本情報!$E88+基本情報!$F88,8) ->  | BD68: =getNumKeta0(基本情報!$E88+基本情報!$F88,7) ->  | BE68: =getnumketa(基本情報!AQ91,6) ->  | BF68: =getNumKeta0(基本情報!$E88+基本情報!$F88,6) ->  | BG68: =getNumKeta0(基本情報!$E88+基本情報!$F88,5) ->  | BH68: =getNumKeta0(基本情報!$E88+基本情報!$F88,4) ->  | BI68: =getNumKeta0(基本情報!$E88+基本情報!$F88,3) ->  | BJ68: =getNumKeta0(基本情報!$E88+基本情報!$F88,2) ->  | BK68: =getNumKeta0(基本情報!$E88+基本情報!$F88,1) ->  | BL68: =getNumKeta0(基本情報!$G88,7) ->  | BM68: =getNumKeta0(基本情報!$G88,6) ->  | BN68: =getNumKeta0(基本情報!$G88,5) ->  | BO68: =getNumKeta0(基本情報!$G88,4) ->  | BP68: =getnumketa(基本情報!N103,4) ->  | BQ68: =getNumKeta0(基本情報!$G88,3) ->  | BR68: =getNumKeta0(基本情報!$G88,2) ->  | BS68: =getNumKeta0(基本情報!$G88,1) ->  | BT68: =getNumKeta0(基本情報!$H88,9) ->  | BU68: =getNumKeta0(基本情報!$H88,8) ->  | BV68: =getNumKeta0(基本情報!$H88,7) ->  | BW68: =getNumKeta0(基本情報!$H88,6) ->  | BX68: =getNumKeta0(基本情報!$H88,5) ->  | BZ68: =getNumKeta0(基本情報!$H88,4) ->  | CA68: =getNumKeta0(基本情報!$H88,3) ->  | CB68: =getNumKeta0(基本情報!$H88,2) ->  | CC68: =getNumKeta0(基本情報!$H88,1) -> 
A69: =基本情報!$B77 -> 0 | N69: =getNumKeta0(基本情報!$E77+基本情報!$F77,9) ->  | O69: =getNumKeta0(基本情報!$E77+基本情報!$F77,8) ->  | P69: =getNumKeta0(基本情報!$E77+基本情報!$F77,7) ->  | Q69: =getNumKeta0(基本情報!$E77+基本情報!$F77,6) ->  | R69: =getNumKeta0(基本情報!$E77+基本情報!$F77,5) ->  | S69: =getNumKeta0(基本情報!$E77+基本情報!$F77,4) ->  | T69: =getNumKeta0(基本情報!$E77+基本情報!$F77,3) ->  | U69: =getNumKeta0(基本情報!$E77+基本情報!$F77,2) ->  | V69: =getNumKeta0(基本情報!$E77+基本情報!$F77,1) ->  | W69: =getNumKeta0(基本情報!$G77,7) ->  | X69: =getNumKeta0(基本情報!$G77,6) ->  | Y69: =getNumKeta0(基本情報!$G77,5) ->  | Z69: =getNumKeta0(基本情報!$G77,4) ->  | AA69: =getNumKeta0(基本情報!$G77,3) ->  | AB69: =getNumKeta0(基本情報!$G77,2) ->  | AC69: =getnumketa(基本情報!M92,1) -> 0 | AD69: =getNumKeta0(基本情報!$G77,1) ->  | AF69: =getNumKeta0(基本情報!$H77,9) ->  | AH69: =getNumKeta0(基本情報!$H77,8) ->  | AJ69: =getNumKeta0(基本情報!$H77,7) ->  | AL69: =getNumKeta0(基本情報!$H77,6) ->  | AN69: =getNumKeta0(基本情報!$H77,5) ->  | AP69: =getNumKeta0(基本情報!$H77,4) ->  | AR69: =getNumKeta0(基本情報!$H77,3) ->  | AT69: =getNumKeta0(基本情報!$H77,2) ->  | AW69: =getNumKeta0(基本情報!$H77,1) ->  | AX69: =基本情報!$B89 -> 0 | BB69: =getNumKeta0(基本情報!$E89+基本情報!$F89,9) ->  | BC69: =getNumKeta0(基本情報!$E89+基本情報!$F89,8) ->  | BD69: =getNumKeta0(基本情報!$E89+基本情報!$F89,7) ->  | BE69: =getnumketa(基本情報!AQ92,6) ->  | BF69: =getNumKeta0(基本情報!$E89+基本情報!$F89,6) ->  | BG69: =getNumKeta0(基本情報!$E89+基本情報!$F89,5) ->  | BH69: =getNumKeta0(基本情報!$E89+基本情報!$F89,4) ->  | BI69: =getNumKeta0(基本情報!$E89+基本情報!$F89,3) ->  | BJ69: =getNumKeta0(基本情報!$E89+基本情報!$F89,2) ->  | BK69: =getNumKeta0(基本情報!$E89+基本情報!$F89,1) ->  | BL69: =getNumKeta0(基本情報!$G89,7) ->  | BM69: =getNumKeta0(基本情報!$G89,6) ->  | BN69: =getNumKeta0(基本情報!$G89,5) ->  | BO69: =getNumKeta0(基本情報!$G89,4) ->  | BP69: =getnumketa(基本情報!N104,4) ->  | BQ69: =getNumKeta0(基本情報!$G89,3) ->  | BR69: =getNumKeta0(基本情報!$G89,2) ->  | BS69: =getNumKeta0(基本情報!$G89,1) ->  | BT69: =getNumKeta0(基本情報!$H89,9) ->  | BU69: =getNumKeta0(基本情報!$H89,8) ->  | BV69: =getNumKeta0(基本情報!$H89,7) ->  | BW69: =getNumKeta0(基本情報!$H89,6) ->  | BX69: =getNumKeta0(基本情報!$H89,5) ->  | BZ69: =getNumKeta0(基本情報!$H89,4) ->  | CA69: =getNumKeta0(基本情報!$H89,3) ->  | CB69: =getNumKeta0(基本情報!$H89,2) ->  | CC69: =getNumKeta0(基本情報!$H89,1) -> 
A70: =基本情報!$B78 -> 0 | N70: =getNumKeta0(基本情報!$E78+基本情報!$F78,9) ->  | O70: =getNumKeta0(基本情報!$E78+基本情報!$F78,8) ->  | P70: =getNumKeta0(基本情報!$E78+基本情報!$F78,7) ->  | Q70: =getNumKeta0(基本情報!$E78+基本情報!$F78,6) ->  | R70: =getNumKeta0(基本情報!$E78+基本情報!$F78,5) ->  | S70: =getNumKeta0(基本情報!$E78+基本情報!$F78,4) ->  | T70: =getNumKeta0(基本情報!$E78+基本情報!$F78,3) ->  | U70: =getNumKeta0(基本情報!$E78+基本情報!$F78,2) ->  | V70: =getNumKeta0(基本情報!$E78+基本情報!$F78,1) ->  | W70: =getNumKeta0(基本情報!$G78,7) ->  | X70: =getNumKeta0(基本情報!$G78,6) ->  | Y70: =getNumKeta0(基本情報!$G78,5) ->  | Z70: =getNumKeta0(基本情報!$G78,4) ->  | AA70: =getNumKeta0(基本情報!$G78,3) ->  | AB70: =getNumKeta0(基本情報!$G78,2) ->  | AC70: =getnumketa(基本情報!M93,1) -> 0 | AD70: =getNumKeta0(基本情報!$G78,1) ->  | AF70: =getNumKeta0(基本情報!$H78,9) ->  | AH70: =getNumKeta0(基本情報!$H78,8) ->  | AJ70: =getNumKeta0(基本情報!$H78,7) ->  | AL70: =getNumKeta0(基本情報!$H78,6) ->  | AN70: =getNumKeta0(基本情報!$H78,5) ->  | AP70: =getNumKeta0(基本情報!$H78,4) ->  | AR70: =getNumKeta0(基本情報!$H78,3) ->  | AT70: =getNumKeta0(基本情報!$H78,2) ->  | AW70: =getNumKeta0(基本情報!$H78,1) ->  | AX70: =基本情報!$B90 -> 0 | BB70: =getNumKeta0(基本情報!$E90+基本情報!$F90,9) ->  | BC70: =getNumKeta0(基本情報!$E90+基本情報!$F90,8) ->  | BD70: =getNumKeta0(基本情報!$E90+基本情報!$F90,7) ->  | BE70: =getnumketa(基本情報!AQ93,6) ->  | BF70: =getNumKeta0(基本情報!$E90+基本情報!$F90,6) ->  | BG70: =getNumKeta0(基本情報!$E90+基本情報!$F90,5) ->  | BH70: =getNumKeta0(基本情報!$E90+基本情報!$F90,4) ->  | BI70: =getNumKeta0(基本情報!$E90+基本情報!$F90,3) ->  | BJ70: =getNumKeta0(基本情報!$E90+基本情報!$F90,2) ->  | BK70: =getNumKeta0(基本情報!$E90+基本情報!$F90,1) ->  | BL70: =getNumKeta0(基本情報!$G90,7) ->  | BM70: =getNumKeta0(基本情報!$G90,6) ->  | BN70: =getNumKeta0(基本情報!$G90,5) ->  | BO70: =getNumKeta0(基本情報!$G90,4) ->  | BP70: =getnumketa(基本情報!N105,4) ->  | BQ70: =getNumKeta0(基本情報!$G90,3) ->  | BR70: =getNumKeta0(基本情報!$G90,2) ->  | BS70: =getNumKeta0(基本情報!$G90,1) ->  | BT70: =getNumKeta0(基本情報!$H90,9) ->  | BU70: =getNumKeta0(基本情報!$H90,8) ->  | BV70: =getNumKeta0(基本情報!$H90,7) ->  | BW70: =getNumKeta0(基本情報!$H90,6) ->  | BX70: =getNumKeta0(基本情報!$H90,5) ->  | BZ70: =getNumKeta0(基本情報!$H90,4) ->  | CA70: =getNumKeta0(基本情報!$H90,3) ->  | CB70: =getNumKeta0(基本情報!$H90,2) ->  | CC70: =getNumKeta0(基本情報!$H90,1) -> 
A71: =基本情報!$B79 -> 0 | N71: =getNumKeta0(基本情報!$E79+基本情報!$F79,9) ->  | O71: =getNumKeta0(基本情報!$E79+基本情報!$F79,8) ->  | P71: =getNumKeta0(基本情報!$E79+基本情報!$F79,7) ->  | Q71: =getNumKeta0(基本情報!$E79+基本情報!$F79,6) ->  | R71: =getNumKeta0(基本情報!$E79+基本情報!$F79,5) ->  | S71: =getNumKeta0(基本情報!$E79+基本情報!$F79,4) ->  | T71: =getNumKeta0(基本情報!$E79+基本情報!$F79,3) ->  | U71: =getNumKeta0(基本情報!$E79+基本情報!$F79,2) ->  | V71: =getNumKeta0(基本情報!$E79+基本情報!$F79,1) ->  | W71: =getNumKeta0(基本情報!$G79,7) ->  | X71: =getNumKeta0(基本情報!$G79,6) ->  | Y71: =getNumKeta0(基本情報!$G79,5) ->  | Z71: =getNumKeta0(基本情報!$G79,4) ->  | AA71: =getNumKeta0(基本情報!$G79,3) ->  | AB71: =getNumKeta0(基本情報!$G79,2) ->  | AC71: =getnumketa(基本情報!M94,1) -> 0 | AD71: =getNumKeta0(基本情報!$G79,1) ->  | AF71: =getNumKeta0(基本情報!$H79,9) ->  | AH71: =getNumKeta0(基本情報!$H79,8) ->  | AJ71: =getNumKeta0(基本情報!$H79,7) ->  | AL71: =getNumKeta0(基本情報!$H79,6) ->  | AN71: =getNumKeta0(基本情報!$H79,5) ->  | AP71: =getNumKeta0(基本情報!$H79,4) ->  | AR71: =getNumKeta0(基本情報!$H79,3) ->  | AT71: =getNumKeta0(基本情報!$H79,2) ->  | AW71: =getNumKeta0(基本情報!$H79,1) ->  | AX71: =基本情報!$B91 -> 0 | BB71: =getNumKeta0(基本情報!$E91+基本情報!$F91,9) ->  | BC71: =getNumKeta0(基本情報!$E91+基本情報!$F91,8) ->  | BD71: =getNumKeta0(基本情報!$E91+基本情報!$F91,7) ->  | BE71: =getnumketa(基本情報!AQ94,6) ->  | BF71: =getNumKeta0(基本情報!$E91+基本情報!$F91,6) ->  | BG71: =getNumKeta0(基本情報!$E91+基本情報!$F91,5) ->  | BH71: =getNumKeta0(基本情報!$E91+基本情報!$F91,4) ->  | BI71: =getNumKeta0(基本情報!$E91+基本情報!$F91,3) ->  | BJ71: =getNumKeta0(基本情報!$E91+基本情報!$F91,2) ->  | BK71: =getNumKeta0(基本情報!$E91+基本情報!$F91,1) ->  | BL71: =getNumKeta0(基本情報!$G91,7) ->  | BM71: =getNumKeta0(基本情報!$G91,6) ->  | BN71: =getNumKeta0(基本情報!$G91,5) ->  | BO71: =getNumKeta0(基本情報!$G91,4) ->  | BP71: =getnumketa(基本情報!N106,4) ->  | BQ71: =getNumKeta0(基本情報!$G91,3) ->  | BR71: =getNumKeta0(基本情報!$G91,2) ->  | BS71: =getNumKeta0(基本情報!$G91,1) ->  | BT71: =getNumKeta0(基本情報!$H91,9) ->  | BU71: =getNumKeta0(基本情報!$H91,8) ->  | BV71: =getNumKeta0(基本情報!$H91,7) ->  | BW71: =getNumKeta0(基本情報!$H91,6) ->  | BX71: =getNumKeta0(基本情報!$H91,5) ->  | BZ71: =getNumKeta0(基本情報!$H91,4) ->  | CA71: =getNumKeta0(基本情報!$H91,3) ->  | CB71: =getNumKeta0(基本情報!$H91,2) ->  | CC71: =getNumKeta0(基本情報!$H91,1) -> 
A72: =基本情報!$B80 -> 0 | N72: =getNumKeta0(基本情報!$E80+基本情報!$F80,9) ->  | O72: =getNumKeta0(基本情報!$E80+基本情報!$F80,8) ->  | P72: =getNumKeta0(基本情報!$E80+基本情報!$F80,7) ->  | Q72: =getNumKeta0(基本情報!$E80+基本情報!$F80,6) ->  | R72: =getNumKeta0(基本情報!$E80+基本情報!$F80,5) ->  | S72: =getNumKeta0(基本情報!$E80+基本情報!$F80,4) ->  | T72: =getNumKeta0(基本情報!$E80+基本情報!$F80,3) ->  | U72: =getNumKeta0(基本情報!$E80+基本情報!$F80,2) ->  | V72: =getNumKeta0(基本情報!$E80+基本情報!$F80,1) ->  | W72: =getNumKeta0(基本情報!$G80,7) ->  | X72: =getNumKeta0(基本情報!$G80,6) ->  | Y72: =getNumKeta0(基本情報!$G80,5) ->  | Z72: =getNumKeta0(基本情報!$G80,4) ->  | AA72: =getNumKeta0(基本情報!$G80,3) ->  | AB72: =getNumKeta0(基本情報!$G80,2) ->  | AC72: =getnumketa(基本情報!M95,1) -> 0 | AD72: =getNumKeta0(基本情報!$G80,1) ->  | AF72: =getNumKeta0(基本情報!$H80,9) ->  | AH72: =getNumKeta0(基本情報!$H80,8) ->  | AJ72: =getNumKeta0(基本情報!$H80,7) ->  | AL72: =getNumKeta0(基本情報!$H80,6) ->  | AN72: =getNumKeta0(基本情報!$H80,5) ->  | AP72: =getNumKeta0(基本情報!$H80,4) ->  | AR72: =getNumKeta0(基本情報!$H80,3) ->  | AT72: =getNumKeta0(基本情報!$H80,2) ->  | AW72: =getNumKeta0(基本情報!$H80,1) ->  | AX72: 小 計 ・ 合 計 | BB72: =getnumketa(基本情報_合計税抜金額3,9) ->  | BC72: =getnumketa(基本情報_合計税抜金額3,8) ->  | BD72: =getnumketa(基本情報_合計税抜金額3,7) ->  | BF72: =getnumketa(基本情報_合計税抜金額3,6) ->  | BG72: =getnumketa(基本情報_合計税抜金額3,5) ->  | BH72: =getnumketa(基本情報_合計税抜金額3,4) ->  | BI72: =getnumketa(基本情報_合計税抜金額3,3) ->  | BJ72: =getnumketa(基本情報_合計税抜金額3,2) ->  | BK72: =getnumketa(基本情報_合計税抜金額3,1) -> 0 | BL72: =getnumketa(基本情報_合計消費税額3,7) ->  | BM72: =getnumketa(基本情報_合計消費税額3,6) ->  | BN72: =getnumketa(基本情報_合計消費税額3,5) ->  | BO72: =getnumketa(基本情報_合計消費税額3,4) ->  | BQ72: =getnumketa(基本情報_合計消費税額3,3) ->  | BR72: =getnumketa(基本情報_合計消費税額3,2) ->  | BS72: =getnumketa(基本情報_合計消費税額3,1) -> 0 | BT72: =getnumketa(基本情報_合計税込金額3,9) ->  | BU72: =getnumketa(基本情報_合計税込金額3,8) ->  | BV72: =getnumketa(基本情報_合計税込金額3,7) ->  | BW72: =getnumketa(基本情報_合計税込金額3,6) ->  | BX72: =getnumketa(基本情報_合計税込金額3,5) ->  | BZ72: =getnumketa(基本情報_合計税込金額3,4) ->  | CA72: =getnumketa(基本情報_合計税込金額3,3) ->  | CB72: =getnumketa(基本情報_合計税込金額3,2) ->  | CC72: =getnumketa(基本情報_合計税込金額3,1) -> 0
A73: =基本情報!$B81 -> 0 | N73: =getNumKeta0(基本情報!$E81+基本情報!$F81,9) ->  | O73: =getNumKeta0(基本情報!$E81+基本情報!$F81,8) ->  | P73: =getNumKeta0(基本情報!$E81+基本情報!$F81,7) ->  | Q73: =getNumKeta0(基本情報!$E81+基本情報!$F81,6) ->  | R73: =getNumKeta0(基本情報!$E81+基本情報!$F81,5) ->  | S73: =getNumKeta0(基本情報!$E81+基本情報!$F81,4) ->  | T73: =getNumKeta0(基本情報!$E81+基本情報!$F81,3) ->  | U73: =getNumKeta0(基本情報!$E81+基本情報!$F81,2) ->  | V73: =getNumKeta0(基本情報!$E81+基本情報!$F81,1) ->  | W73: =getNumKeta0(基本情報!$G81,7) ->  | X73: =getNumKeta0(基本情報!$G81,6) ->  | Y73: =getNumKeta0(基本情報!$G81,5) ->  | Z73: =getNumKeta0(基本情報!$G81,4) ->  | AA73: =getNumKeta0(基本情報!$G81,3) ->  | AB73: =getNumKeta0(基本情報!$G81,2) ->  | AC73: =getnumketa(基本情報!M96,1) -> 0 | AD73: =getNumKeta0(基本情報!$G81,1) ->  | AF73: =getNumKeta0(基本情報!$H81,9) ->  | AH73: =getNumKeta0(基本情報!$H81,8) ->  | AJ73: =getNumKeta0(基本情報!$H81,7) ->  | AL73: =getNumKeta0(基本情報!$H81,6) ->  | AN73: =getNumKeta0(基本情報!$H81,5) ->  | AP73: =getNumKeta0(基本情報!$H81,4) ->  | AR73: =getNumKeta0(基本情報!$H81,3) ->  | AT73: =getNumKeta0(基本情報!$H81,2) ->  | AW73: =getNumKeta0(基本情報!$H81,1) -> 
A74: =基本情報!$B82 -> 0 | N74: =getNumKeta0(基本情報!$E82+基本情報!$F82,9) ->  | O74: =getNumKeta0(基本情報!$E82+基本情報!$F82,8) ->  | P74: =getNumKeta0(基本情報!$E82+基本情報!$F82,7) ->  | Q74: =getNumKeta0(基本情報!$E82+基本情報!$F82,6) ->  | R74: =getNumKeta0(基本情報!$E82+基本情報!$F82,5) ->  | S74: =getNumKeta0(基本情報!$E82+基本情報!$F82,4) ->  | T74: =getNumKeta0(基本情報!$E82+基本情報!$F82,3) ->  | U74: =getNumKeta0(基本情報!$E82+基本情報!$F82,2) ->  | V74: =getNumKeta0(基本情報!$E82+基本情報!$F82,1) ->  | W74: =getNumKeta0(基本情報!$G82,7) ->  | X74: =getNumKeta0(基本情報!$G82,6) ->  | Y74: =getNumKeta0(基本情報!$G82,5) ->  | Z74: =getNumKeta0(基本情報!$G82,4) ->  | AA74: =getNumKeta0(基本情報!$G82,3) ->  | AB74: =getNumKeta0(基本情報!$G82,2) ->  | AC74: =getnumketa(基本情報!M97,1) -> 0 | AD74: =getNumKeta0(基本情報!$G82,1) ->  | AF74: =getNumKeta0(基本情報!$H82,9) ->  | AH74: =getNumKeta0(基本情報!$H82,8) ->  | AJ74: =getNumKeta0(基本情報!$H82,7) ->  | AL74: =getNumKeta0(基本情報!$H82,6) ->  | AN74: =getNumKeta0(基本情報!$H82,5) ->  | AP74: =getNumKeta0(基本情報!$H82,4) ->  | AR74: =getNumKeta0(基本情報!$H82,3) ->  | AT74: =getNumKeta0(基本情報!$H82,2) ->  | AW74: =getNumKeta0(基本情報!$H82,1) ->  | AX74: 訂正内容
A75: =基本情報!$B83 -> 0 | N75: =getNumKeta0(基本情報!$E83+基本情報!$F83,9) ->  | O75: =getNumKeta0(基本情報!$E83+基本情報!$F83,8) ->  | P75: =getNumKeta0(基本情報!$E83+基本情報!$F83,7) ->  | Q75: =getNumKeta0(基本情報!$E83+基本情報!$F83,6) ->  | R75: =getNumKeta0(基本情報!$E83+基本情報!$F83,5) ->  | S75: =getNumKeta0(基本情報!$E83+基本情報!$F83,4) ->  | T75: =getNumKeta0(基本情報!$E83+基本情報!$F83,3) ->  | U75: =getNumKeta0(基本情報!$E83+基本情報!$F83,2) ->  | V75: =getNumKeta0(基本情報!$E83+基本情報!$F83,1) ->  | W75: =getNumKeta0(基本情報!$G83,7) ->  | X75: =getNumKeta0(基本情報!$G83,6) ->  | Y75: =getNumKeta0(基本情報!$G83,5) ->  | Z75: =getNumKeta0(基本情報!$G83,4) ->  | AA75: =getNumKeta0(基本情報!$G83,3) ->  | AB75: =getNumKeta0(基本情報!$G83,2) ->  | AC75: =getnumketa(基本情報!M98,1) -> 0 | AD75: =getNumKeta0(基本情報!$G83,1) ->  | AF75: =getNumKeta0(基本情報!$H83,9) ->  | AH75: =getNumKeta0(基本情報!$H83,8) ->  | AJ75: =getNumKeta0(基本情報!$H83,7) ->  | AL75: =getNumKeta0(基本情報!$H83,6) ->  | AN75: =getNumKeta0(基本情報!$H83,5) ->  | AP75: =getNumKeta0(基本情報!$H83,4) ->  | AR75: =getNumKeta0(基本情報!$H83,3) ->  | AT75: =getNumKeta0(基本情報!$H83,2) ->  | AW75: =getNumKeta0(基本情報!$H83,1) -> 
B77: （注） | C77: １．請求書の締切日は、原則末日５日迄提出願います。又、支払は締の翌月20日となります。
C78: 但し、提出期限が当社休日の場合は前日とし、支払日は翌銀行営業日と致します。
C79: 尚、例外として4月と12月は、締日と必着日が毎年異なりますので十分ご注意ください。（別紙カレンダー参照）
C80: 期日迄に提出されない場合は、翌月計上となります。
C81: ２．当社への登録内容に変更を生じた場合は、速やかに「取引情報（新規・変更）届出書」を提出願います。 | AZ81: 貴社→経理(控)

Sheet 管理表レイアウト (hidden)

Sheet 管理表
B1: 管理表（一般用） | AX1: 適格請求書発行事業者登録 | AZ1: 有 | BC1: 登録番号 : | BJ1: T1-2345-6789-0123 | BW1: P 1/1
AC2: 変更時当社記入欄 | AV2: 取引先コード | AY2: 999999 | AZ2: 締 日 | BE2: 2023-01-31
A3: 株式会社 丸 高 御中 | BJ3: 振込銀行 | BN3: 荘内 | BU3: 銀 行 | BV3: 若竹町 | CC3: 支 店
A4: 下記の通り御請求申し上げます。 | M4: 税率 ( 10% ) | AW4: （住所） | AY4: 酒田市○○○○１－１ | BJ4: 銀行ｺｰﾄﾞ | BN4: 4桁 | BP4: 121 | BU4: 支店 ｺｰﾄﾞ | BW4: 3桁 | BY4: 133
A5: 前月請求額 | K5: 0 | M5: 税抜金額計 | V5: 8 | W5: 2 | X5: 5 | Y5: 6 | Z5: 2 | AA5: 1 | AW5: （社名） | AY5: (株）○○建設 | BJ5: 口座番号 | BN5: 当 座 | BS5: 1234567
A6: 入 金 額 | K6: 0 | M6: 請求明細 消費税合計 | W6: 8 | X6: 2 | Y6: 5 | Z6: 3 | AA6: 0 | BJ6: 口座名義:漢字
A7: 値 引 額 | K7: 0 | M7: 税込当月請求額 | V7: 9 | W7: 0 | X7: 8 | Y7: 1 | Z7: 5 | AA7: 1 | AW7: （電話） | AY7: 0234 - 00 - 0000 | BJ7: (株）○○建設
A8: 繰越金額 | K8: 0 | M8: 税込当月総請求額 | V8: 9 | W8: 0 | X8: 8 | Y8: 1 | Z8: 5 | AA8: 1 | BJ8: 口座名義:カナ | BP8: ｶ)ﾏﾙﾏﾙｹﾝｾﾂ
A9: 工 事 名 | L9: ＣＫ | N9: 税抜金額 | W9: 消費税 | AF9: 税込金額 | AX9: 工 事 名 | BA9: ＣＫ | BB9: 税抜金額 | BL9: 消費税 | BT9: 税込金額
A10: ○○○○○工事 | Q10: 3 | R10: 5 | S10: 0 | T10: 6 | U10: 2 | V10: 1 | Y10: 3 | Z10: 5 | AA10: 0 | AB10: 3 | AD10: 0 | AL10: 3 | AN10: 8 | AP10: 5 | AR10: 6 | AT10: 5 | AW10: 1 | AX10: 0
A11: ×××××工事 | Q11: 4 | R11: 7 | S11: 5 | T11: 0 | U11: 0 | V11: 0 | Y11: 4 | Z11: 7 | AA11: 5 | AB11: 0 | AD11: 0 | AL11: 5 | AN11: 2 | AP11: 2 | AR11: 5 | AT11: 0 | AW11: 0 | AX11: 0
A12: 0 | AX12: 0
A13: 0 | AX13: 0
A14: 0 | AX14: 0
A15: 0 | AX15: 0
A16: 0 | AX16: 0
A17: 0 | AX17: 0
A18: 0 | AX18: 小 計 ・ 合 計 | BF18: 8 | BG18: 2 | BH18: 5 | BI18: 6 | BJ18: 2 | BK18: 1 | BN18: 8 | BO18: 2 | BQ18: 5 | BR18: 3 | BS18: 0 | BW18: 9 | BX18: 0 | BZ18: 8 | CA18: 1 | CB18: 5 | CC18: 1
A19: 0
A20: 0 | AX20: 訂正内容
A21: 0
B23: （注） | C23: １．請求書の締切日は、原則末日５日迄提出願います。又、支払は締の翌月20日となります。
C24: 但し、提出期限が当社休日の場合は前日とし、支払日は翌銀行営業日と致します。
C25: 尚、例外として4月と12月は、締日と必着日が毎年異なりますので十分ご注意ください。（別紙カレンダー参照）
C26: 期日迄に提出されない場合は、翌月計上となります。
C27: ２．当社への登録内容に変更を生じた場合は、速やかに「取引情報（新規・変更）届出書」を提出願います。 | AZ27: 貴社→経理(控)

Sheet 請求書レイアウト (hidden)
J3: 提出用 | BN3: 提出用

Sheet 請求書
AS1: P 1/1 | CW1: P 1/1
D2: 請求書（一般用） | Z2: 取引先コード | AC2: 999999 | AM2: 締日 | AP2: 2023-01-31 | BH2: 請求書（一般用） | CD2: 取引先コード | CG2: 999999 | CQ2: 締日 | CT2: 2023-01-31
J3: 提出用 | BN3: 提出用
Z5: 適格請求書発行事業者登録 | AM5: 有 | AP5: 登録番号 | AS5: T1-2345-6789-0123 | CD5: 適格請求書発行事業者登録 | CQ5: 有 | CT5: 登録番号 | CW5: T1-2345-6789-0123
B8: 株式会社 丸 高 御中 | Z8: （住所・社名・電話） | BF8: 株式会社 丸 高 御中 | CD8: （住所・社名・電話）
AC12: 酒田市○○○○１－１ | CG12: 酒田市○○○○１－１
B14: 工 事 名 | E14: ○○○○○工事 | P14: 承 認 | V14: 検 印 | BF14: 工 事 名 | BI14: ○○○○○工事 | BT14: 承 認 | BZ14: 検 印
AC17: (株）○○建設 | AY17: 印 | CG17: (株）○○建設 | DC17: 印
B20: 作業所長名 | E20: 〇太郎 | BF20: 作業所長名 | BI20: 〇太郎
AC22: 0234 - 00 - 0000 | CG22: 0234 - 00 - 0000
B27: 通番 | C27: 納入年月日 | F27: 品 名 ・ 規 格 | J27: 数 量 | V27: 単 位 | W27: 単 価 | AI27: 金 額 | AR27: 備 考 | BF27: 通番 | BG27: 納入年月日 | BJ27: 品 名 ・ 規 格 | BN27: 数 量 | BZ27: 単 位 | CA27: 単 価 | CM27: 金 額 | CV27: 備 考
B28: 1 | C28: 2023-01-10 | F28: 〇〇材料 | Q28: 5 | R28: 0 | S28: 0 | T28: 0 | V28: 個 | AB28: 5 | AC28: 0 | AD28: 0 | AE28: 0 | AF28: 0 | AG28: 0 | AL28: 2 | AM28: 5 | AN28: 0 | AO28: 0 | AP28: 0 | AQ28: 0 | BF28: 1 | BG28: 2023-01-10 | BJ28: 〇〇材料 | BU28: 5 | BV28: 0 | BW28: 0 | BX28: 0 | BZ28: 個 | CF28: 5 | CG28: 0 | CH28: 0 | CI28: 0 | CJ28: 0 | CK28: 0 | CP28: 2 | CQ28: 5 | CR28: 0 | CS28: 0 | CT28: 0 | CU28: 0
B29: 2 | C29: 2023-01-20 | F29: 機械損科 | Q29: 1 | R29: 0 | S29: 0 | T29: 0 | V29: 日 | AA29: 1 | AB29: 0 | AC29: 0 | AD29: 0 | AE29: 0 | AF29: 0 | AG29: 0 | AL29: 1 | AM29: 0 | AN29: 0 | AO29: 0 | AP29: 0 | AQ29: 0 | BF29: 2 | BG29: 2023-01-20 | BJ29: 機械損科 | BU29: 1 | BV29: 0 | BW29: 0 | BX29: 0 | BZ29: 日 | CE29: 1 | CF29: 0 | CG29: 0 | CH29: 0 | CI29: 0 | CJ29: 0 | CK29: 0 | CP29: 1 | CQ29: 0 | CR29: 0 | CS29: 0 | CT29: 0 | CU29: 0
B30: 3 | C30: 2023-01-20 | F30: 軽油 | Q30: 1 | R30: 0 | S30: 0 | T30: 0 | V30: L | AD30: 3 | AE30: 0 | AF30: 0 | AG30: 0 | AO30: 3 | AP30: 0 | AQ30: 0 | BF30: 3 | BG30: 2023-01-20 | BJ30: 軽油 | BU30: 1 | BV30: 0 | BW30: 0 | BX30: 0 | BZ30: L | CH30: 3 | CI30: 0 | CJ30: 0 | CK30: 0 | CS30: 3 | CT30: 0 | CU30: 0
B31: 4 | C31: 2023-01-20 | F31: 軽油税 | Q31: 1 | R31: 0 | S31: 0 | T31: 0 | V31: 0 | AD31: 3 | AE31: 2 | AF31: 1 | AG31: 0 | AO31: 3 | AP31: 2 | AQ31: 1 | BF31: 4 | BG31: 2023-01-20 | BJ31: 軽油税 | BU31: 1 | BV31: 0 | BW31: 0 | BX31: 0 | BZ31: 0 | CH31: 3 | CI31: 2 | CJ31: 1 | CK31: 0 | CS31: 3 | CT31: 2 | CU31: 1
B32: 5 | BF32: 5
B33: 6 | BF33: 6
B34: 7 | BF34: 7
B35: 8 | BF35: 8
B36: 9 | BF36: 9
B37: 10 | BF37: 10
B38: 11 | BF38: 11
B39: 12 | BF39: 12
B40: 13 | BF40: 13
B41: 14 | BF41: 14
W42: 非 課 税 小 計 | AO42: 3 | AP42: 2 | AQ42: 1 | AR42: A | AS42: 非課税・不課税 | CA42: 非 課 税 小 計 | CS42: 3 | CT42: 2 | CU42: 1 | CV42: A | CW42: 非課税・不課税
W43: 課 税 小 計 | AL43: 3 | AM43: 5 | AN43: 0 | AO43: 3 | AP43: 0 | AQ43: 0 | AR43: B | CA43: 課 税 小 計 | CP43: 3 | CQ43: 5 | CR43: 0 | CS43: 3 | CT43: 0 | CU43: 0 | CV43: B
W44: 消 費 税 | AE44: 0.1 | AM44: 3 | AN44: 5 | AO44: 0 | AP44: 3 | AQ44: 0 | AR44: C | AS44: B × 税率 | CA44: 消 費 税 | CI44: 0.1 | CQ44: 3 | CR44: 5 | CS44: 0 | CT44: 3 | CU44: 0 | CV44: C | CW44: B × 税率
W45: 課 税 合 計 | AL45: 3 | AM45: 8 | AN45: 5 | AO45: 3 | AP45: 3 | AQ45: 0 | AR45: D | AS45: B + C | CA45: 課 税 合 計 | CP45: 3 | CQ45: 8 | CR45: 5 | CS45: 3 | CT45: 3 | CU45: 0 | CV45: D | CW45: B + C
W46: 合 計 | AL46: 3 | AM46: 8 | AN46: 5 | AO46: 6 | AP46: 5 | AQ46: 1 | AR46: E | AS46: A + D | CA46: 合 計 | CP46: 3 | CQ46: 8 | CR46: 5 | CS46: 6 | CT46: 5 | CU46: 1 | CV46: E | CW46: A + D
W47: 貴社→請求書(添付)→経理(控) | CA47: 貴社→請求書(添付)→経理→作業所長(控)
AS49: P 1/1 | CW49: P 1/1
D50: 請求書（一般用） | Z50: 取引先コード | AC50: 999999 | AM50: 締日 | AP50: 2023-01-31 | BH50: 請求書（一般用） | CD50: 取引先コード | CG50: 999999 | CQ50: 締日 | CT50: 2023-01-31
J51: 提出用 | BN51: 提出用
Z53: 適格請求書発行事業者登録 | AM53: 有 | AP53: 登録番号 | AS53: T1-2345-6789-0123 | CD53: 適格請求書発行事業者登録 | CQ53: 有 | CT53: 登録番号 | CW53: T1-2345-6789-0123
B56: 株式会社 丸 高 御中 | Z56: （住所・社名・電話） | BF56: 株式会社 丸 高 御中 | CD56: （住所・社名・電話）
AC60: 酒田市○○○○１－１ | CG60: 酒田市○○○○１－１
B62: 工 事 名 | E62: ×××××工事 | P62: 承 認 | V62: 検 印 | BF62: 工 事 名 | BI62: ×××××工事 | BT62: 承 認 | BZ62: 検 印
AC65: (株）○○建設 | AY65: 印 | CG65: (株）○○建設 | DC65: 印
B68: 作業所長名 | E68: ×次郎 | BF68: 作業所長名 | BI68: ×次郎
AC70: 0234 - 00 - 0000 | CG70: 0234 - 00 - 0000
B75: 通番 | C75: 納入年月日 | F75: 品 名 ・ 規 格 | J75: 数 量 | V75: 単 位 | W75: 単 価 | AI75: 金 額 | AR75: 備 考 | BF75: 通番 | BG75: 納入年月日 | BJ75: 品 名 ・ 規 格 | BN75: 数 量 | BZ75: 単 位 | CA75: 単 価 | CM75: 金 額 | CV75: 備 考
B76: 1 | C76: 2023-01-13 | F76: 〇〇材料 | Q76: 5 | R76: 0 | S76: 0 | T76: 0 | V76: 個 | AB76: 5 | AC76: 0 | AD76: 0 | AE76: 0 | AF76: 0 | AG76: 0 | AL76: 2 | AM76: 5 | AN76: 0 | AO76: 0 | AP76: 0 | AQ76: 0 | BF76: 1 | BG76: 2023-01-13 | BJ76: 〇〇材料 | BU76: 5 | BV76: 0 | BW76: 0 | BX76: 0 | BZ76: 個 | CF76: 5 | CG76: 0 | CH76: 0 | CI76: 0 | CJ76: 0 | CK76: 0 | CP76: 2 | CQ76: 5 | CR76: 0 | CS76: 0 | CT76: 0 | CU76: 0
B77: 2 | C77: 2023-01-13 | F77: 労務費 | Q77: 2 | R77: 5 | S77: 0 | T77: 0 | V77: 人 | AA77: 1 | AB77: 0 | AC77: 0 | AD77: 0 | AE77: 0 | AF77: 0 | AG77: 0 | AL77: 2 | AM77: 5 | AN77: 0 | AO77: 0 | AP77: 0 | AQ77: 0 | BF77: 2 | BG77: 2023-01-13 | BJ77: 労務費 | BU77: 2 | BV77: 5 | BW77: 0 | BX77: 0 | BZ77: 人 | CE77: 1 | CF77: 0 | CG77: 0 | CH77: 0 | CI77: 0 | CJ77: 0 | CK77: 0 | CP77: 2 | CQ77: 5 | CR77: 0 | CS77: 0 | CT77: 0 | CU77: 0
B78: 3 | C78: 2023-01-31 | F78: 値引き | Q78: ▲ | R78: 1 | S78: 0 | T78: 0 | V78: 式 | AA78: 2 | AB78: 5 | AC78: 0 | AD78: 0 | AE78: 0 | AF78: 0 | AG78: 0 | AL78: ▲ | AM78: 2 | AN78: 5 | AO78: 0 | AP78: 0 | AQ78: 0 | BF78: 3 | BG78: 2023-01-31 | BJ78: 値引き | BU78: ▲ | BV78: 1 | BW78: 0 | BX78: 0 | BZ78: 式 | CE78: 2 | CF78: 5 | CG78: 0 | CH78: 0 | CI78: 0 | CJ78: 0 | CK78: 0 | CP78: ▲ | CQ78: 2 | CR78: 5 | CS78: 0 | CT78: 0 | CU78: 0
B79: 4 | BF79: 4
B80: 5 | BF80: 5
B81: 6 | BF81: 6
B82: 7 | BF82: 7
B83: 8 | BF83: 8
B84: 9 | BF84: 9
B85: 10 | BF85: 10
B86: 11 | BF86: 11
B87: 12 | BF87: 12
B88: 13 | BF88: 13
B89: 14 | BF89: 14
W90: 非 課 税 小 計 | AQ90: 0 | AR90: A | AS90: 非課税・不課税 | CA90: 非 課 税 小 計 | CU90: 0 | CV90: A | CW90: 非課税・不課税
W91: 課 税 小 計 | AL91: 4 | AM91: 7 | AN91: 5 | AO91: 0 | AP91: 0 | AQ91: 0 | AR91: B | CA91: 課 税 小 計 | CP91: 4 | CQ91: 7 | CR91: 5 | CS91: 0 | CT91: 0 | CU91: 0 | CV91: B
W92: 消 費 税 | AE92: 0.1 | AM92: 4 | AN92: 7 | AO92: 5 | AP92: 0 | AQ92: 0 | AR92: C | AS92: B × 税率 | CA92: 消 費 税 | CI92: 0.1 | CQ92: 4 | CR92: 7 | CS92: 5 | CT92: 0 | CU92: 0 | CV92: C | CW92: B × 税率
W93: 課 税 合 計 | AL93: 5 | AM93: 2 | AN93: 2 | AO93: 5 | AP93: 0 | AQ93: 0 | AR93: D | AS93: B + C | CA93: 課 税 合 計 | CP93: 5 | CQ93: 2 | CR93: 2 | CS93: 5 | CT93: 0 | CU93: 0 | CV93: D | CW93: B + C
W94: 合 計 | AL94: 5 | AM94: 2 | AN94: 2 | AO94: 5 | AP94: 0 | AQ94: 0 | AR94: E | AS94: A + D | CA94: 合 計 | CP94: 5 | CQ94: 2 | CR94: 2 | CS94: 5 | CT94: 0 | CU94: 0 | CV94: E | CW94: A + D
W95: 貴社→請求書(添付)→経理(控) | CA95: 貴社→請求書(添付)→経理→作業所長(控)

Sheet ひな請求書 (hidden)
AS1: ="P " & B41/14 & "/" & ROUNDUP(COUNTIF(請求明細_工事場所, E14)/14,0) -> P 1/1 | CW1: ="P " & BF41/14 & "/" & ROUNDUP(COUNTIF(請求明細_工事場所, BI14)/14,0) -> P 1/1
D2: 請求書（一般用） | Z2: 取引先コード | AC2: =基本情報_取引先コード -> 999999 | AM2: 締日 | AP2: =基本情報_請求締日 -> 2023-01-31 | BH2: 請求書（一般用） | CD2: 取引先コード | CG2: =基本情報_取引先コード -> 999999 | CQ2: 締日 | CT2: =基本情報_請求締日 -> 2023-01-31
J3: 提出用 | BN3: 提出用
Z5: 適格請求書発行事業者登録 | AM5: =基本情報_事業者登録 -> 有 | AP5: 登録番号 | AS5: =IF(基本情報_登録番号="","",基本情報_登録番号) -> T1-2345-6789-0123 | CD5: 適格請求書発行事業者登録 | CQ5: =基本情報_事業者登録 -> 有 | CT5: 登録番号 | CW5: =IF(基本情報_登録番号="","",基本情報_登録番号) -> T1-2345-6789-0123
B8: 株式会社 丸 高 御中 | Z8: （住所・社名・電話） | BF8: 株式会社 丸 高 御中 | CD8: （住所・社名・電話）
AC12: =基本情報_住所 -> 酒田市○○○○１－１ | CG12: =基本情報_住所 -> 酒田市○○○○１－１
B14: 工 事 名 | E14: ×××××工事 | P14: 承 認 | V14: 検 印 | BF14: 工 事 名 | BI14: =$E$14 -> ×××××工事 | BT14: 承 認 | BZ14: 検 印
AC17: =基本情報_社名 -> (株）○○建設 | AY17: 印 | CG17: =基本情報_社名 -> (株）○○建設 | DC17: 印
B20: 作業所長名 | E20: =VLOOKUP(E14,基本情報_工事名称マスタ,3,FALSE) -> ×次郎 | BF20: 作業所長名 | BI20: =VLOOKUP(BI14,基本情報_工事名称マスタ,3,FALSE) -> ×次郎
AC22: =基本情報_電話番号 -> 0234 - 00 - 0000 | CG22: =基本情報_電話番号 -> 0234 - 00 - 0000
B27: 通番 | C27: 納入年月日 | F27: 品 名 ・ 規 格 | J27: 数 量 | V27: 単 位 | W27: 単 価 | AI27: 金 額 | AR27: 備 考 | BF27: 通番 | BG27: 納入年月日 | BJ27: 品 名 ・ 規 格 | BN27: 数 量 | BZ27: 単 位 | CA27: 単 価 | CM27: 金 額 | CV27: 備 考 | DI27: ヒット | DJ27: ランク | DK27: - | DL27: 通番 | DM27: 数量 | DN27: 単価 | DO27: 金額
B28: 1 | C28: =IF(ISNA($DL28),"",VLOOKUP($DL28,請求明細,3,FALSE)) -> 2023-01-13 | F28: =IF(ISNA($DL28),"",VLOOKUP($DL28,請求明細,4,FALSE)) -> 〇〇材料 | J28: =IF(ISNA($DL28),"",getNumKeta0($DM28,9)) ->  | K28: =IF(ISNA($DL28),"",getNumKeta0($DM28,8)) ->  | L28: =IF(ISNA($DL28),"",getNumKeta0($DM28,7)) ->  | M28: =IF(ISNA($DL28),"",getNumKeta0($DM28,6)) ->  | N28: =IF(ISNA($DL28),"",getNumKeta0($DM28,5)) ->  | O28: =IF(ISNA($DL28),"",getNumKeta0($DM28,4)) ->  | P28: =IF(ISNA($DL28),"",getNumKeta0($DM28,3)) ->  | Q28: =IF(ISNA($DL28),"",getNumKeta0($DM28,2)) -> 5 | R28: =IF(ISNA($DL28),"",getNumKeta0($DM28,1)) -> 0 | S28: =IF(ISNA($DL28),"",getNumKeta0($DM28,-1)) -> 0 | T28: =IF(ISNA($DL28),"",getNumKeta0($DM28,-2)) -> 0 | U28: =IF(ISNA($DL28),"",getNumKeta0($DM28,-3)) ->  | V28: =IF(ISNA($DL28),"",VLOOKUP($DL28,請求明細,6,FALSE)) -> 個 | W28: =IF(ISNA($DL28),"",getNumKeta0($DN28,9)) ->  | X28: =IF(ISNA($DL28),"",getNumKeta0($DN28,8)) ->  | Y28: =IF(ISNA($DL28),"",getNumKeta0($DN28,7)) ->  | Z28: =IF(ISNA($DL28),"",getNumKeta0($DN28,6)) ->  | AA28: =IF(ISNA($DL28),"",getNumKeta0($DN28,5)) ->  | AB28: =IF(ISNA($DL28),"",getNumKeta0($DN28,4)) -> 5 | AC28: =IF(ISNA($DL28),"",getNumKeta0($DN28,3)) -> 0 | AD28: =IF(ISNA($DL28),"",getNumKeta0($DN28,2)) -> 0 | AE28: =IF(ISNA($DL28),"",getNumKeta0($DN28,1)) -> 0 | AF28: =IF(ISNA($DL28),"",getNumKeta0($DN28,-1)) -> 0 | AG28: =IF(ISNA($DL28),"",getNumKeta0($DN28,-2)) -> 0 | AH28: =IF(ISNA($DL28),"",getNumKeta0($DN28,-3)) ->  | AI28: =IF(ISNA($DL28),"",getNumKeta0($DO28,9)) ->  | AJ28: =IF(ISNA($DL28),"",getNumKeta0($DO28,8)) ->  | AK28: =IF(ISNA($DL28),"",getNumKeta0($DO28,7)) ->  | AL28: =IF(ISNA($DL28),"",getNumKeta0($DO28,6)) -> 2 | AM28: =IF(ISNA($DL28),"",getNumKeta0($DO28,5)) -> 5 | AN28: =IF(ISNA($DL28),"",getNumKeta0($DO28,4)) -> 0 | AO28: =IF(ISNA($DL28),"",getNumKeta0($DO28,3)) -> 0 | AP28: =IF(ISNA($DL28),"",getNumKeta0($DO28,2)) -> 0 | AQ28: =IF(ISNA($DL28),"",getNumKeta0($DO28,1)) -> 0 | AR28: =IF(ISNA($DL28),"",LEFT(VLOOKUP($DL28,請求明細,10,FALSE),16)) ->  | BF28: 1 | BG28: =IF(ISNA($DL28),"",VLOOKUP($DL28,請求明細,3,FALSE)) -> 2023-01-13 | BJ28: =IF(ISNA($DL28),"",VLOOKUP($DL28,請求明細,4,FALSE)) -> 〇〇材料 | BN28: =IF(ISNA($DL28),"",getNumKeta0($DM28,9)) ->  | BO28: =IF(ISNA($DL28),"",getNumKeta0($DM28,8)) ->  | BP28: =IF(ISNA($DL28),"",getNumKeta0($DM28,7)) ->  | BQ28: =IF(ISNA($DL28),"",getNumKeta0($DM28,6)) ->  | BR28: =IF(ISNA($DL28),"",getNumKeta0($DM28,5)) ->  | BS28: =IF(ISNA($DL28),"",getNumKeta0($DM28,4)) ->  | BT28: =IF(ISNA($DL28),"",getNumKeta0($DM28,3)) ->  | BU28: =IF(ISNA($DL28),"",getNumKeta0($DM28,2)) -> 5 | BV28: =IF(ISNA($DL28),"",getNumKeta0($DM28,1)) -> 0 | BW28: =IF(ISNA($DL28),"",getNumKeta0($DM28,-1)) -> 0 | BX28: =IF(ISNA($DL28),"",getNumKeta0($DM28,-2)) -> 0 | BY28: =IF(ISNA($DL28),"",getNumKeta0($DM28,-3)) ->  | BZ28: =IF(ISNA($DL28),"",VLOOKUP($DL28,請求明細,6,FALSE)) -> 個 | CA28: =IF(ISNA($DL28),"",getNumKeta0($DN28,9)) ->  | CB28: =IF(ISNA($DL28),"",getNumKeta0($DN28,8)) ->  | CC28: =IF(ISNA($DL28),"",getNumKeta0($DN28,7)) ->  | CD28: =IF(ISNA($DL28),"",getNumKeta0($DN28,6)) ->  | CE28: =IF(ISNA($DL28),"",getNumKeta0($DN28,5)) ->  | CF28: =IF(ISNA($DL28),"",getNumKeta0($DN28,4)) -> 5 | CG28: =IF(ISNA($DL28),"",getNumKeta0($DN28,3)) -> 0 | CH28: =IF(ISNA($DL28),"",getNumKeta0($DN28,2)) -> 0 | CI28: =IF(ISNA($DL28),"",getNumKeta0($DN28,1)) -> 0 | CJ28: =IF(ISNA($DL28),"",getNumKeta0($DN28,-1)) -> 0 | CK28: =IF(ISNA($DL28),"",getNumKeta0($DN28,-2)) -> 0 | CL28: =IF(ISNA($DL28),"",getNumKeta0($DN28,-3)) ->  | CM28: =IF(ISNA($DL28),"",getNumKeta0($DO28,9)) ->  | CN28: =IF(ISNA($DL28),"",getNumKeta0($DO28,8)) ->  | CO28: =IF(ISNA($DL28),"",getNumKeta0($DO28,7)) ->  | CP28: =IF(ISNA($DL28),"",getNumKeta0($DO28,6)) -> 2 | CQ28: =IF(ISNA($DL28),"",getNumKeta0($DO28,5)) -> 5 | CR28: =IF(ISNA($DL28),"",getNumKeta0($DO28,4)) -> 0 | CS28: =IF(ISNA($DL28),"",getNumKeta0($DO28,3)) -> 0 | CT28: =IF(ISNA($DL28),"",getNumKeta0($DO28,2)) -> 0 | CU28: =IF(ISNA($DL28),"",getNumKeta0($DO28,1)) -> 0 | CV28: =IF(ISNA($DL28),"",LEFT(VLOOKUP($DL28,請求明細,10,FALSE),16)) ->  | DI28: =IF($E$14=OFFSET(明細情報!$B$5, $DK28-1,0),1,0) -> 0 | DJ28: =IF($DI28=0, 0, SUM($DI$28:$DI28)) -> 0 | DK28: 1 | DL28: =VLOOKUP(DK28,$DJ$28:$DK$65556,2,FALSE) -> 2 | DM28: =IF(ISNA($DL28),0,VLOOKUP($DL28,請求明細,5,FALSE)) -> 50 | DN28: =IF(ISNA($DL28),0,VLOOKUP($DL28,請求明細,7,FALSE)) -> 5000 | DO28: =IF(ISNA($DL28),0,VLOOKUP($DL28,請求明細,9,FALSE)) -> 250000
B29: =B28+1 -> 2 | C29: 2023-01-13 | F29: 労務費 | Q29: 2 | R29: 5 | S29: 0 | T29: 0 | V29: 人 | AA29: 1 | AB29: 0 | AC29: 0 | AD29: 0 | AE29: 0 | AF29: 0 | AG29: 0 | AL29: 2 | AM29: 5 | AN29: 0 | AO29: 0 | AP29: 0 | AQ29: 0 | AR29: =IF(ISNA($DL29),"",LEFT(VLOOKUP($DL29,請求明細,10,FALSE),16)) ->  | BF29: =BF28+1 -> 2 | BG29: 2023-01-13 | BJ29: 労務費 | BU29: 2 | BV29: 5 | BW29: 0 | BX29: 0 | BZ29: 人 | CE29: 1 | CF29: 0 | CG29: 0 | CH29: 0 | CI29: 0 | CJ29: 0 | CK29: 0 | CP29: 2 | CQ29: 5 | CR29: 0 | CS29: 0 | CT29: 0 | CU29: 0 | DI29: =IF($E$14=OFFSET(明細情報!$B$5, $DK29-1,0),1,0) -> 1 | DJ29: =IF($DI29=0, 0, SUM($DI$28:$DI29)) -> 1 | DK29: =DK28+1 -> 2 | DL29: =VLOOKUP(B29,$DJ$28:$DK$65556,2,FALSE) -> 3 | DM29: 25 | DN29: 10000 | DO29: 250000
B30: 3 | C30: 2023-01-31 | F30: 値引き | Q30: ▲ | R30: 1 | S30: 0 | T30: 0 | V30: 式 | AA30: 2 | AB30: 5 | AC30: 0 | AD30: 0 | AE30: 0 | AF30: 0 | AG30: 0 | AL30: ▲ | AM30: 2 | AN30: 5 | AO30: 0 | AP30: 0 | AQ30: 0 | AR30: =IF(ISNA($DL30),"",LEFT(VLOOKUP($DL30,請求明細,10,FALSE),16)) ->  | BF30: 3 | BG30: 2023-01-31 | BJ30: 値引き | BU30: ▲ | BV30: 1 | BW30: 0 | BX30: 0 | BZ30: 式 | CE30: 2 | CF30: 5 | CG30: 0 | CH30: 0 | CI30: 0 | CJ30: 0 | CK30: 0 | CP30: ▲ | CQ30: 2 | CR30: 5 | CS30: 0 | CT30: 0 | CU30: 0 | DI30: =IF($E$14=OFFSET(明細情報!$B$5, $DK30-1,0),1,0) -> 1 | DJ30: =IF($DI30=0, 0, SUM($DI$28:$DI30)) -> 2 | DK30: 3 | DL30: 7 | DM30: -1 | DN30: 25000 | DO30: -25000
B31: 4 | AR31: =IF(ISNA($DL31),"",LEFT(VLOOKUP($DL31,請求明細,10,FALSE),16)) ->  | BF31: 4 | DI31: =IF($E$14=OFFSET(明細情報!$B$5, $DK31-1,0),1,0) -> 0 | DJ31: =IF($DI31=0, 0, SUM($DI$28:$DI31)) -> 0 | DK31: 4 | DM31: 0 | DN31: 0 | DO31: 0
B32: 5 | BF32: 5 | DI32: =IF($E$14=OFFSET(明細情報!$B$5, $DK32-1,0),1,0) -> 0 | DJ32: =IF($DI32=0, 0, SUM($DI$28:$DI32)) -> 0 | DK32: 5 | DM32: 0 | DN32: 0 | DO32: 0
B33: 6 | AR33: =IF(ISNA($DL33),"",LEFT(VLOOKUP($DL33,請求明細,10,FALSE),16)) ->  | BF33: 6 | DI33: =IF($E$14=OFFSET(明細情報!$B$5, $DK33-1,0),1,0) -> 0 | DJ33: =IF($DI33=0, 0, SUM($DI$28:$DI33)) -> 0 | DK33: 6 | DM33: 0 | DN33: 0 | DO33: 0
B34: 7 | AR34: =IF(ISNA($DL34),"",LEFT(VLOOKUP($DL34,請求明細,10,FALSE),16)) ->  | BF34: 7 | DI34: =IF($E$14=OFFSET(明細情報!$B$5, $DK34-1,0),1,0) -> 1 | DJ34: =IF($DI34=0, 0, SUM($DI$28:$DI34)) -> 3 | DK34: 7 | DM34: 0 | DN34: 0 | DO34: 0
B35: 8 | BF35: 8 | DI35: =IF($E$14=OFFSET(明細情報!$B$5, $DK35-1,0),1,0) -> 0 | DJ35: =IF($DI35=0, 0, SUM($DI$28:$DI35)) -> 0 | DK35: 8 | DM35: 0 | DN35: 0 | DO35: 0
B36: 9 | BF36: 9 | DI36: =IF($E$14=OFFSET(明細情報!$B$5, $DK36-1,0),1,0) -> 0 | DJ36: =IF($DI36=0, 0, SUM($DI$28:$DI36)) -> 0 | DK36: 9 | DM36: 0 | DN36: 0 | DO36: 0
B37: 10 | BF37: 10 | DI37: =IF($E$14=OFFSET(明細情報!$B$5, $DK37-1,0),1,0) -> 0 | DJ37: =IF($DI37=0, 0, SUM($DI$28:$DI37)) -> 0 | DK37: 10 | DM37: 0 | DN37: 0 | DO37: 0
B38: 11 | BF38: 11 | DI38: =IF($E$14=OFFSET(明細情報!$B$5, $DK38-1,0),1,0) -> 0 | DJ38: =IF($DI38=0, 0, SUM($DI$28:$DI38)) -> 0 | DK38: 11 | DM38: 0 | DN38: 0 | DO38: 0
B39: 12 | BF39: 12 | DI39: =IF($E$14=OFFSET(明細情報!$B$5, $DK39-1,0),1,0) -> 0 | DJ39: =IF($DI39=0, 0, SUM($DI$28:$DI39)) -> 0 | DK39: 12 | DM39: 0 | DN39: 0 | DO39: 0
B40: 13 | BF40: 13 | DI40: =IF($E$14=OFFSET(明細情報!$B$5, $DK40-1,0),1,0) -> 0 | DJ40: =IF($DI40=0, 0, SUM($DI$28:$DI40)) -> 0 | DK40: 13 | DM40: 0 | DN40: 0 | DO40: 0
B41: 14 | BF41: 14 | DI41: =IF($E$14=OFFSET(明細情報!$B$5, $DK41-1,0),1,0) -> 0 | DJ41: =IF($DI41=0, 0, SUM($DI$28:$DI41)) -> 0 | DK41: 14 | DM41: 0 | DN41: 0 | DO41: 0
W42: 非 課 税 小 計 | AI42: =getNumKeta0($DP43,9) ->  | AJ42: =getNumKeta0($DP42,8) ->  | AK42: =getNumKeta0($DP42,7) ->  | AL42: =getNumKeta0($DP42,6) ->  | AM42: =getNumKeta0($DP42,5) ->  | AN42: =getNumKeta0($DP42,4) ->  | AO42: =getNumKeta0($DP42,3) ->  | AP42: =getNumKeta0($DP42,2) ->  | AQ42: =IF(F41="",IF($DP42=0,"0",getNumKeta0($DP42,1)),"") -> 0 | AR42: A | AS42: 非課税・不課税 | CA42: 非 課 税 小 計 | CM42: =getNumKeta0($DP43,9) ->  | CN42: =getNumKeta0($DP42,8) ->  | CO42: =getNumKeta0($DP42,7) ->  | CP42: =getNumKeta0($DP42,6) ->  | CQ42: =getNumKeta0($DP42,5) ->  | CR42: =getNumKeta0($DP42,4) ->  | CS42: =getNumKeta0($DP42,3) ->  | CT42: =getNumKeta0($DP42,2) ->  | CU42: =IF(BJ41="",IF($DP42=0,"0",getNumKeta0($DP42,1)),"") -> 0 | CV42: A | CW42: 非課税・不課税 | DP42: =IF($DK41/14=ROUNDUP(MAX($DJ:$DJ)/14,0),VLOOKUP($E$14,基本情報_工事名称マスタ,5,FALSE),0) -> 0 | DQ42: =DP42 -> 0
W43: 課 税 小 計 | AI43: =getNumKeta0($DP43,9) ->  | AJ43: =getNumKeta0($DP43,8) ->  | AK43: =getNumKeta0($DP43,7) ->  | AL43: =getNumKeta0($DP43,6) -> 4 | AM43: =getNumKeta0($DP43,5) -> 7 | AN43: =getNumKeta0($DP43,4) -> 5 | AO43: =getNumKeta0($DP43,3) -> 0 | AP43: =getNumKeta0($DP43,2) -> 0 | AQ43: =getNumKeta0($DP43,1) -> 0 | AR43: B | BB43: =IF($DP43<>$DQ43,"*","") ->  | CA43: 課 税 小 計 | CM43: =getNumKeta0($DP43,9) ->  | CN43: =getNumKeta0($DP43,8) ->  | CO43: =getNumKeta0($DP43,7) ->  | CP43: =getNumKeta0($DP43,6) -> 4 | CQ43: =getNumKeta0($DP43,5) -> 7 | CR43: =getNumKeta0($DP43,4) -> 5 | CS43: =getNumKeta0($DP43,3) -> 0 | CT43: =getNumKeta0($DP43,2) -> 0 | CU43: =getNumKeta0($DP43,1) -> 0 | CV43: B | DF43: =IF($DP43<>$DQ43,"*","") ->  | DP43: =IF($DK41/14=ROUNDUP(MAX($DJ:$DJ)/14,0),VLOOKUP($E$14,基本情報_工事名称マスタ,4,FALSE),0) -> 475000 | DQ43: =DP43 -> 475000
W44: 消 費 税 | AE44: =基本情報_消費税率 -> 0.1 | AI44: =getNumKeta0($DP44,9) ->  | AJ44: =getNumKeta0($DP44,8) ->  | AK44: =getNumKeta0($DP44,7) ->  | AL44: =getNumKeta0($DP44,6) ->  | AM44: =getNumKeta0($DP44,5) -> 4 | AN44: =getNumKeta0($DP44,4) -> 7 | AO44: =getNumKeta0($DP44,3) -> 5 | AP44: =getNumKeta0($DP44,2) -> 0 | AQ44: =getNumKeta0($DP44,1) -> 0 | AR44: C | AS44: B × 税率 | CA44: 消 費 税 | CI44: =基本情報_消費税率 -> 0.1 | CM44: =getNumKeta0($DP44,9) ->  | CN44: =getNumKeta0($DP44,8) ->  | CO44: =getNumKeta0($DP44,7) ->  | CP44: =getNumKeta0($DP44,6) ->  | CQ44: =getNumKeta0($DP44,5) -> 4 | CR44: =getNumKeta0($DP44,4) -> 7 | CS44: =getNumKeta0($DP44,3) -> 5 | CT44: =getNumKeta0($DP44,2) -> 0 | CU44: =getNumKeta0($DP44,1) -> 0 | CV44: C | CW44: B × 税率 | DP44: =IF($DK41/14=ROUNDUP(MAX($DJ:$DJ)/14,0),VLOOKUP($E$14,基本情報_工事名称マスタ,6,FALSE),0) -> 47500 | DQ44: =DP44 -> 47500
W45: 課 税 合 計 | AI45: =getNumKeta0($DP45,9) ->  | AJ45: =getNumKeta0($DP45,8) ->  | AK45: =getNumKeta0($DP45,7) ->  | AL45: =getNumKeta0($DP45,6) -> 5 | AM45: =getNumKeta0($DP45,5) -> 2 | AN45: =getNumKeta0($DP45,4) -> 2 | AO45: =getNumKeta0($DP45,3) -> 5 | AP45: =getNumKeta0($DP45,2) -> 0 | AQ45: =getNumKeta0($DP45,1) -> 0 | AR45: D | AS45: B + C | CA45: 課 税 合 計 | CM45: =getNumKeta0($DP45,9) ->  | CN45: =getNumKeta0($DP45,8) ->  | CO45: =getNumKeta0($DP45,7) ->  | CP45: =getNumKeta0($DP45,6) -> 5 | CQ45: =getNumKeta0($DP45,5) -> 2 | CR45: =getNumKeta0($DP45,4) -> 2 | CS45: =getNumKeta0($DP45,3) -> 5 | CT45: =getNumKeta0($DP45,2) -> 0 | CU45: =getNumKeta0($DP45,1) -> 0 | CV45: D | CW45: B + C | DP45: =DP43+DP44 -> 522500 | DQ45: =DQ43+DQ44 -> 522500
W46: 合 計 | AI46: =getNumKeta0($DP46,9) ->  | AJ46: =getNumKeta0($DP46,8) ->  | AK46: =getNumKeta0($DP46,7) ->  | AL46: =getNumKeta0($DP46,6) -> 5 | AM46: =getNumKeta0($DP46,5) -> 2 | AN46: =getNumKeta0($DP46,4) -> 2 | AO46: =getNumKeta0($DP46,3) -> 5 | AP46: =getNumKeta0($DP46,2) -> 0 | AQ46: =getNumKeta0($DP46,1) -> 0 | AR46: E | AS46: A + D | CA46: 合 計 | CM46: =getNumKeta0($DP46,9) ->  | CN46: =getNumKeta0($DP46,8) ->  | CO46: =getNumKeta0($DP46,7) ->  | CP46: =getNumKeta0($DP46,6) -> 5 | CQ46: =getNumKeta0($DP46,5) -> 2 | CR46: =getNumKeta0($DP46,4) -> 2 | CS46: =getNumKeta0($DP46,3) -> 5 | CT46: =getNumKeta0($DP46,2) -> 0 | CU46: =getNumKeta0($DP46,1) -> 0 | CV46: E | CW46: A + D | DP46: =IF($DK41/14=ROUNDUP(MAX($DJ:$DJ)/14,0),VLOOKUP($E$14,基本情報_工事名称マスタ,7,FALSE),0) -> 522500 | DQ46: =DQ42+DQ45 -> 522500
W47: 貴社→請求書(添付)→経理(控) | CA47: 貴社→請求書(添付)→経理→作業所長(控)
AS49: ="P " & B89/14 & "/" & ROUNDUP(COUNTIF(請求明細_工事場所, E62)/14,0) -> P 2/1 | CW49: ="P " & BF89/14 & "/" & ROUNDUP(COUNTIF(請求明細_工事場所, BI62)/14,0) -> P 2/1
D50: 請求書（一般用） | Z50: 取引先コード | AC50: =基本情報_取引先コード -> 999999 | AM50: 締日 | AP50: =基本情報_請求締日 -> 2023-01-31 | BH50: 請求書（一般用） | CD50: 取引先コード | CG50: =基本情報_取引先コード -> 999999 | CQ50: 締日 | CT50: =基本情報_請求締日 -> 2023-01-31
J51: 提出用 | BN51: 提出用
Z53: 適格請求書発行事業者登録 | AM53: =基本情報_事業者登録 -> 有 | AP53: 登録番号 | AS53: =IF(基本情報_登録番号="","",基本情報_登録番号) -> T1-2345-6789-0123 | CD53: 適格請求書発行事業者登録 | CQ53: =基本情報_事業者登録 -> 有 | CT53: 登録番号 | CW53: =IF(基本情報_登録番号="","",基本情報_登録番号) -> T1-2345-6789-0123
B56: 株式会社 丸 高 御中 | Z56: （住所・社名・電話） | BF56: 株式会社 丸 高 御中 | CD56: （住所・社名・電話）
AC60: =基本情報_住所 -> 酒田市○○○○１－１ | CG60: =基本情報_住所 -> 酒田市○○○○１－１
B62: 工 事 名 | E62: =$E$14 -> ×××××工事 | P62: 承 認 | V62: 検 印 | BF62: 工 事 名 | BI62: =$E$14 -> ×××××工事 | BT62: 承 認 | BZ62: 検 印
AC65: =基本情報_社名 -> (株）○○建設 | AY65: 印 | CG65: =基本情報_社名 -> (株）○○建設 | DC65: 印
B68: 作業所長名 | E68: =VLOOKUP(E62,基本情報_工事名称マスタ,3,FALSE) -> ×次郎 | BF68: 作業所長名 | BI68: =VLOOKUP(BI62,基本情報_工事名称マスタ,3,FALSE) -> ×次郎
AC70: =基本情報_電話番号 -> 0234 - 00 - 0000 | CG70: =基本情報_電話番号 -> 0234 - 00 - 0000
B75: 通番 | C75: 納入年月日 | F75: 品 名 ・ 規 格 | J75: 数 量 | V75: 単 位 | W75: 単 価 | AI75: 金 額 | AR75: 備 考 | BF75: 通番 | BG75: 納入年月日 | BJ75: 品 名 ・ 規 格 | BN75: 数 量 | BZ75: 単 位 | CA75: 単 価 | CM75: 金 額 | CV75: 備 考 | DI75: ヒット | DJ75: ランク | DK75: - | DL75: 通番 | DM75: 数量 | DN75: 単価 | DO75: 金額
B76: =B41+1 -> 15 | C76: =IF(ISNA($DL76),"",VLOOKUP($DL76,請求明細,3,FALSE)) ->  | F76: =IF(ISNA($DL76),"",VLOOKUP($DL76,請求明細,4,FALSE)) ->  | J76: =IF(ISNA($DL76),"",getNumKeta0($DM76,9)) ->  | K76: =IF(ISNA($DL76),"",getNumKeta0($DM76,8)) ->  | L76: =IF(ISNA($DL76),"",getNumKeta0($DM76,7)) ->  | M76: =IF(ISNA($DL76),"",getNumKeta0($DM76,6)) ->  | N76: =IF(ISNA($DL76),"",getNumKeta0($DM76,5)) ->  | O76: =IF(ISNA($DL76),"",getNumKeta0($DM76,4)) ->  | P76: =IF(ISNA($DL76),"",getNumKeta0($DM76,3)) ->  | Q76: =IF(ISNA($DL76),"",getNumKeta0($DM76,2)) ->  | R76: =IF(ISNA($DL76),"",getNumKeta0($DM76,1)) ->  | S76: =IF(ISNA($DL76),"",getNumKeta0($DM76,-1)) ->  | T76: =IF(ISNA($DL76),"",getNumKeta0($DM76,-2)) ->  | U76: =IF(ISNA($DL76),"",getNumKeta0($DM76,-3)) ->  | V76: =IF(ISNA($DL76),"",VLOOKUP($DL76,請求明細,6,FALSE)) ->  | W76: =IF(ISNA($DL76),"",getNumKeta0($DN76,9)) ->  | X76: =IF(ISNA($DL76),"",getNumKeta0($DN76,8)) ->  | Y76: =IF(ISNA($DL76),"",getNumKeta0($DN76,7)) ->  | Z76: =IF(ISNA($DL76),"",getNumKeta0($DN76,6)) ->  | AA76: =IF(ISNA($DL76),"",getNumKeta0($DN76,5)) ->  | AB76: =IF(ISNA($DL76),"",getNumKeta0($DN76,4)) ->  | AC76: =IF(ISNA($DL76),"",getNumKeta0($DN76,3)) ->  | AD76: =IF(ISNA($DL76),"",getNumKeta0($DN76,2)) ->  | AE76: =IF(ISNA($DL76),"",getNumKeta0($DN76,1)) ->  | AF76: =IF(ISNA($DL76),"",getNumKeta0($DN76,-1)) ->  | AG76: =IF(ISNA($DL76),"",getNumKeta0($DN76,-2)) ->  | AH76: =IF(ISNA($DL76),"",getNumKeta0($DN76,-3)) ->  | AI76: =IF(ISNA($DL76),"",getNumKeta0($DO76,9)) ->  | AJ76: =IF(ISNA($DL76),"",getNumKeta0($DO76,8)) ->  | AK76: =IF(ISNA($DL76),"",getNumKeta0($DO76,7)) ->  | AL76: =IF(ISNA($DL76),"",getNumKeta0($DO76,6)) ->  | AM76: =IF(ISNA($DL76),"",getNumKeta0($DO76,5)) ->  | AN76: =IF(ISNA($DL76),"",getNumKeta0($DO76,4)) ->  | AO76: =IF(ISNA($DL76),"",getNumKeta0($DO76,3)) ->  | AP76: =IF(ISNA($DL76),"",getNumKeta0($DO76,2)) ->  | AQ76: =IF(ISNA($DL76),"",getNumKeta0($DO76,1)) ->  | AR76: =IF(ISNA($DL76),"",LEFT(VLOOKUP($DL76,請求明細,10,FALSE),16)) ->  | BF76: =BF41+1 -> 15 | BG76: =IF(ISNA($DL76),"",VLOOKUP($DL76,請求明細,3,FALSE)) ->  | BJ76: =IF(ISNA($DL76),"",VLOOKUP($DL76,請求明細,4,FALSE)) ->  | BN76: =IF(ISNA($DL76),"",getNumKeta0($DM76,9)) ->  | BO76: =IF(ISNA($DL76),"",getNumKeta0($DM76,8)) ->  | BP76: =IF(ISNA($DL76),"",getNumKeta0($DM76,7)) ->  | BQ76: =IF(ISNA($DL76),"",getNumKeta0($DM76,6)) ->  | BR76: =IF(ISNA($DL76),"",getNumKeta0($DM76,5)) ->  | BS76: =IF(ISNA($DL76),"",getNumKeta0($DM76,4)) ->  | BT76: =IF(ISNA($DL76),"",getNumKeta0($DM76,3)) ->  | BU76: =IF(ISNA($DL76),"",getNumKeta0($DM76,2)) ->  | BV76: =IF(ISNA($DL76),"",getNumKeta0($DM76,1)) ->  | BW76: =IF(ISNA($DL76),"",getNumKeta0($DM76,-1)) ->  | BX76: =IF(ISNA($DL76),"",getNumKeta0($DM76,-2)) ->  | BY76: =IF(ISNA($DL76),"",getNumKeta0($DM76,-3)) ->  | BZ76: =IF(ISNA($DL76),"",VLOOKUP($DL76,請求明細,6,FALSE)) ->  | CA76: =IF(ISNA($DL76),"",getNumKeta0($DN76,9)) ->  | CB76: =IF(ISNA($DL76),"",getNumKeta0($DN76,8)) ->  | CC76: =IF(ISNA($DL76),"",getNumKeta0($DN76,7)) ->  | CD76: =IF(ISNA($DL76),"",getNumKeta0($DN76,6)) ->  | CE76: =IF(ISNA($DL76),"",getNumKeta0($DN76,5)) ->  | CF76: =IF(ISNA($DL76),"",getNumKeta0($DN76,4)) ->  | CG76: =IF(ISNA($DL76),"",getNumKeta0($DN76,3)) ->  | CH76: =IF(ISNA($DL76),"",getNumKeta0($DN76,2)) ->  | CI76: =IF(ISNA($DL76),"",getNumKeta0($DN76,1)) ->  | CJ76: =IF(ISNA($DL76),"",getNumKeta0($DN76,-1)) ->  | CK76: =IF(ISNA($DL76),"",getNumKeta0($DN76,-2)) ->  | CL76: =IF(ISNA($DL76),"",getNumKeta0($DN76,-3)) ->  | CM76: =IF(ISNA($DL76),"",getNumKeta0($DO76,9)) ->  | CN76: =IF(ISNA($DL76),"",getNumKeta0($DO76,8)) ->  | CO76: =IF(ISNA($DL76),"",getNumKeta0($DO76,7)) ->  | CP76: =IF(ISNA($DL76),"",getNumKeta0($DO76,6)) ->  | CQ76: =IF(ISNA($DL76),"",getNumKeta0($DO76,5)) ->  | CR76: =IF(ISNA($DL76),"",getNumKeta0($DO76,4)) ->  | CS76: =IF(ISNA($DL76),"",getNumKeta0($DO76,3)) ->  | CT76: =IF(ISNA($DL76),"",getNumKeta0($DO76,2)) ->  | CU76: =IF(ISNA($DL76),"",getNumKeta0($DO76,1)) ->  | CV76: =IF(ISNA($DL76),"",LEFT(VLOOKUP($DL76,請求明細,10,FALSE),16)) ->  | DI76: =IF($E$14=OFFSET(明細情報!$B$5, $DK76-1,0),1,0) -> 0 | DJ76: =IF($DI76=0, 0, SUM($DI$28:$DI76)) -> 0 | DK76: =DK41+1 -> 15 | DL76: =VLOOKUP(B76,$DJ$28:$DK$65556,2,FALSE) ->  | DM76: =IF(ISNA($DL76),0,VLOOKUP($DL76,請求明細,5,FALSE)) -> 0 | DN76: =IF(ISNA($DL76),0,VLOOKUP($DL76,請求明細,7,FALSE)) -> 0 | DO76: =IF(ISNA($DL76),0,VLOOKUP($DL76,請求明細,9,FALSE)) -> 0
B77: =B76+1 -> 16 | BF77: =BF76+1 -> 16 | DI77: =IF($E$14=OFFSET(明細情報!$B$5, $DK77-1,0),1,0) -> 0 | DJ77: =IF($DI77=0, 0, SUM($DI$28:$DI77)) -> 0 | DK77: =DK76+1 -> 16 | DM77: 0 | DN77: 0 | DO77: 0
B78: 17 | BF78: 17 | DI78: =IF($E$14=OFFSET(明細情報!$B$5, $DK78-1,0),1,0) -> 0 | DJ78: =IF($DI78=0, 0, SUM($DI$28:$DI78)) -> 0 | DK78: 17 | DM78: 0 | DN78: 0 | DO78: 0
B79: 18 | BF79: 18 | DI79: =IF($E$14=OFFSET(明細情報!$B$5, $DK79-1,0),1,0) -> 0 | DJ79: =IF($DI79=0, 0, SUM($DI$28:$DI79)) -> 0 | DK79: 18 | DM79: 0 | DN79: 0 | DO79: 0
B80: 19 | BF80: 19 | DI80: =IF($E$14=OFFSET(明細情報!$B$5, $DK80-1,0),1,0) -> 0 | DJ80: =IF($DI80=0, 0, SUM($DI$28:$DI80)) -> 0 | DK80: 19 | DM80: 0 | DN80: 0 | DO80: 0
B81: 20 | BF81: 20 | DI81: =IF($E$14=OFFSET(明細情報!$B$5, $DK81-1,0),1,0) -> 0 | DJ81: =IF($DI81=0, 0, SUM($DI$28:$DI81)) -> 0 | DK81: 20 | DM81: 0 | DN81: 0 | DO81: 0
B82: 21 | BF82: 21 | DI82: =IF($E$14=OFFSET(明細情報!$B$5, $DK82-1,0),1,0) -> 0 | DJ82: =IF($DI82=0, 0, SUM($DI$28:$DI82)) -> 0 | DK82: 21 | DM82: 0 | DN82: 0 | DO82: 0
B83: 22 | BF83: 22 | DI83: =IF($E$14=OFFSET(明細情報!$B$5, $DK83-1,0),1,0) -> 0 | DJ83: =IF($DI83=0, 0, SUM($DI$28:$DI83)) -> 0 | DK83: 22 | DM83: 0 | DN83: 0 | DO83: 0
B84: 23 | BF84: 23 | DI84: =IF($E$14=OFFSET(明細情報!$B$5, $DK84-1,0),1,0) -> 0 | DJ84: =IF($DI84=0, 0, SUM($DI$28:$DI84)) -> 0 | DK84: 23 | DM84: 0 | DN84: 0 | DO84: 0
B85: 24 | BF85: 24 | DI85: =IF($E$14=OFFSET(明細情報!$B$5, $DK85-1,0),1,0) -> 0 | DJ85: =IF($DI85=0, 0, SUM($DI$28:$DI85)) -> 0 | DK85: 24 | DM85: 0 | DN85: 0 | DO85: 0
B86: 25 | BF86: 25 | DI86: =IF($E$14=OFFSET(明細情報!$B$5, $DK86-1,0),1,0) -> 0 | DJ86: =IF($DI86=0, 0, SUM($DI$28:$DI86)) -> 0 | DK86: 25 | DM86: 0 | DN86: 0 | DO86: 0
B87: 26 | BF87: 26 | DI87: =IF($E$14=OFFSET(明細情報!$B$5, $DK87-1,0),1,0) -> 0 | DJ87: =IF($DI87=0, 0, SUM($DI$28:$DI87)) -> 0 | DK87: 26 | DM87: 0 | DN87: 0 | DO87: 0
B88: 27 | BF88: 27 | DI88: =IF($E$14=OFFSET(明細情報!$B$5, $DK88-1,0),1,0) -> 0 | DJ88: =IF($DI88=0, 0, SUM($DI$28:$DI88)) -> 0 | DK88: 27 | DM88: 0 | DN88: 0 | DO88: 0
B89: 28 | BF89: 28 | DI89: =IF($E$14=OFFSET(明細情報!$B$5, $DK89-1,0),1,0) -> 0 | DJ89: =IF($DI89=0, 0, SUM($DI$28:$DI89)) -> 0 | DK89: 28 | DM89: 0 | DN89: 0 | DO89: 0
W90: 非 課 税 小 計 | AI90: =getNumKeta0($DP91,9) ->  | AJ90: =getNumKeta0($DP90,8) ->  | AK90: =getNumKeta0($DP90,7) ->  | AL90: =getNumKeta0($DP90,6) ->  | AM90: =getNumKeta0($DP90,5) ->  | AN90: =getNumKeta0($DP90,4) ->  | AO90: =getNumKeta0($DP90,3) ->  | AP90: =getNumKeta0($DP90,2) ->  | AQ90: =IF(F89="",IF($DP90=0,"0",getNumKeta0($DP90,1)),"") -> 0 | AR90: A | AS90: 非課税・不課税 | CA90: 非 課 税 小 計 | CM90: =getNumKeta0($DP91,9) ->  | CN90: =getNumKeta0($DP90,8) ->  | CO90: =getNumKeta0($DP90,7) ->  | CP90: =getNumKeta0($DP90,6) ->  | CQ90: =getNumKeta0($DP90,5) ->  | CR90: =getNumKeta0($DP90,4) ->  | CS90: =getNumKeta0($DP90,3) ->  | CT90: =getNumKeta0($DP90,2) ->  | CU90: =IF(BJ89="",IF($DP90=0,"0",getNumKeta0($DP90,1)),"") -> 0 | CV90: A | CW90: 非課税・不課税 | DP90: =IF($DK89/14=ROUNDUP(MAX($DJ:$DJ)/14,0),VLOOKUP($E$14,基本情報_工事名称マスタ,5,FALSE),0) -> 0 | DQ90: =DP90 -> 0
W91: 課 税 小 計 | AI91: =getNumKeta0($DP91,9) ->  | AJ91: =getNumKeta0($DP91,8) ->  | AK91: =getNumKeta0($DP91,7) ->  | AL91: =getNumKeta0($DP91,6) ->  | AM91: =getNumKeta0($DP91,5) ->  | AN91: =getNumKeta0($DP91,4) ->  | AO91: =getNumKeta0($DP91,3) ->  | AP91: =getNumKeta0($DP91,2) ->  | AQ91: =getNumKeta0($DP91,1) ->  | AR91: B | BB91: =IF($DP91<>$DQ91,"*","") ->  | CA91: 課 税 小 計 | CM91: =getNumKeta0($DP91,9) ->  | CN91: =getNumKeta0($DP91,8) ->  | CO91: =getNumKeta0($DP91,7) ->  | CP91: =getNumKeta0($DP91,6) ->  | CQ91: =getNumKeta0($DP91,5) ->  | CR91: =getNumKeta0($DP91,4) ->  | CS91: =getNumKeta0($DP91,3) ->  | CT91: =getNumKeta0($DP91,2) ->  | CU91: =getNumKeta0($DP91,1) ->  | CV91: B | DF91: =IF($DP91<>$DQ91,"*","") ->  | DP91: =IF($DK89/14=ROUNDUP(MAX($DJ:$DJ)/14,0),VLOOKUP($E$14,基本情報_工事名称マスタ,4,FALSE),0) -> 0 | DQ91: =DP91 -> 0
W92: 消 費 税 | AE92: =基本情報_消費税率 -> 0.1 | AI92: =getNumKeta0($DP92,9) ->  | AJ92: =getNumKeta0($DP92,8) ->  | AK92: =getNumKeta0($DP92,7) ->  | AL92: =getNumKeta0($DP92,6) ->  | AM92: =getNumKeta0($DP92,5) ->  | AN92: =getNumKeta0($DP92,4) ->  | AO92: =getNumKeta0($DP92,3) ->  | AP92: =getNumKeta0($DP92,2) ->  | AQ92: =getNumKeta0($DP92,1) ->  | AR92: C | AS92: B × 税率 | CA92: 消 費 税 | CI92: =基本情報_消費税率 -> 0.1 | CM92: =getNumKeta0($DP92,9) ->  | CN92: =getNumKeta0($DP92,8) ->  | CO92: =getNumKeta0($DP92,7) ->  | CP92: =getNumKeta0($DP92,6) ->  | CQ92: =getNumKeta0($DP92,5) ->  | CR92: =getNumKeta0($DP92,4) ->  | CS92: =getNumKeta0($DP92,3) ->  | CT92: =getNumKeta0($DP92,2) ->  | CU92: =getNumKeta0($DP92,1) ->  | CV92: C | CW92: B × 税率 | DP92: =IF($DK89/14=ROUNDUP(MAX($DJ:$DJ)/14,0),VLOOKUP($E$14,基本情報_工事名称マスタ,6,FALSE),0) -> 0 | DQ92: =DP92 -> 0
W93: 課 税 合 計 | AI93: =getNumKeta0($DP93,9) ->  | AJ93: =getNumKeta0($DP93,8) ->  | AK93: =getNumKeta0($DP93,7) ->  | AL93: =getNumKeta0($DP93,6) ->  | AM93: =getNumKeta0($DP93,5) ->  | AN93: =getNumKeta0($DP93,4) ->  | AO93: =getNumKeta0($DP93,3) ->  | AP93: =getNumKeta0($DP93,2) ->  | AQ93: =getNumKeta0($DP93,1) ->  | AR93: D | AS93: B + C | CA93: 課 税 合 計 | CM93: =getNumKeta0($DP93,9) ->  | CN93: =getNumKeta0($DP93,8) ->  | CO93: =getNumKeta0($DP93,7) ->  | CP93: =getNumKeta0($DP93,6) ->  | CQ93: =getNumKeta0($DP93,5) ->  | CR93: =getNumKeta0($DP93,4) ->  | CS93: =getNumKeta0($DP93,3) ->  | CT93: =getNumKeta0($DP93,2) ->  | CU93: =getNumKeta0($DP93,1) ->  | CV93: D | CW93: B + C | DP93: =DP91+DP92 -> 0 | DQ93: =DQ91+DQ92 -> 0
W94: 合 計 | AI94: =getNumKeta0($DP94,9) ->  | AJ94: =getNumKeta0($DP94,8) ->  | AK94: =getNumKeta0($DP94,7) ->  | AL94: =getNumKeta0($DP94,6) ->  | AM94: =getNumKeta0($DP94,5) ->  | AN94: =getNumKeta0($DP94,4) ->  | AO94: =getNumKeta0($DP94,3) ->  | AP94: =getNumKeta0($DP94,2) ->  | AQ94: =getNumKeta0($DP94,1) ->  | AR94: D | AS94: A + D | CA94: 合 計 | CM94: =getNumKeta0($DP94,9) ->  | CN94: =getNumKeta0($DP94,8) ->  | CO94: =getNumKeta0($DP94,7) ->  | CP94: =getNumKeta0($DP94,6) ->  | CQ94: =getNumKeta0($DP94,5) ->  | CR94: =getNumKeta0($DP94,4) ->  | CS94: =getNumKeta0($DP94,3) ->  | CT94: =getNumKeta0($DP94,2) ->  | CU94: =getNumKeta0($DP94,1) ->  | CV94: D | CW94: A + D | DP94: =IF($DK89/14=ROUNDUP(MAX($DJ:$DJ)/14,0),VLOOKUP($E$14,基本情報_工事名称マスタ,7,FALSE),0) -> 0 | DQ94: =DQ90+DQ93 -> 0
W95: 貴社→請求書(添付)→経理(控) | CA95: 貴社→請求書(添付)→経理→作業所長(控)
AS97: ="P " & B137/14 & "/" & ROUNDUP(COUNTIF(請求明細_工事場所, E110)/14,0) -> P 3/1 | CW97: ="P " & BF137/14 & "/" & ROUNDUP(COUNTIF(請求明細_工事場所, BI110)/14,0) -> P 3/1
D98: 請求書（一般用） | Z98: 取引先コード | AC98: =基本情報_取引先コード -> 999999 | AM98: 締日 | AP98: =基本情報_請求締日 -> 2023-01-31 | BH98: 請求書（一般用） | CD98: 取引先コード | CG98: =基本情報_取引先コード -> 999999 | CQ98: 締日 | CT98: =基本情報_請求締日 -> 2023-01-31
J99: 提出用 | BN99: 提出用
Z101: 適格請求書発行事業者登録 | AM101: =基本情報_事業者登録 -> 有 | AP101: 登録番号 | AS101: =IF(基本情報_登録番号="","",基本情報_登録番号) -> T1-2345-6789-0123 | CD101: 適格請求書発行事業者登録 | CQ101: =基本情報_事業者登録 -> 有 | CT101: 登録番号 | CW101: =IF(基本情報_登録番号="","",基本情報_登録番号) -> T1-2345-6789-0123
B104: 株式会社 丸 高 御中 | Z104: （住所・社名・電話） | BF104: 株式会社 丸 高 御中 | CD104: （住所・社名・電話）
AC108: =基本情報_住所 -> 酒田市○○○○１－１ | CG108: =基本情報_住所 -> 酒田市○○○○１－１
B110: 工 事 名 | E110: =$E$14 -> ×××××工事 | P110: 承 認 | V110: 検 印 | BF110: 工 事 名 | BI110: =$E$14 -> ×××××工事 | BT110: 承 認 | BZ110: 検 印
AC113: =基本情報_社名 -> (株）○○建設 | AY113: 印 | CG113: =基本情報_社名 -> (株）○○建設 | DC113: 印
B116: 作業所長名 | E116: =VLOOKUP(E110,基本情報_工事名称マスタ,3,FALSE) -> ×次郎 | BF116: 作業所長名 | BI116: =VLOOKUP(BI110,基本情報_工事名称マスタ,3,FALSE) -> ×次郎
AC118: =基本情報_電話番号 -> 0234 - 00 - 0000 | CG118: =基本情報_電話番号 -> 0234 - 00 - 0000
B123: 通番 | C123: 納入年月日 | F123: 品 名 ・ 規 格 | J123: 数 量 | V123: 単 位 | W123: 単 価 | AI123: 金 額 | AR123: 備 考 | BF123: 通番 | BG123: 納入年月日 | BJ123: 品 名 ・ 規 格 | BN123: 数 量 | BZ123: 単 位 | CA123: 単 価 | CM123: 金 額 | CV123: 備 考 | DI123: ヒット | DJ123: ランク | DK123: - | DL123: 通番 | DM123: 数量 | DN123: 単価 | DO123: 金額
B124: =B89+1 -> 29 | C124: =IF(ISNA($DL124),"",VLOOKUP($DL124,請求明細,3,FALSE)) ->  | F124: =IF(ISNA($DL124),"",VLOOKUP($DL124,請求明細,4,FALSE)) ->  | J124: =IF(ISNA($DL124),"",getNumKeta0($DM124,9)) ->  | K124: =IF(ISNA($DL124),"",getNumKeta0($DM124,8)) ->  | L124: =IF(ISNA($DL124),"",getNumKeta0($DM124,7)) ->  | M124: =IF(ISNA($DL124),"",getNumKeta0($DM124,6)) ->  | N124: =IF(ISNA($DL124),"",getNumKeta0($DM124,5)) ->  | O124: =IF(ISNA($DL124),"",getNumKeta0($DM124,4)) ->  | P124: =IF(ISNA($DL124),"",getNumKeta0($DM124,3)) ->  | Q124: =IF(ISNA($DL124),"",getNumKeta0($DM124,2)) ->  | R124: =IF(ISNA($DL124),"",getNumKeta0($DM124,1)) ->  | S124: =IF(ISNA($DL124),"",getNumKeta0($DM124,-1)) ->  | T124: =IF(ISNA($DL124),"",getNumKeta0($DM124,-2)) ->  | U124: =IF(ISNA($DL124),"",getNumKeta0($DM124,-3)) ->  | V124: =IF(ISNA($DL124),"",VLOOKUP($DL124,請求明細,6,FALSE)) ->  | W124: =IF(ISNA($DL124),"",getNumKeta0($DN124,9)) ->  | X124: =IF(ISNA($DL124),"",getNumKeta0($DN124,8)) ->  | Y124: =IF(ISNA($DL124),"",getNumKeta0($DN124,7)) ->  | Z124: =IF(ISNA($DL124),"",getNumKeta0($DN124,6)) ->  | AA124: =IF(ISNA($DL124),"",getNumKeta0($DN124,5)) ->  | AB124: =IF(ISNA($DL124),"",getNumKeta0($DN124,4)) ->  | AC124: =IF(ISNA($DL124),"",getNumKeta0($DN124,3)) ->  | AD124: =IF(ISNA($DL124),"",getNumKeta0($DN124,2)) ->  | AE124: =IF(ISNA($DL124),"",getNumKeta0($DN124,1)) ->  | AF124: =IF(ISNA($DL124),"",getNumKeta0($DN124,-1)) ->  | AG124: =IF(ISNA($DL124),"",getNumKeta0($DN124,-2)) ->  | AH124: =IF(ISNA($DL124),"",getNumKeta0($DN124,-3)) ->  | AI124: =IF(ISNA($DL124),"",getNumKeta0($DO124,9)) ->  | AJ124: =IF(ISNA($DL124),"",getNumKeta0($DO124,8)) ->  | AK124: =IF(ISNA($DL124),"",getNumKeta0($DO124,7)) ->  | AL124: =IF(ISNA($DL124),"",getNumKeta0($DO124,6)) ->  | AM124: =IF(ISNA($DL124),"",getNumKeta0($DO124,5)) ->  | AN124: =IF(ISNA($DL124),"",getNumKeta0($DO124,4)) ->  | AO124: =IF(ISNA($DL124),"",getNumKeta0($DO124,3)) ->  | AP124: =IF(ISNA($DL124),"",getNumKeta0($DO124,2)) ->  | AQ124: =IF(ISNA($DL124),"",getNumKeta0($DO124,1)) ->  | AR124: =IF(ISNA($DL124),"",LEFT(VLOOKUP($DL124,請求明細,10,FALSE),16)) ->  | BF124: =BF89+1 -> 29 | BG124: =IF(ISNA($DL124),"",VLOOKUP($DL124,請求明細,3,FALSE)) ->  | BJ124: =IF(ISNA($DL124),"",VLOOKUP($DL124,請求明細,4,FALSE)) ->  | BN124: =IF(ISNA($DL124),"",getNumKeta0($DM124,9)) ->  | BO124: =IF(ISNA($DL124),"",getNumKeta0($DM124,8)) ->  | BP124: =IF(ISNA($DL124),"",getNumKeta0($DM124,7)) ->  | BQ124: =IF(ISNA($DL124),"",getNumKeta0($DM124,6)) ->  | BR124: =IF(ISNA($DL124),"",getNumKeta0($DM124,5)) ->  | BS124: =IF(ISNA($DL124),"",getNumKeta0($DM124,4)) ->  | BT124: =IF(ISNA($DL124),"",getNumKeta0($DM124,3)) ->  | BU124: =IF(ISNA($DL124),"",getNumKeta0($DM124,2)) ->  | BV124: =IF(ISNA($DL124),"",getNumKeta0($DM124,1)) ->  | BW124: =IF(ISNA($DL124),"",getNumKeta0($DM124,-1)) ->  | BX124: =IF(ISNA($DL124),"",getNumKeta0($DM124,-2)) ->  | BY124: =IF(ISNA($DL124),"",getNumKeta0($DM124,-3)) ->  | BZ124: =IF(ISNA($DL124),"",VLOOKUP($DL124,請求明細,6,FALSE)) ->  | CA124: =IF(ISNA($DL124),"",getNumKeta0($DN124,9)) ->  | CB124: =IF(ISNA($DL124),"",getNumKeta0($DN124,8)) ->  | CC124: =IF(ISNA($DL124),"",getNumKeta0($DN124,7)) ->  | CD124: =IF(ISNA($DL124),"",getNumKeta0($DN124,6)) ->  | CE124: =IF(ISNA($DL124),"",getNumKeta0($DN124,5)) ->  | CF124: =IF(ISNA($DL124),"",getNumKeta0($DN124,4)) ->  | CG124: =IF(ISNA($DL124),"",getNumKeta0($DN124,3)) ->  | CH124: =IF(ISNA($DL124),"",getNumKeta0($DN124,2)) ->  | CI124: =IF(ISNA($DL124),"",getNumKeta0($DN124,1)) ->  | CJ124: =IF(ISNA($DL124),"",getNumKeta0($DN124,-1)) ->  | CK124: =IF(ISNA($DL124),"",getNumKeta0($DN124,-2)) ->  | CL124: =IF(ISNA($DL124),"",getNumKeta0($DN124,-3)) ->  | CM124: =IF(ISNA($DL124),"",getNumKeta0($DO124,9)) ->  | CN124: =IF(ISNA($DL124),"",getNumKeta0($DO124,8)) ->  | CO124: =IF(ISNA($DL124),"",getNumKeta0($DO124,7)) ->  | CP124: =IF(ISNA($DL124),"",getNumKeta0($DO124,6)) ->  | CQ124: =IF(ISNA($DL124),"",getNumKeta0($DO124,5)) ->  | CR124: =IF(ISNA($DL124),"",getNumKeta0($DO124,4)) ->  | CS124: =IF(ISNA($DL124),"",getNumKeta0($DO124,3)) ->  | CT124: =IF(ISNA($DL124),"",getNumKeta0($DO124,2)) ->  | CU124: =IF(ISNA($DL124),"",getNumKeta0($DO124,1)) ->  | CV124: =IF(ISNA($DL124),"",LEFT(VLOOKUP($DL124,請求明細,10,FALSE),16)) ->  | DI124: =IF($E$14=OFFSET(明細情報!$B$5, $DK124-1,0),1,0) -> 0 | DJ124: =IF($DI124=0, 0, SUM($DI$28:$DI124)) -> 0 | DK124: =DK89+1 -> 29 | DL124: =VLOOKUP(B124,$DJ$28:$DK$65556,2,FALSE) ->  | DM124: =IF(ISNA($DL124),0,VLOOKUP($DL124,請求明細,5,FALSE)) -> 0 | DN124: =IF(ISNA($DL124),0,VLOOKUP($DL124,請求明細,7,FALSE)) -> 0 | DO124: =IF(ISNA($DL124),0,VLOOKUP($DL124,請求明細,9,FALSE)) -> 0
B125: =B124+1 -> 30 | BF125: =BF124+1 -> 30 | DI125: =IF($E$14=OFFSET(明細情報!$B$5, $DK125-1,0),1,0) -> 0 | DJ125: =IF($DI125=0, 0, SUM($DI$28:$DI125)) -> 0 | DK125: =DK124+1 -> 30 | DM125: 0 | DN125: 0 | DO125: 0
B126: 31 | BF126: 31 | DI126: =IF($E$14=OFFSET(明細情報!$B$5, $DK126-1,0),1,0) -> 0 | DJ126: =IF($DI126=0, 0, SUM($DI$28:$DI126)) -> 0 | DK126: 31 | DM126: 0 | DN126: 0 | DO126: 0
B127: 32 | BF127: 32 | DI127: =IF($E$14=OFFSET(明細情報!$B$5, $DK127-1,0),1,0) -> 0 | DJ127: =IF($DI127=0, 0, SUM($DI$28:$DI127)) -> 0 | DK127: 32 | DM127: 0 | DN127: 0 | DO127: 0
B128: 33 | BF128: 33 | DI128: =IF($E$14=OFFSET(明細情報!$B$5, $DK128-1,0),1,0) -> 0 | DJ128: =IF($DI128=0, 0, SUM($DI$28:$DI128)) -> 0 | DK128: 33 | DM128: 0 | DN128: 0 | DO128: 0
B129: 34 | BF129: 34 | DI129: =IF($E$14=OFFSET(明細情報!$B$5, $DK129-1,0),1,0) -> 0 | DJ129: =IF($DI129=0, 0, SUM($DI$28:$DI129)) -> 0 | DK129: 34 | DM129: 0 | DN129: 0 | DO129: 0
B130: 35 | BF130: 35 | DI130: =IF($E$14=OFFSET(明細情報!$B$5, $DK130-1,0),1,0) -> 0 | DJ130: =IF($DI130=0, 0, SUM($DI$28:$DI130)) -> 0 | DK130: 35 | DM130: 0 | DN130: 0 | DO130: 0
B131: 36 | BF131: 36 | DI131: =IF($E$14=OFFSET(明細情報!$B$5, $DK131-1,0),1,0) -> 0 | DJ131: =IF($DI131=0, 0, SUM($DI$28:$DI131)) -> 0 | DK131: 36 | DM131: 0 | DN131: 0 | DO131: 0
B132: 37 | BF132: 37 | DI132: =IF($E$14=OFFSET(明細情報!$B$5, $DK132-1,0),1,0) -> 0 | DJ132: =IF($DI132=0, 0, SUM($DI$28:$DI132)) -> 0 | DK132: 37 | DM132: 0 | DN132: 0 | DO132: 0
B133: 38 | BF133: 38 | DI133: =IF($E$14=OFFSET(明細情報!$B$5, $DK133-1,0),1,0) -> 0 | DJ133: =IF($DI133=0, 0, SUM($DI$28:$DI133)) -> 0 | DK133: 38 | DM133: 0 | DN133: 0 | DO133: 0
B134: 39 | BF134: 39 | DI134: =IF($E$14=OFFSET(明細情報!$B$5, $DK134-1,0),1,0) -> 0 | DJ134: =IF($DI134=0, 0, SUM($DI$28:$DI134)) -> 0 | DK134: 39 | DM134: 0 | DN134: 0 | DO134: 0
B135: 40 | BF135: 40 | DI135: =IF($E$14=OFFSET(明細情報!$B$5, $DK135-1,0),1,0) -> 0 | DJ135: =IF($DI135=0, 0, SUM($DI$28:$DI135)) -> 0 | DK135: 40 | DM135: 0 | DN135: 0 | DO135: 0
B136: 41 | BF136: 41 | DI136: =IF($E$14=OFFSET(明細情報!$B$5, $DK136-1,0),1,0) -> 0 | DJ136: =IF($DI136=0, 0, SUM($DI$28:$DI136)) -> 0 | DK136: 41 | DM136: 0 | DN136: 0 | DO136: 0
B137: 42 | BF137: 42 | DI137: =IF($E$14=OFFSET(明細情報!$B$5, $DK137-1,0),1,0) -> 0 | DJ137: =IF($DI137=0, 0, SUM($DI$28:$DI137)) -> 0 | DK137: 42 | DM137: 0 | DN137: 0 | DO137: 0
W138: 非 課 税 小 計 | AI138: =getNumKeta0($DP139,9) ->  | AJ138: =getNumKeta0($DP138,8) ->  | AK138: =getNumKeta0($DP138,7) ->  | AL138: =getNumKeta0($DP138,6) ->  | AM138: =getNumKeta0($DP138,5) ->  | AN138: =getNumKeta0($DP138,4) ->  | AO138: =getNumKeta0($DP138,3) ->  | AP138: =getNumKeta0($DP138,2) ->  | AQ138: =IF(F137="",IF($DP138=0,"0",getNumKeta0($DP138,1)),"") -> 0 | AR138: A | AS138: 非課税・不課税 | CA138: 非 課 税 小 計 | CM138: =getNumKeta0($DP139,9) ->  | CN138: =getNumKeta0($DP138,8) ->  | CO138: =getNumKeta0($DP138,7) ->  | CP138: =getNumKeta0($DP138,6) ->  | CQ138: =getNumKeta0($DP138,5) ->  | CR138: =getNumKeta0($DP138,4) ->  | CS138: =getNumKeta0($DP138,3) ->  | CT138: =getNumKeta0($DP138,2) ->  | CU138: =IF(BJ137="",IF($DP138=0,"0",getNumKeta0($DP138,1)),"") -> 0 | CV138: A | CW138: 非課税・不課税 | DP138: =IF($DK137/14=ROUNDUP(MAX($DJ:$DJ)/14,0),VLOOKUP($E$14,基本情報_工事名称マスタ,5,FALSE),0) -> 0 | DQ138: =DP138 -> 0
W139: 課 税 小 計 | AI139: =getNumKeta0($DP139,9) ->  | AJ139: =getNumKeta0($DP139,8) ->  | AK139: =getNumKeta0($DP139,7) ->  | AL139: =getNumKeta0($DP139,6) ->  | AM139: =getNumKeta0($DP139,5) ->  | AN139: =getNumKeta0($DP139,4) ->  | AO139: =getNumKeta0($DP139,3) ->  | AP139: =getNumKeta0($DP139,2) ->  | AQ139: =getNumKeta0($DP139,1) ->  | AR139: B | BB139: =IF($DP139<>$DQ139,"*","") ->  | CA139: 課 税 小 計 | CM139: =getNumKeta0($DP139,9) ->  | CN139: =getNumKeta0($DP139,8) ->  | CO139: =getNumKeta0($DP139,7) ->  | CP139: =getNumKeta0($DP139,6) ->  | CQ139: =getNumKeta0($DP139,5) ->  | CR139: =getNumKeta0($DP139,4) ->  | CS139: =getNumKeta0($DP139,3) ->  | CT139: =getNumKeta0($DP139,2) ->  | CU139: =getNumKeta0($DP139,1) ->  | CV139: B | DF139: =IF($DP139<>$DQ139,"*","") ->  | DP139: =IF($DK137/14=ROUNDUP(MAX($DJ:$DJ)/14,0),VLOOKUP($E$14,基本情報_工事名称マスタ,4,FALSE),0) -> 0 | DQ139: =DP139 -> 0
W140: 消 費 税 | AE140: =基本情報_消費税率 -> 0.1 | AI140: =getNumKeta0($DP140,9) ->  | AJ140: =getNumKeta0($DP140,8) ->  | AK140: =getNumKeta0($DP140,7) ->  | AL140: =getNumKeta0($DP140,6) ->  | AM140: =getNumKeta0($DP140,5) ->  | AN140: =getNumKeta0($DP140,4) ->  | AO140: =getNumKeta0($DP140,3) ->  | AP140: =getNumKeta0($DP140,2) ->  | AQ140: =getNumKeta0($DP140,1) ->  | AR140: C | AS140: B × 税率 | CA140: 消 費 税 | CI140: =基本情報_消費税率 -> 0.1 | CM140: =getNumKeta0($DP140,9) ->  | CN140: =getNumKeta0($DP140,8) ->  | CO140: =getNumKeta0($DP140,7) ->  | CP140: =getNumKeta0($DP140,6) ->  | CQ140: =getNumKeta0($DP140,5) ->  | CR140: =getNumKeta0($DP140,4) ->  | CS140: =getNumKeta0($DP140,3) ->  | CT140: =getNumKeta0($DP140,2) ->  | CU140: =getNumKeta0($DP140,1) ->  | CV140: C | CW140: B × 税率 | DP140: =IF($DK137/14=ROUNDUP(MAX($DJ:$DJ)/14,0),VLOOKUP($E$14,基本情報_工事名称マスタ,6,FALSE),0) -> 0 | DQ140: =DP140 -> 0
W141: 課 税 合 計 | AI141: =getNumKeta0($DP141,9) ->  | AJ141: =getNumKeta0($DP141,8) ->  | AK141: =getNumKeta0($DP141,7) ->  | AL141: =getNumKeta0($DP141,6) ->  | AM141: =getNumKeta0($DP141,5) ->  | AN141: =getNumKeta0($DP141,4) ->  | AO141: =getNumKeta0($DP141,3) ->  | AP141: =getNumKeta0($DP141,2) ->  | AQ141: =getNumKeta0($DP141,1) ->  | AR141: D | AS141: B + C | CA141: 課 税 合 計 | CM141: =getNumKeta0($DP141,9) ->  | CN141: =getNumKeta0($DP141,8) ->  | CO141: =getNumKeta0($DP141,7) ->  | CP141: =getNumKeta0($DP141,6) ->  | CQ141: =getNumKeta0($DP141,5) ->  | CR141: =getNumKeta0($DP141,4) ->  | CS141: =getNumKeta0($DP141,3) ->  | CT141: =getNumKeta0($DP141,2) ->  | CU141: =getNumKeta0($DP141,1) ->  | CV141: D | CW141: B + C | DP141: =DP139+DP140 -> 0 | DQ141: =DQ139+DQ140 -> 0
W142: 合 計 | AI142: =getNumKeta0($DP142,9) ->  | AJ142: =getNumKeta0($DP142,8) ->  | AK142: =getNumKeta0($DP142,7) ->  | AL142: =getNumKeta0($DP142,6) ->  | AM142: =getNumKeta0($DP142,5) ->  | AN142: =getNumKeta0($DP142,4) ->  | AO142: =getNumKeta0($DP142,3) ->  | AP142: =getNumKeta0($DP142,2) ->  | AQ142: =getNumKeta0($DP142,1) ->  | AR142: D | AS142: A + D | CA142: 合 計 | CM142: =getNumKeta0($DP142,9) ->  | CN142: =getNumKeta0($DP142,8) ->  | CO142: =getNumKeta0($DP142,7) ->  | CP142: =getNumKeta0($DP142,6) ->  | CQ142: =getNumKeta0($DP142,5) ->  | CR142: =getNumKeta0($DP142,4) ->  | CS142: =getNumKeta0($DP142,3) ->  | CT142: =getNumKeta0($DP142,2) ->  | CU142: =getNumKeta0($DP142,1) ->  | CV142: D | CW142: A + D | DP142: =IF($DK137/14=ROUNDUP(MAX($DJ:$DJ)/14,0),VLOOKUP($E$14,基本情報_工事名称マスタ,7,FALSE),0) -> 0 | DQ142: =DQ138+DQ141 -> 0
W143: 貴社→請求書(添付)→経理(控) | CA143: 貴社→請求書(添付)→経理→作業所長(控)
AS145: ="P " & B185/14 & "/" & ROUNDUP(COUNTIF(請求明細_工事場所, E158)/14,0) -> P 4/1 | CW145: ="P " & BF185/14 & "/" & ROUNDUP(COUNTIF(請求明細_工事場所, BI158)/14,0) -> P 4/1
D146: 請求書（一般用） | Z146: 取引先コード | AC146: =基本情報_取引先コード -> 999999 | AM146: 締日 | AP146: =基本情報_請求締日 -> 2023-01-31 | BH146: 請求書（一般用） | CD146: 取引先コード | CG146: =基本情報_取引先コード -> 999999 | CQ146: 締日 | CT146: =基本情報_請求締日 -> 2023-01-31
J147: 提出用 | BN147: 提出用
Z149: 適格請求書発行事業者登録 | AM149: =基本情報_事業者登録 -> 有 | AP149: 登録番号 | AS149: =IF(基本情報_登録番号="","",基本情報_登録番号) -> T1-2345-6789-0123 | CD149: 適格請求書発行事業者登録 | CQ149: =基本情報_事業者登録 -> 有 | CT149: 登録番号 | CW149: =IF(基本情報_登録番号="","",基本情報_登録番号) -> T1-2345-6789-0123
B152: 株式会社 丸 高 御中 | Z152: （住所・社名・電話） | BF152: 株式会社 丸 高 御中 | CD152: （住所・社名・電話）
AC156: =基本情報_住所 -> 酒田市○○○○１－１ | CG156: =基本情報_住所 -> 酒田市○○○○１－１
B158: 工 事 名 | E158: =$E$14 -> ×××××工事 | P158: 承 認 | V158: 検 印 | BF158: 工 事 名 | BI158: =$E$14 -> ×××××工事 | BT158: 承 認 | BZ158: 検 印
AC161: =基本情報_社名 -> (株）○○建設 | AY161: 印 | CG161: =基本情報_社名 -> (株）○○建設 | DC161: 印
B164: 作業所長名 | E164: =VLOOKUP(E158,基本情報_工事名称マスタ,3,FALSE) -> ×次郎 | BF164: 作業所長名 | BI164: =VLOOKUP(BI158,基本情報_工事名称マスタ,3,FALSE) -> ×次郎
AC166: =基本情報_電話番号 -> 0234 - 00 - 0000 | CG166: =基本情報_電話番号 -> 0234 - 00 - 0000
B171: 通番 | C171: 納入年月日 | F171: 品 名 ・ 規 格 | J171: 数 量 | V171: 単 位 | W171: 単 価 | AI171: 金 額 | AR171: 備 考 | BF171: 通番 | BG171: 納入年月日 | BJ171: 品 名 ・ 規 格 | BN171: 数 量 | BZ171: 単 位 | CA171: 単 価 | CM171: 金 額 | CV171: 備 考 | DI171: ヒット | DJ171: ランク | DK171: - | DL171: 通番 | DM171: 数量 | DN171: 単価 | DO171: 金額
B172: =B137+1 -> 43 | C172: =IF(ISNA($DL172),"",VLOOKUP($DL172,請求明細,3,FALSE)) ->  | F172: =IF(ISNA($DL172),"",VLOOKUP($DL172,請求明細,4,FALSE)) ->  | J172: =IF(ISNA($DL172),"",getNumKeta0($DM172,9)) ->  | K172: =IF(ISNA($DL172),"",getNumKeta0($DM172,8)) ->  | L172: =IF(ISNA($DL172),"",getNumKeta0($DM172,7)) ->  | M172: =IF(ISNA($DL172),"",getNumKeta0($DM172,6)) ->  | N172: =IF(ISNA($DL172),"",getNumKeta0($DM172,5)) ->  | O172: =IF(ISNA($DL172),"",getNumKeta0($DM172,4)) ->  | P172: =IF(ISNA($DL172),"",getNumKeta0($DM172,3)) ->  | Q172: =IF(ISNA($DL172),"",getNumKeta0($DM172,2)) ->  | R172: =IF(ISNA($DL172),"",getNumKeta0($DM172,1)) ->  | S172: =IF(ISNA($DL172),"",getNumKeta0($DM172,-1)) ->  | T172: =IF(ISNA($DL172),"",getNumKeta0($DM172,-2)) ->  | U172: =IF(ISNA($DL172),"",getNumKeta0($DM172,-3)) ->  | V172: =IF(ISNA($DL172),"",VLOOKUP($DL172,請求明細,6,FALSE)) ->  | W172: =IF(ISNA($DL172),"",getNumKeta0($DN172,9)) ->  | X172: =IF(ISNA($DL172),"",getNumKeta0($DN172,8)) ->  | Y172: =IF(ISNA($DL172),"",getNumKeta0($DN172,7)) ->  | Z172: =IF(ISNA($DL172),"",getNumKeta0($DN172,6)) ->  | AA172: =IF(ISNA($DL172),"",getNumKeta0($DN172,5)) ->  | AB172: =IF(ISNA($DL172),"",getNumKeta0($DN172,4)) ->  | AC172: =IF(ISNA($DL172),"",getNumKeta0($DN172,3)) ->  | AD172: =IF(ISNA($DL172),"",getNumKeta0($DN172,2)) ->  | AE172: =IF(ISNA($DL172),"",getNumKeta0($DN172,1)) ->  | AF172: =IF(ISNA($DL172),"",getNumKeta0($DN172,-1)) ->  | AG172: =IF(ISNA($DL172),"",getNumKeta0($DN172,-2)) ->  | AH172: =IF(ISNA($DL172),"",getNumKeta0($DN172,-3)) ->  | AI172: =IF(ISNA($DL172),"",getNumKeta0($DO172,9)) ->  | AJ172: =IF(ISNA($DL172),"",getNumKeta0($DO172,8)) ->  | AK172: =IF(ISNA($DL172),"",getNumKeta0($DO172,7)) ->  | AL172: =IF(ISNA($DL172),"",getNumKeta0($DO172,6)) ->  | AM172: =IF(ISNA($DL172),"",getNumKeta0($DO172,5)) ->  | AN172: =IF(ISNA($DL172),"",getNumKeta0($DO172,4)) ->  | AO172: =IF(ISNA($DL172),"",getNumKeta0($DO172,3)) ->  | AP172: =IF(ISNA($DL172),"",getNumKeta0($DO172,2)) ->  | AQ172: =IF(ISNA($DL172),"",getNumKeta0($DO172,1)) ->  | AR172: =IF(ISNA($DL172),"",LEFT(VLOOKUP($DL172,請求明細,10,FALSE),16)) ->  | BF172: =BF137+1 -> 43 | BG172: =IF(ISNA($DL172),"",VLOOKUP($DL172,請求明細,3,FALSE)) ->  | BJ172: =IF(ISNA($DL172),"",VLOOKUP($DL172,請求明細,4,FALSE)) ->  | BN172: =IF(ISNA($DL172),"",getNumKeta0($DM172,9)) ->  | BO172: =IF(ISNA($DL172),"",getNumKeta0($DM172,8)) ->  | BP172: =IF(ISNA($DL172),"",getNumKeta0($DM172,7)) ->  | BQ172: =IF(ISNA($DL172),"",getNumKeta0($DM172,6)) ->  | BR172: =IF(ISNA($DL172),"",getNumKeta0($DM172,5)) ->  | BS172: =IF(ISNA($DL172),"",getNumKeta0($DM172,4)) ->  | BT172: =IF(ISNA($DL172),"",getNumKeta0($DM172,3)) ->  | BU172: =IF(ISNA($DL172),"",getNumKeta0($DM172,2)) ->  | BV172: =IF(ISNA($DL172),"",getNumKeta0($DM172,1)) ->  | BW172: =IF(ISNA($DL172),"",getNumKeta0($DM172,-1)) ->  | BX172: =IF(ISNA($DL172),"",getNumKeta0($DM172,-2)) ->  | BY172: =IF(ISNA($DL172),"",getNumKeta0($DM172,-3)) ->  | BZ172: =IF(ISNA($DL172),"",VLOOKUP($DL172,請求明細,6,FALSE)) ->  | CA172: =IF(ISNA($DL172),"",getNumKeta0($DN172,9)) ->  | CB172: =IF(ISNA($DL172),"",getNumKeta0($DN172,8)) ->  | CC172: =IF(ISNA($DL172),"",getNumKeta0($DN172,7)) ->  | CD172: =IF(ISNA($DL172),"",getNumKeta0($DN172,6)) ->  | CE172: =IF(ISNA($DL172),"",getNumKeta0($DN172,5)) ->  | CF172: =IF(ISNA($DL172),"",getNumKeta0($DN172,4)) ->  | CG172: =IF(ISNA($DL172),"",getNumKeta0($DN172,3)) ->  | CH172: =IF(ISNA($DL172),"",getNumKeta0($DN172,2)) ->  | CI172: =IF(ISNA($DL172),"",getNumKeta0($DN172,1)) ->  | CJ172: =IF(ISNA($DL172),"",getNumKeta0($DN172,-1)) ->  | CK172: =IF(ISNA($DL172),"",getNumKeta0($DN172,-2)) ->  | CL172: =IF(ISNA($DL172),"",getNumKeta0($DN172,-3)) ->  | CM172: =IF(ISNA($DL172),"",getNumKeta0($DO172,9)) ->  | CN172: =IF(ISNA($DL172),"",getNumKeta0($DO172,8)) ->  | CO172: =IF(ISNA($DL172),"",getNumKeta0($DO172,7)) ->  | CP172: =IF(ISNA($DL172),"",getNumKeta0($DO172,6)) ->  | CQ172: =IF(ISNA($DL172),"",getNumKeta0($DO172,5)) ->  | CR172: =IF(ISNA($DL172),"",getNumKeta0($DO172,4)) ->  | CS172: =IF(ISNA($DL172),"",getNumKeta0($DO172,3)) ->  | CT172: =IF(ISNA($DL172),"",getNumKeta0($DO172,2)) ->  | CU172: =IF(ISNA($DL172),"",getNumKeta0($DO172,1)) ->  | CV172: =IF(ISNA($DL172),"",LEFT(VLOOKUP($DL172,請求明細,10,FALSE),16)) ->  | DI172: =IF($E$14=OFFSET(明細情報!$B$5, $DK172-1,0),1,0) -> 0 | DJ172: =IF($DI172=0, 0, SUM($DI$28:$DI172)) -> 0 | DK172: =DK137+1 -> 43 | DL172: =VLOOKUP(B172,$DJ$28:$DK$65556,2,FALSE) ->  | DM172: =IF(ISNA($DL172),0,VLOOKUP($DL172,請求明細,5,FALSE)) -> 0 | DN172: =IF(ISNA($DL172),0,VLOOKUP($DL172,請求明細,7,FALSE)) -> 0 | DO172: =IF(ISNA($DL172),0,VLOOKUP($DL172,請求明細,9,FALSE)) -> 0
B173: =B172+1 -> 44 | BF173: =BF172+1 -> 44 | DI173: =IF($E$14=OFFSET(明細情報!$B$5, $DK173-1,0),1,0) -> 0 | DJ173: =IF($DI173=0, 0, SUM($DI$28:$DI173)) -> 0 | DK173: =DK172+1 -> 44 | DM173: 0 | DN173: 0 | DO173: 0
B174: 45 | BF174: 45 | DI174: =IF($E$14=OFFSET(明細情報!$B$5, $DK174-1,0),1,0) -> 0 | DJ174: =IF($DI174=0, 0, SUM($DI$28:$DI174)) -> 0 | DK174: 45 | DM174: 0 | DN174: 0 | DO174: 0
B175: 46 | BF175: 46 | DI175: =IF($E$14=OFFSET(明細情報!$B$5, $DK175-1,0),1,0) -> 0 | DJ175: =IF($DI175=0, 0, SUM($DI$28:$DI175)) -> 0 | DK175: 46 | DM175: 0 | DN175: 0 | DO175: 0
B176: 47 | BF176: 47 | DI176: =IF($E$14=OFFSET(明細情報!$B$5, $DK176-1,0),1,0) -> 0 | DJ176: =IF($DI176=0, 0, SUM($DI$28:$DI176)) -> 0 | DK176: 47 | DM176: 0 | DN176: 0 | DO176: 0
B177: 48 | BF177: 48 | DI177: =IF($E$14=OFFSET(明細情報!$B$5, $DK177-1,0),1,0) -> 0 | DJ177: =IF($DI177=0, 0, SUM($DI$28:$DI177)) -> 0 | DK177: 48 | DM177: 0 | DN177: 0 | DO177: 0
B178: 49 | BF178: 49 | DI178: =IF($E$14=OFFSET(明細情報!$B$5, $DK178-1,0),1,0) -> 0 | DJ178: =IF($DI178=0, 0, SUM($DI$28:$DI178)) -> 0 | DK178: 49 | DM178: 0 | DN178: 0 | DO178: 0
B179: 50 | BF179: 50 | DI179: =IF($E$14=OFFSET(明細情報!$B$5, $DK179-1,0),1,0) -> 0 | DJ179: =IF($DI179=0, 0, SUM($DI$28:$DI179)) -> 0 | DK179: 50 | DM179: 0 | DN179: 0 | DO179: 0
B180: 51 | BF180: 51 | DI180: =IF($E$14=OFFSET(明細情報!$B$5, $DK180-1,0),1,0) -> 0 | DJ180: =IF($DI180=0, 0, SUM($DI$28:$DI180)) -> 0 | DK180: 51 | DM180: 0 | DN180: 0 | DO180: 0
B181: 52 | BF181: 52 | DI181: =IF($E$14=OFFSET(明細情報!$B$5, $DK181-1,0),1,0) -> 0 | DJ181: =IF($DI181=0, 0, SUM($DI$28:$DI181)) -> 0 | DK181: 52 | DM181: 0 | DN181: 0 | DO181: 0
B182: 53 | BF182: 53 | DI182: =IF($E$14=OFFSET(明細情報!$B$5, $DK182-1,0),1,0) -> 0 | DJ182: =IF($DI182=0, 0, SUM($DI$28:$DI182)) -> 0 | DK182: 53 | DM182: 0 | DN182: 0 | DO182: 0
B183: 54 | BF183: 54 | DI183: =IF($E$14=OFFSET(明細情報!$B$5, $DK183-1,0),1,0) -> 0 | DJ183: =IF($DI183=0, 0, SUM($DI$28:$DI183)) -> 0 | DK183: 54 | DM183: 0 | DN183: 0 | DO183: 0
B184: 55 | BF184: 55 | DI184: =IF($E$14=OFFSET(明細情報!$B$5, $DK184-1,0),1,0) -> 0 | DJ184: =IF($DI184=0, 0, SUM($DI$28:$DI184)) -> 0 | DK184: 55 | DM184: 0 | DN184: 0 | DO184: 0
B185: 56 | BF185: 56 | DI185: =IF($E$14=OFFSET(明細情報!$B$5, $DK185-1,0),1,0) -> 0 | DJ185: =IF($DI185=0, 0, SUM($DI$28:$DI185)) -> 0 | DK185: 56 | DM185: 0 | DN185: 0 | DO185: 0
W186: 非 課 税 小 計 | AI186: =getNumKeta0($DP187,9) ->  | AJ186: =getNumKeta0($DP186,8) ->  | AK186: =getNumKeta0($DP186,7) ->  | AL186: =getNumKeta0($DP186,6) ->  | AM186: =getNumKeta0($DP186,5) ->  | AN186: =getNumKeta0($DP186,4) ->  | AO186: =getNumKeta0($DP186,3) ->  | AP186: =getNumKeta0($DP186,2) ->  | AQ186: =IF(F185="",IF($DP186=0,"0",getNumKeta0($DP186,1)),"") -> 0 | AR186: A | AS186: 非課税・不課税 | CA186: 非 課 税 小 計 | CM186: =getNumKeta0($DP187,9) ->  | CN186: =getNumKeta0($DP186,8) ->  | CO186: =getNumKeta0($DP186,7) ->  | CP186: =getNumKeta0($DP186,6) ->  | CQ186: =getNumKeta0($DP186,5) ->  | CR186: =getNumKeta0($DP186,4) ->  | CS186: =getNumKeta0($DP186,3) ->  | CT186: =getNumKeta0($DP186,2) ->  | CU186: =IF(BJ185="",IF($DP186=0,"0",getNumKeta0($DP186,1)),"") -> 0 | CV186: A | CW186: 非課税・不課税 | DP186: =IF($DK185/14=ROUNDUP(MAX($DJ:$DJ)/14,0),VLOOKUP($E$14,基本情報_工事名称マスタ,5,FALSE),0) -> 0 | DQ186: =DP186 -> 0
W187: 課 税 小 計 | AI187: =getNumKeta0($DP187,9) ->  | AJ187: =getNumKeta0($DP187,8) ->  | AK187: =getNumKeta0($DP187,7) ->  | AL187: =getNumKeta0($DP187,6) ->  | AM187: =getNumKeta0($DP187,5) ->  | AN187: =getNumKeta0($DP187,4) ->  | AO187: =getNumKeta0($DP187,3) ->  | AP187: =getNumKeta0($DP187,2) ->  | AQ187: =getNumKeta0($DP187,1) ->  | AR187: B | BB187: =IF($DP187<>$DQ187,"*","") ->  | CA187: 課 税 小 計 | CM187: =getNumKeta0($DP187,9) ->  | CN187: =getNumKeta0($DP187,8) ->  | CO187: =getNumKeta0($DP187,7) ->  | CP187: =getNumKeta0($DP187,6) ->  | CQ187: =getNumKeta0($DP187,5) ->  | CR187: =getNumKeta0($DP187,4) ->  | CS187: =getNumKeta0($DP187,3) ->  | CT187: =getNumKeta0($DP187,2) ->  | CU187: =getNumKeta0($DP187,1) ->  | CV187: B | DF187: =IF($DP187<>$DQ187,"*","") ->  | DP187: =IF($DK185/14=ROUNDUP(MAX($DJ:$DJ)/14,0),VLOOKUP($E$14,基本情報_工事名称マスタ,4,FALSE),0) -> 0 | DQ187: =DP187 -> 0
W188: 消 費 税 | AE188: =基本情報_消費税率 -> 0.1 | AI188: =getNumKeta0($DP188,9) ->  | AJ188: =getNumKeta0($DP188,8) ->  | AK188: =getNumKeta0($DP188,7) ->  | AL188: =getNumKeta0($DP188,6) ->  | AM188: =getNumKeta0($DP188,5) ->  | AN188: =getNumKeta0($DP188,4) ->  | AO188: =getNumKeta0($DP188,3) ->  | AP188: =getNumKeta0($DP188,2) ->  | AQ188: =getNumKeta0($DP188,1) ->  | AR188: C | AS188: B × 税率 | CA188: 消 費 税 | CI188: =基本情報_消費税率 -> 0.1 | CM188: =getNumKeta0($DP188,9) ->  | CN188: =getNumKeta0($DP188,8) ->  | CO188: =getNumKeta0($DP188,7) ->  | CP188: =getNumKeta0($DP188,6) ->  | CQ188: =getNumKeta0($DP188,5) ->  | CR188: =getNumKeta0($DP188,4) ->  | CS188: =getNumKeta0($DP188,3) ->  | CT188: =getNumKeta0($DP188,2) ->  | CU188: =getNumKeta0($DP188,1) ->  | CV188: C | CW188: B × 税率 | DP188: =IF($DK185/14=ROUNDUP(MAX($DJ:$DJ)/14,0),VLOOKUP($E$14,基本情報_工事名称マスタ,6,FALSE),0) -> 0 | DQ188: =DP188 -> 0
W189: 課 税 合 計 | AI189: =getNumKeta0($DP189,9) ->  | AJ189: =getNumKeta0($DP189,8) ->  | AK189: =getNumKeta0($DP189,7) ->  | AL189: =getNumKeta0($DP189,6) ->  | AM189: =getNumKeta0($DP189,5) ->  | AN189: =getNumKeta0($DP189,4) ->  | AO189: =getNumKeta0($DP189,3) ->  | AP189: =getNumKeta0($DP189,2) ->  | AQ189: =getNumKeta0($DP189,1) ->  | AR189: D | AS189: B + C | CA189: 課 税 合 計 | CM189: =getNumKeta0($DP189,9) ->  | CN189: =getNumKeta0($DP189,8) ->  | CO189: =getNumKeta0($DP189,7) ->  | CP189: =getNumKeta0($DP189,6) ->  | CQ189: =getNumKeta0($DP189,5) ->  | CR189: =getNumKeta0($DP189,4) ->  | CS189: =getNumKeta0($DP189,3) ->  | CT189: =getNumKeta0($DP189,2) ->  | CU189: =getNumKeta0($DP189,1) ->  | CV189: D | CW189: B + C | DP189: =DP187+DP188 -> 0 | DQ189: =DQ187+DQ188 -> 0
W190: 合 計 | AI190: =getNumKeta0($DP190,9) ->  | AJ190: =getNumKeta0($DP190,8) ->  | AK190: =getNumKeta0($DP190,7) ->  | AL190: =getNumKeta0($DP190,6) ->  | AM190: =getNumKeta0($DP190,5) ->  | AN190: =getNumKeta0($DP190,4) ->  | AO190: =getNumKeta0($DP190,3) ->  | AP190: =getNumKeta0($DP190,2) ->  | AQ190: =getNumKeta0($DP190,1) ->  | AR190: D | AS190: A + D | CA190: 合 計 | CM190: =getNumKeta0($DP190,9) ->  | CN190: =getNumKeta0($DP190,8) ->  | CO190: =getNumKeta0($DP190,7) ->  | CP190: =getNumKeta0($DP190,6) ->  | CQ190: =getNumKeta0($DP190,5) ->  | CR190: =getNumKeta0($DP190,4) ->  | CS190: =getNumKeta0($DP190,3) ->  | CT190: =getNumKeta0($DP190,2) ->  | CU190: =getNumKeta0($DP190,1) ->  | CV190: D | CW190: A + D | DP190: =IF($DK185/14=ROUNDUP(MAX($DJ:$DJ)/14,0),VLOOKUP($E$14,基本情報_工事名称マスタ,7,FALSE),0) -> 0 | DQ190: =DQ186+DQ189 -> 0
W191: 貴社→請求書(添付)→経理(控) | CA191: 貴社→請求書(添付)→経理→作業所長(控)
AS193: ="P " & B233/14 & "/" & ROUNDUP(COUNTIF(請求明細_工事場所, E206)/14,0) -> P 5/1 | CW193: ="P " & BF233/14 & "/" & ROUNDUP(COUNTIF(請求明細_工事場所, BI206)/14,0) -> P 5/1
D194: 請求書（一般用） | Z194: 取引先コード | AC194: =基本情報_取引先コード -> 999999 | AM194: 締日 | AP194: =基本情報_請求締日 -> 2023-01-31 | BH194: 請求書（一般用） | CD194: 取引先コード | CG194: =基本情報_取引先コード -> 999999 | CQ194: 締日 | CT194: =基本情報_請求締日 -> 2023-01-31
J195: 提出用 | BN195: 提出用
Z197: 適格請求書発行事業者登録 | AM197: =基本情報_事業者登録 -> 有 | AP197: 登録番号 | AS197: =IF(基本情報_登録番号="","",基本情報_登録番号) -> T1-2345-6789-0123 | CD197: 適格請求書発行事業者登録 | CQ197: =基本情報_事業者登録 -> 有 | CT197: 登録番号 | CW197: =IF(基本情報_登録番号="","",基本情報_登録番号) -> T1-2345-6789-0123
B200: 株式会社 丸 高 御中 | Z200: （住所・社名・電話） | BF200: 株式会社 丸 高 御中 | CD200: （住所・社名・電話）
AC204: =基本情報_住所 -> 酒田市○○○○１－１ | CG204: =基本情報_住所 -> 酒田市○○○○１－１
B206: 工 事 名 | E206: =$E$14 -> ×××××工事 | P206: 承 認 | V206: 検 印 | BF206: 工 事 名 | BI206: =$E$14 -> ×××××工事 | BT206: 承 認 | BZ206: 検 印
AC209: =基本情報_社名 -> (株）○○建設 | AY209: 印 | CG209: =基本情報_社名 -> (株）○○建設 | DC209: 印
B212: 作業所長名 | E212: =VLOOKUP(E206,基本情報_工事名称マスタ,3,FALSE) -> ×次郎 | BF212: 作業所長名 | BI212: =VLOOKUP(BI206,基本情報_工事名称マスタ,3,FALSE) -> ×次郎
AC214: =基本情報_電話番号 -> 0234 - 00 - 0000 | CG214: =基本情報_電話番号 -> 0234 - 00 - 0000
B219: 通番 | C219: 納入年月日 | F219: 品 名 ・ 規 格 | J219: 数 量 | V219: 単 位 | W219: 単 価 | AI219: 金 額 | AR219: 備 考 | BF219: 通番 | BG219: 納入年月日 | BJ219: 品 名 ・ 規 格 | BN219: 数 量 | BZ219: 単 位 | CA219: 単 価 | CM219: 金 額 | CV219: 備 考 | DI219: ヒット | DJ219: ランク | DK219: - | DL219: 通番 | DM219: 数量 | DN219: 単価 | DO219: 金額
B220: =B185+1 -> 57 | C220: =IF(ISNA($DL220),"",VLOOKUP($DL220,請求明細,3,FALSE)) ->  | F220: =IF(ISNA($DL220),"",VLOOKUP($DL220,請求明細,4,FALSE)) ->  | J220: =IF(ISNA($DL220),"",getNumKeta0($DM220,9)) ->  | K220: =IF(ISNA($DL220),"",getNumKeta0($DM220,8)) ->  | L220: =IF(ISNA($DL220),"",getNumKeta0($DM220,7)) ->  | M220: =IF(ISNA($DL220),"",getNumKeta0($DM220,6)) ->  | N220: =IF(ISNA($DL220),"",getNumKeta0($DM220,5)) ->  | O220: =IF(ISNA($DL220),"",getNumKeta0($DM220,4)) ->  | P220: =IF(ISNA($DL220),"",getNumKeta0($DM220,3)) ->  | Q220: =IF(ISNA($DL220),"",getNumKeta0($DM220,2)) ->  | R220: =IF(ISNA($DL220),"",getNumKeta0($DM220,1)) ->  | S220: =IF(ISNA($DL220),"",getNumKeta0($DM220,-1)) ->  | T220: =IF(ISNA($DL220),"",getNumKeta0($DM220,-2)) ->  | U220: =IF(ISNA($DL220),"",getNumKeta0($DM220,-3)) ->  | V220: =IF(ISNA($DL220),"",VLOOKUP($DL220,請求明細,6,FALSE)) ->  | W220: =IF(ISNA($DL220),"",getNumKeta0($DN220,9)) ->  | X220: =IF(ISNA($DL220),"",getNumKeta0($DN220,8)) ->  | Y220: =IF(ISNA($DL220),"",getNumKeta0($DN220,7)) ->  | Z220: =IF(ISNA($DL220),"",getNumKeta0($DN220,6)) ->  | AA220: =IF(ISNA($DL220),"",getNumKeta0($DN220,5)) ->  | AB220: =IF(ISNA($DL220),"",getNumKeta0($DN220,4)) ->  | AC220: =IF(ISNA($DL220),"",getNumKeta0($DN220,3)) ->  | AD220: =IF(ISNA($DL220),"",getNumKeta0($DN220,2)) ->  | AE220: =IF(ISNA($DL220),"",getNumKeta0($DN220,1)) ->  | AF220: =IF(ISNA($DL220),"",getNumKeta0($DN220,-1)) ->  | AG220: =IF(ISNA($DL220),"",getNumKeta0($DN220,-2)) ->  | AH220: =IF(ISNA($DL220),"",getNumKeta0($DN220,-3)) ->  | AI220: =IF(ISNA($DL220),"",getNumKeta0($DO220,9)) ->  | AJ220: =IF(ISNA($DL220),"",getNumKeta0($DO220,8)) ->  | AK220: =IF(ISNA($DL220),"",getNumKeta0($DO220,7)) ->  | AL220: =IF(ISNA($DL220),"",getNumKeta0($DO220,6)) ->  | AM220: =IF(ISNA($DL220),"",getNumKeta0($DO220,5)) ->  | AN220: =IF(ISNA($DL220),"",getNumKeta0($DO220,4)) ->  | AO220: =IF(ISNA($DL220),"",getNumKeta0($DO220,3)) ->  | AP220: =IF(ISNA($DL220),"",getNumKeta0($DO220,2)) ->  | AQ220: =IF(ISNA($DL220),"",getNumKeta0($DO220,1)) ->  | AR220: =IF(ISNA($DL220),"",LEFT(VLOOKUP($DL220,請求明細,10,FALSE),16)) ->  | BF220: =BF185+1 -> 57 | BG220: =IF(ISNA($DL220),"",VLOOKUP($DL220,請求明細,3,FALSE)) ->  | BJ220: =IF(ISNA($DL220),"",VLOOKUP($DL220,請求明細,4,FALSE)) ->  | BN220: =IF(ISNA($DL220),"",getNumKeta0($DM220,9)) ->  | BO220: =IF(ISNA($DL220),"",getNumKeta0($DM220,8)) ->  | BP220: =IF(ISNA($DL220),"",getNumKeta0($DM220,7)) ->  | BQ220: =IF(ISNA($DL220),"",getNumKeta0($DM220,6)) ->  | BR220: =IF(ISNA($DL220),"",getNumKeta0($DM220,5)) ->  | BS220: =IF(ISNA($DL220),"",getNumKeta0($DM220,4)) ->  | BT220: =IF(ISNA($DL220),"",getNumKeta0($DM220,3)) ->  | BU220: =IF(ISNA($DL220),"",getNumKeta0($DM220,2)) ->  | BV220: =IF(ISNA($DL220),"",getNumKeta0($DM220,1)) ->  | BW220: =IF(ISNA($DL220),"",getNumKeta0($DM220,-1)) ->  | BX220: =IF(ISNA($DL220),"",getNumKeta0($DM220,-2)) ->  | BY220: =IF(ISNA($DL220),"",getNumKeta0($DM220,-3)) ->  | BZ220: =IF(ISNA($DL220),"",VLOOKUP($DL220,請求明細,6,FALSE)) ->  | CA220: =IF(ISNA($DL220),"",getNumKeta0($DN220,9)) ->  | CB220: =IF(ISNA($DL220),"",getNumKeta0($DN220,8)) ->  | CC220: =IF(ISNA($DL220),"",getNumKeta0($DN220,7)) ->  | CD220: =IF(ISNA($DL220),"",getNumKeta0($DN220,6)) ->  | CE220: =IF(ISNA($DL220),"",getNumKeta0($DN220,5)) ->  | CF220: =IF(ISNA($DL220),"",getNumKeta0($DN220,4)) ->  | CG220: =IF(ISNA($DL220),"",getNumKeta0($DN220,3)) ->  | CH220: =IF(ISNA($DL220),"",getNumKeta0($DN220,2)) ->  | CI220: =IF(ISNA($DL220),"",getNumKeta0($DN220,1)) ->  | CJ220: =IF(ISNA($DL220),"",getNumKeta0($DN220,-1)) ->  | CK220: =IF(ISNA($DL220),"",getNumKeta0($DN220,-2)) ->  | CL220: =IF(ISNA($DL220),"",getNumKeta0($DN220,-3)) ->  | CM220: =IF(ISNA($DL220),"",getNumKeta0($DO220,9)) ->  | CN220: =IF(ISNA($DL220),"",getNumKeta0($DO220,8)) ->  | CO220: =IF(ISNA($DL220),"",getNumKeta0($DO220,7)) ->  | CP220: =IF(ISNA($DL220),"",getNumKeta0($DO220,6)) ->  | CQ220: =IF(ISNA($DL220),"",getNumKeta0($DO220,5)) ->  | CR220: =IF(ISNA($DL220),"",getNumKeta0($DO220,4)) ->  | CS220: =IF(ISNA($DL220),"",getNumKeta0($DO220,3)) ->  | CT220: =IF(ISNA($DL220),"",getNumKeta0($DO220,2)) ->  | CU220: =IF(ISNA($DL220),"",getNumKeta0($DO220,1)) ->  | CV220: =IF(ISNA($DL220),"",LEFT(VLOOKUP($DL220,請求明細,10,FALSE),16)) ->  | DI220: =IF($E$14=OFFSET(明細情報!$B$5, $DK220-1,0),1,0) -> 0 | DJ220: =IF($DI220=0, 0, SUM($DI$28:$DI220)) -> 0 | DK220: =DK185+1 -> 57 | DL220: =VLOOKUP(B220,$DJ$28:$DK$65556,2,FALSE) ->  | DM220: =IF(ISNA($DL220),0,VLOOKUP($DL220,請求明細,5,FALSE)) -> 0 | DN220: =IF(ISNA($DL220),0,VLOOKUP($DL220,請求明細,7,FALSE)) -> 0 | DO220: =IF(ISNA($DL220),0,VLOOKUP($DL220,請求明細,9,FALSE)) -> 0
B221: =B220+1 -> 58 | BF221: =BF220+1 -> 58 | DI221: =IF($E$14=OFFSET(明細情報!$B$5, $DK221-1,0),1,0) -> 0 | DJ221: =IF($DI221=0, 0, SUM($DI$28:$DI221)) -> 0 | DK221: =DK220+1 -> 58 | DM221: 0 | DN221: 0 | DO221: 0
B222: 59 | BF222: 59 | DI222: =IF($E$14=OFFSET(明細情報!$B$5, $DK222-1,0),1,0) -> 0 | DJ222: =IF($DI222=0, 0, SUM($DI$28:$DI222)) -> 0 | DK222: 59 | DM222: 0 | DN222: 0 | DO222: 0
B223: 60 | BF223: 60 | DI223: =IF($E$14=OFFSET(明細情報!$B$5, $DK223-1,0),1,0) -> 0 | DJ223: =IF($DI223=0, 0, SUM($DI$28:$DI223)) -> 0 | DK223: 60 | DM223: 0 | DN223: 0 | DO223: 0
B224: 61 | BF224: 61 | DI224: =IF($E$14=OFFSET(明細情報!$B$5, $DK224-1,0),1,0) -> 0 | DJ224: =IF($DI224=0, 0, SUM($DI$28:$DI224)) -> 0 | DK224: 61 | DM224: 0 | DN224: 0 | DO224: 0
B225: 62 | BF225: 62 | DI225: =IF($E$14=OFFSET(明細情報!$B$5, $DK225-1,0),1,0) -> 0 | DJ225: =IF($DI225=0, 0, SUM($DI$28:$DI225)) -> 0 | DK225: 62 | DM225: 0 | DN225: 0 | DO225: 0
B226: 63 | BF226: 63 | DI226: =IF($E$14=OFFSET(明細情報!$B$5, $DK226-1,0),1,0) -> 0 | DJ226: =IF($DI226=0, 0, SUM($DI$28:$DI226)) -> 0 | DK226: 63 | DM226: 0 | DN226: 0 | DO226: 0
B227: 64 | BF227: 64 | DI227: =IF($E$14=OFFSET(明細情報!$B$5, $DK227-1,0),1,0) -> 0 | DJ227: =IF($DI227=0, 0, SUM($DI$28:$DI227)) -> 0 | DK227: 64 | DM227: 0 | DN227: 0 | DO227: 0
B228: 65 | BF228: 65 | DI228: =IF($E$14=OFFSET(明細情報!$B$5, $DK228-1,0),1,0) -> 0 | DJ228: =IF($DI228=0, 0, SUM($DI$28:$DI228)) -> 0 | DK228: 65 | DM228: 0 | DN228: 0 | DO228: 0
B229: 66 | BF229: 66 | DI229: =IF($E$14=OFFSET(明細情報!$B$5, $DK229-1,0),1,0) -> 0 | DJ229: =IF($DI229=0, 0, SUM($DI$28:$DI229)) -> 0 | DK229: 66 | DM229: 0 | DN229: 0 | DO229: 0
B230: 67 | BF230: 67 | DI230: =IF($E$14=OFFSET(明細情報!$B$5, $DK230-1,0),1,0) -> 0 | DJ230: =IF($DI230=0, 0, SUM($DI$28:$DI230)) -> 0 | DK230: 67 | DM230: 0 | DN230: 0 | DO230: 0
B231: 68 | BF231: 68 | DI231: =IF($E$14=OFFSET(明細情報!$B$5, $DK231-1,0),1,0) -> 0 | DJ231: =IF($DI231=0, 0, SUM($DI$28:$DI231)) -> 0 | DK231: 68 | DM231: 0 | DN231: 0 | DO231: 0
B232: 69 | BF232: 69 | DI232: =IF($E$14=OFFSET(明細情報!$B$5, $DK232-1,0),1,0) -> 0 | DJ232: =IF($DI232=0, 0, SUM($DI$28:$DI232)) -> 0 | DK232: 69 | DM232: 0 | DN232: 0 | DO232: 0
B233: 70 | BF233: 70 | DI233: =IF($E$14=OFFSET(明細情報!$B$5, $DK233-1,0),1,0) -> 0 | DJ233: =IF($DI233=0, 0, SUM($DI$28:$DI233)) -> 0 | DK233: 70 | DM233: 0 | DN233: 0 | DO233: 0
W234: 非 課 税 小 計 | AI234: =getNumKeta0($DP235,9) ->  | AJ234: =getNumKeta0($DP234,8) ->  | AK234: =getNumKeta0($DP234,7) ->  | AL234: =getNumKeta0($DP234,6) ->  | AM234: =getNumKeta0($DP234,5) ->  | AN234: =getNumKeta0($DP234,4) ->  | AO234: =getNumKeta0($DP234,3) ->  | AP234: =getNumKeta0($DP234,2) ->  | AQ234: =IF(F233="",IF($DP234=0,"0",getNumKeta0($DP234,1)),"") -> 0 | AR234: A | AS234: 非課税・不課税 | CA234: 非 課 税 小 計 | CM234: =getNumKeta0($DP235,9) ->  | CN234: =getNumKeta0($DP234,8) ->  | CO234: =getNumKeta0($DP234,7) ->  | CP234: =getNumKeta0($DP234,6) ->  | CQ234: =getNumKeta0($DP234,5) ->  | CR234: =getNumKeta0($DP234,4) ->  | CS234: =getNumKeta0($DP234,3) ->  | CT234: =getNumKeta0($DP234,2) ->  | CU234: =IF(BJ233="",IF($DP234=0,"0",getNumKeta0($DP234,1)),"") -> 0 | CV234: A | CW234: 非課税・不課税 | DP234: =IF($DK233/14=ROUNDUP(MAX($DJ:$DJ)/14,0),VLOOKUP($E$14,基本情報_工事名称マスタ,5,FALSE),0) -> 0 | DQ234: =DP234 -> 0
W235: 課 税 小 計 | AI235: =getNumKeta0($DP235,9) ->  | AJ235: =getNumKeta0($DP235,8) ->  | AK235: =getNumKeta0($DP235,7) ->  | AL235: =getNumKeta0($DP235,6) ->  | AM235: =getNumKeta0($DP235,5) ->  | AN235: =getNumKeta0($DP235,4) ->  | AO235: =getNumKeta0($DP235,3) ->  | AP235: =getNumKeta0($DP235,2) ->  | AQ235: =getNumKeta0($DP235,1) ->  | AR235: B | BB235: =IF($DP235<>$DQ235,"*","") ->  | CA235: 課 税 小 計 | CM235: =getNumKeta0($DP235,9) ->  | CN235: =getNumKeta0($DP235,8) ->  | CO235: =getNumKeta0($DP235,7) ->  | CP235: =getNumKeta0($DP235,6) ->  | CQ235: =getNumKeta0($DP235,5) ->  | CR235: =getNumKeta0($DP235,4) ->  | CS235: =getNumKeta0($DP235,3) ->  | CT235: =getNumKeta0($DP235,2) ->  | CU235: =getNumKeta0($DP235,1) ->  | CV235: B | DF235: =IF($DP235<>$DQ235,"*","") ->  | DP235: =IF($DK233/14=ROUNDUP(MAX($DJ:$DJ)/14,0),VLOOKUP($E$14,基本情報_工事名称マスタ,4,FALSE),0) -> 0 | DQ235: =DP235 -> 0
W236: 消 費 税 | AE236: =基本情報_消費税率 -> 0.1 | AI236: =getNumKeta0($DP236,9) ->  | AJ236: =getNumKeta0($DP236,8) ->  | AK236: =getNumKeta0($DP236,7) ->  | AL236: =getNumKeta0($DP236,6) ->  | AM236: =getNumKeta0($DP236,5) ->  | AN236: =getNumKeta0($DP236,4) ->  | AO236: =getNumKeta0($DP236,3) ->  | AP236: =getNumKeta0($DP236,2) ->  | AQ236: =getNumKeta0($DP236,1) ->  | AR236: C | AS236: B × 税率 | CA236: 消 費 税 | CI236: =基本情報_消費税率 -> 0.1 | CM236: =getNumKeta0($DP236,9) ->  | CN236: =getNumKeta0($DP236,8) ->  | CO236: =getNumKeta0($DP236,7) ->  | CP236: =getNumKeta0($DP236,6) ->  | CQ236: =getNumKeta0($DP236,5) ->  | CR236: =getNumKeta0($DP236,4) ->  | CS236: =getNumKeta0($DP236,3) ->  | CT236: =getNumKeta0($DP236,2) ->  | CU236: =getNumKeta0($DP236,1) ->  | CV236: C | CW236: B × 税率 | DP236: =IF($DK233/14=ROUNDUP(MAX($DJ:$DJ)/14,0),VLOOKUP($E$14,基本情報_工事名称マスタ,6,FALSE),0) -> 0 | DQ236: =DP236 -> 0
W237: 課 税 合 計 | AI237: =getNumKeta0($DP237,9) ->  | AJ237: =getNumKeta0($DP237,8) ->  | AK237: =getNumKeta0($DP237,7) ->  | AL237: =getNumKeta0($DP237,6) ->  | AM237: =getNumKeta0($DP237,5) ->  | AN237: =getNumKeta0($DP237,4) ->  | AO237: =getNumKeta0($DP237,3) ->  | AP237: =getNumKeta0($DP237,2) ->  | AQ237: =getNumKeta0($DP237,1) ->  | AR237: D | AS237: B + C | CA237: 課 税 合 計 | CM237: =getNumKeta0($DP237,9) ->  | CN237: =getNumKeta0($DP237,8) ->  | CO237: =getNumKeta0($DP237,7) ->  | CP237: =getNumKeta0($DP237,6) ->  | CQ237: =getNumKeta0($DP237,5) ->  | CR237: =getNumKeta0($DP237,4) ->  | CS237: =getNumKeta0($DP237,3) ->  | CT237: =getNumKeta0($DP237,2) ->  | CU237: =getNumKeta0($DP237,1) ->  | CV237: D | CW237: B + C | DP237: =DP235+DP236 -> 0 | DQ237: =DQ235+DQ236 -> 0
W238: 合 計 | AI238: =getNumKeta0($DP238,9) ->  | AJ238: =getNumKeta0($DP238,8) ->  | AK238: =getNumKeta0($DP238,7) ->  | AL238: =getNumKeta0($DP238,6) ->  | AM238: =getNumKeta0($DP238,5) ->  | AN238: =getNumKeta0($DP238,4) ->  | AO238: =getNumKeta0($DP238,3) ->  | AP238: =getNumKeta0($DP238,2) ->  | AQ238: =getNumKeta0($DP238,1) ->  | AR238: D | AS238: A + D | CA238: 合 計 | CM238: =getNumKeta0($DP238,9) ->  | CN238: =getNumKeta0($DP238,8) ->  | CO238: =getNumKeta0($DP238,7) ->  | CP238: =getNumKeta0($DP238,6) ->  | CQ238: =getNumKeta0($DP238,5) ->  | CR238: =getNumKeta0($DP238,4) ->  | CS238: =getNumKeta0($DP238,3) ->  | CT238: =getNumKeta0($DP238,2) ->  | CU238: =getNumKeta0($DP238,1) ->  | CV238: D | CW238: A + D | DP238: =IF($DK233/14=ROUNDUP(MAX($DJ:$DJ)/14,0),VLOOKUP($E$14,基本情報_工事名称マスタ,7,FALSE),0) -> 0 | DQ238: =DQ234+DQ237 -> 0
W239: 貴社→請求書(添付)→経理(控) | CA239: 貴社→請求書(添付)→経理→作業所長(控)
AS241: ="P " & B281/14 & "/" & ROUNDUP(COUNTIF(請求明細_工事場所, E254)/14,0) -> P 6/1 | CW241: ="P " & BF281/14 & "/" & ROUNDUP(COUNTIF(請求明細_工事場所, BI254)/14,0) -> P 6/1
D242: 請求書（一般用） | Z242: 取引先コード | AC242: =基本情報_取引先コード -> 999999 | AM242: 締日 | AP242: =基本情報_請求締日 -> 2023-01-31 | BH242: 請求書（一般用） | CD242: 取引先コード | CG242: =基本情報_取引先コード -> 999999 | CQ242: 締日 | CT242: =基本情報_請求締日 -> 2023-01-31
J243: 提出用 | BO243: 提出用
Z245: 適格請求書発行事業者登録 | AM245: =基本情報_事業者登録 -> 有 | AP245: 登録番号 | AS245: =IF(基本情報_登録番号="","",基本情報_登録番号) -> T1-2345-6789-0123 | CD245: 適格請求書発行事業者登録 | CQ245: =基本情報_事業者登録 -> 有 | CT245: 登録番号 | CW245: =IF(基本情報_登録番号="","",基本情報_登録番号) -> T1-2345-6789-0123
B248: 株式会社 丸 高 御中 | Z248: （住所・社名・電話） | BF248: 株式会社 丸 高 御中 | CD248: （住所・社名・電話）
AC252: =基本情報_住所 -> 酒田市○○○○１－１ | CG252: =基本情報_住所 -> 酒田市○○○○１－１
B254: 工 事 名 | E254: =$E$14 -> ×××××工事 | P254: 承 認 | V254: 検 印 | BF254: 工 事 名 | BI254: =$E$14 -> ×××××工事 | BT254: 承 認 | BZ254: 検 印
AC257: =基本情報_社名 -> (株）○○建設 | AY257: 印 | CG257: =基本情報_社名 -> (株）○○建設 | DC257: 印
B260: 作業所長名 | E260: =VLOOKUP(E254,基本情報_工事名称マスタ,3,FALSE) -> ×次郎 | BF260: 作業所長名 | BI260: =VLOOKUP(BI254,基本情報_工事名称マスタ,3,FALSE) -> ×次郎
AC262: =基本情報_電話番号 -> 0234 - 00 - 0000 | CG262: =基本情報_電話番号 -> 0234 - 00 - 0000
B267: 通番 | C267: 納入年月日 | F267: 品 名 ・ 規 格 | J267: 数 量 | V267: 単 位 | W267: 単 価 | AI267: 金 額 | AR267: 備 考 | BF267: 通番 | BG267: 納入年月日 | BJ267: 品 名 ・ 規 格 | BN267: 数 量 | BZ267: 単 位 | CA267: 単 価 | CM267: 金 額 | CV267: 備 考 | DI267: ヒット | DJ267: ランク | DK267: - | DL267: 通番 | DM267: 数量 | DN267: 単価 | DO267: 金額
B268: =B233+1 -> 71 | C268: =IF(ISNA($DL268),"",VLOOKUP($DL268,請求明細,3,FALSE)) ->  | F268: =IF(ISNA($DL268),"",VLOOKUP($DL268,請求明細,4,FALSE)) ->  | J268: =IF(ISNA($DL268),"",getNumKeta0($DM268,9)) ->  | K268: =IF(ISNA($DL268),"",getNumKeta0($DM268,8)) ->  | L268: =IF(ISNA($DL268),"",getNumKeta0($DM268,7)) ->  | M268: =IF(ISNA($DL268),"",getNumKeta0($DM268,6)) ->  | N268: =IF(ISNA($DL268),"",getNumKeta0($DM268,5)) ->  | O268: =IF(ISNA($DL268),"",getNumKeta0($DM268,4)) ->  | P268: =IF(ISNA($DL268),"",getNumKeta0($DM268,3)) ->  | Q268: =IF(ISNA($DL268),"",getNumKeta0($DM268,2)) ->  | R268: =IF(ISNA($DL268),"",getNumKeta0($DM268,1)) ->  | S268: =IF(ISNA($DL268),"",getNumKeta0($DM268,-1)) ->  | T268: =IF(ISNA($DL268),"",getNumKeta0($DM268,-2)) ->  | U268: =IF(ISNA($DL268),"",getNumKeta0($DM268,-3)) ->  | V268: =IF(ISNA($DL268),"",VLOOKUP($DL268,請求明細,6,FALSE)) ->  | W268: =IF(ISNA($DL268),"",getNumKeta0($DN268,9)) ->  | X268: =IF(ISNA($DL268),"",getNumKeta0($DN268,8)) ->  | Y268: =IF(ISNA($DL268),"",getNumKeta0($DN268,7)) ->  | Z268: =IF(ISNA($DL268),"",getNumKeta0($DN268,6)) ->  | AA268: =IF(ISNA($DL268),"",getNumKeta0($DN268,5)) ->  | AB268: =IF(ISNA($DL268),"",getNumKeta0($DN268,4)) ->  | AC268: =IF(ISNA($DL268),"",getNumKeta0($DN268,3)) ->  | AD268: =IF(ISNA($DL268),"",getNumKeta0($DN268,2)) ->  | AE268: =IF(ISNA($DL268),"",getNumKeta0($DN268,1)) ->  | AF268: =IF(ISNA($DL268),"",getNumKeta0($DN268,-1)) ->  | AG268: =IF(ISNA($DL268),"",getNumKeta0($DN268,-2)) ->  | AH268: =IF(ISNA($DL268),"",getNumKeta0($DN268,-3)) ->  | AI268: =IF(ISNA($DL268),"",getNumKeta0($DO268,9)) ->  | AJ268: =IF(ISNA($DL268),"",getNumKeta0($DO268,8)) ->  | AK268: =IF(ISNA($DL268),"",getNumKeta0($DO268,7)) ->  | AL268: =IF(ISNA($DL268),"",getNumKeta0($DO268,6)) ->  | AM268: =IF(ISNA($DL268),"",getNumKeta0($DO268,5)) ->  | AN268: =IF(ISNA($DL268),"",getNumKeta0($DO268,4)) ->  | AO268: =IF(ISNA($DL268),"",getNumKeta0($DO268,3)) ->  | AP268: =IF(ISNA($DL268),"",getNumKeta0($DO268,2)) ->  | AQ268: =IF(ISNA($DL268),"",getNumKeta0($DO268,1)) ->  | AR268: =IF(ISNA($DL268),"",LEFT(VLOOKUP($DL268,請求明細,10,FALSE),16)) ->  | BF268: =BF233+1 -> 71 | BG268: =IF(ISNA($DL268),"",VLOOKUP($DL268,請求明細,3,FALSE)) ->  | BJ268: =IF(ISNA($DL268),"",VLOOKUP($DL268,請求明細,4,FALSE)) ->  | BN268: =IF(ISNA($DL268),"",getNumKeta0($DM268,9)) ->  | BO268: =IF(ISNA($DL268),"",getNumKeta0($DM268,8)) ->  | BP268: =IF(ISNA($DL268),"",getNumKeta0($DM268,7)) ->  | BQ268: =IF(ISNA($DL268),"",getNumKeta0($DM268,6)) ->  | BR268: =IF(ISNA($DL268),"",getNumKeta0($DM268,5)) ->  | BS268: =IF(ISNA($DL268),"",getNumKeta0($DM268,4)) ->  | BT268: =IF(ISNA($DL268),"",getNumKeta0($DM268,3)) ->  | BU268: =IF(ISNA($DL268),"",getNumKeta0($DM268,2)) ->  | BV268: =IF(ISNA($DL268),"",getNumKeta0($DM268,1)) ->  | BW268: =IF(ISNA($DL268),"",getNumKeta0($DM268,-1)) ->  | BX268: =IF(ISNA($DL268),"",getNumKeta0($DM268,-2)) ->  | BY268: =IF(ISNA($DL268),"",getNumKeta0($DM268,-3)) ->  | BZ268: =IF(ISNA($DL268),"",VLOOKUP($DL268,請求明細,6,FALSE)) ->  | CA268: =IF(ISNA($DL268),"",getNumKeta0($DN268,9)) ->  | CB268: =IF(ISNA($DL268),"",getNumKeta0($DN268,8)) ->  | CC268: =IF(ISNA($DL268),"",getNumKeta0($DN268,7)) ->  | CD268: =IF(ISNA($DL268),"",getNumKeta0($DN268,6)) ->  | CE268: =IF(ISNA($DL268),"",getNumKeta0($DN268,5)) ->  | CF268: =IF(ISNA($DL268),"",getNumKeta0($DN268,4)) ->  | CG268: =IF(ISNA($DL268),"",getNumKeta0($DN268,3)) ->  | CH268: =IF(ISNA($DL268),"",getNumKeta0($DN268,2)) ->  | CI268: =IF(ISNA($DL268),"",getNumKeta0($DN268,1)) ->  | CJ268: =IF(ISNA($DL268),"",getNumKeta0($DN268,-1)) ->  | CK268: =IF(ISNA($DL268),"",getNumKeta0($DN268,-2)) ->  | CL268: =IF(ISNA($DL268),"",getNumKeta0($DN268,-3)) ->  | CM268: =IF(ISNA($DL268),"",getNumKeta0($DO268,9)) ->  | CN268: =IF(ISNA($DL268),"",getNumKeta0($DO268,8)) ->  | CO268: =IF(ISNA($DL268),"",getNumKeta0($DO268,7)) ->  | CP268: =IF(ISNA($DL268),"",getNumKeta0($DO268,6)) ->  | CQ268: =IF(ISNA($DL268),"",getNumKeta0($DO268,5)) ->  | CR268: =IF(ISNA($DL268),"",getNumKeta0($DO268,4)) ->  | CS268: =IF(ISNA($DL268),"",getNumKeta0($DO268,3)) ->  | CT268: =IF(ISNA($DL268),"",getNumKeta0($DO268,2)) ->  | CU268: =IF(ISNA($DL268),"",getNumKeta0($DO268,1)) ->  | CV268: =IF(ISNA($DL268),"",LEFT(VLOOKUP($DL268,請求明細,10,FALSE),16)) ->  | DI268: =IF($E$14=OFFSET(明細情報!$B$5, $DK268-1,0),1,0) -> 0 | DJ268: =IF($DI268=0, 0, SUM($DI$28:$DI268)) -> 0 | DK268: =DK233+1 -> 71 | DL268: =VLOOKUP(B268,$DJ$28:$DK$65556,2,FALSE) ->  | DM268: =IF(ISNA($DL268),0,VLOOKUP($DL268,請求明細,5,FALSE)) -> 0 | DN268: =IF(ISNA($DL268),0,VLOOKUP($DL268,請求明細,7,FALSE)) -> 0 | DO268: =IF(ISNA($DL268),0,VLOOKUP($DL268,請求明細,9,FALSE)) -> 0
B269: =B268+1 -> 72 | BF269: =BF268+1 -> 72 | DI269: =IF($E$14=OFFSET(明細情報!$B$5, $DK269-1,0),1,0) -> 0 | DJ269: =IF($DI269=0, 0, SUM($DI$28:$DI269)) -> 0 | DK269: =DK268+1 -> 72 | DM269: 0 | DN269: 0 | DO269: 0
B270: 73 | BF270: 73 | DI270: =IF($E$14=OFFSET(明細情報!$B$5, $DK270-1,0),1,0) -> 0 | DJ270: =IF($DI270=0, 0, SUM($DI$28:$DI270)) -> 0 | DK270: 73 | DM270: 0 | DN270: 0 | DO270: 0
B271: 74 | BF271: 74 | DI271: =IF($E$14=OFFSET(明細情報!$B$5, $DK271-1,0),1,0) -> 0 | DJ271: =IF($DI271=0, 0, SUM($DI$28:$DI271)) -> 0 | DK271: 74 | DM271: 0 | DN271: 0 | DO271: 0
B272: 75 | BF272: 75 | DI272: =IF($E$14=OFFSET(明細情報!$B$5, $DK272-1,0),1,0) -> 0 | DJ272: =IF($DI272=0, 0, SUM($DI$28:$DI272)) -> 0 | DK272: 75 | DM272: 0 | DN272: 0 | DO272: 0
B273: 76 | BF273: 76 | DI273: =IF($E$14=OFFSET(明細情報!$B$5, $DK273-1,0),1,0) -> 0 | DJ273: =IF($DI273=0, 0, SUM($DI$28:$DI273)) -> 0 | DK273: 76 | DM273: 0 | DN273: 0 | DO273: 0
B274: 77 | BF274: 77 | DI274: =IF($E$14=OFFSET(明細情報!$B$5, $DK274-1,0),1,0) -> 0 | DJ274: =IF($DI274=0, 0, SUM($DI$28:$DI274)) -> 0 | DK274: 77 | DM274: 0 | DN274: 0 | DO274: 0
B275: 78 | BF275: 78 | DI275: =IF($E$14=OFFSET(明細情報!$B$5, $DK275-1,0),1,0) -> 0 | DJ275: =IF($DI275=0, 0, SUM($DI$28:$DI275)) -> 0 | DK275: 78 | DM275: 0 | DN275: 0 | DO275: 0
B276: 79 | BF276: 79 | DI276: =IF($E$14=OFFSET(明細情報!$B$5, $DK276-1,0),1,0) -> 0 | DJ276: =IF($DI276=0, 0, SUM($DI$28:$DI276)) -> 0 | DK276: 79 | DM276: 0 | DN276: 0 | DO276: 0
B277: 80 | BF277: 80 | DI277: =IF($E$14=OFFSET(明細情報!$B$5, $DK277-1,0),1,0) -> 0 | DJ277: =IF($DI277=0, 0, SUM($DI$28:$DI277)) -> 0 | DK277: 80 | DM277: 0 | DN277: 0 | DO277: 0
B278: 81 | BF278: 81 | DI278: =IF($E$14=OFFSET(明細情報!$B$5, $DK278-1,0),1,0) -> 0 | DJ278: =IF($DI278=0, 0, SUM($DI$28:$DI278)) -> 0 | DK278: 81 | DM278: 0 | DN278: 0 | DO278: 0
B279: 82 | BF279: 82 | DI279: =IF($E$14=OFFSET(明細情報!$B$5, $DK279-1,0),1,0) -> 0 | DJ279: =IF($DI279=0, 0, SUM($DI$28:$DI279)) -> 0 | DK279: 82 | DM279: 0 | DN279: 0 | DO279: 0
B280: 83 | BF280: 83 | DI280: =IF($E$14=OFFSET(明細情報!$B$5, $DK280-1,0),1,0) -> 0 | DJ280: =IF($DI280=0, 0, SUM($DI$28:$DI280)) -> 0 | DK280: 83 | DM280: 0 | DN280: 0 | DO280: 0
B281: 84 | BF281: 84 | DI281: =IF($E$14=OFFSET(明細情報!$B$5, $DK281-1,0),1,0) -> 0 | DJ281: =IF($DI281=0, 0, SUM($DI$28:$DI281)) -> 0 | DK281: 84 | DM281: 0 | DN281: 0 | DO281: 0
W282: 非 課 税 小 計 | AI282: =getNumKeta0($DP283,9) ->  | AJ282: =getNumKeta0($DP282,8) ->  | AK282: =getNumKeta0($DP282,7) ->  | AL282: =getNumKeta0($DP282,6) ->  | AM282: =getNumKeta0($DP282,5) ->  | AN282: =getNumKeta0($DP282,4) ->  | AO282: =getNumKeta0($DP282,3) ->  | AP282: =getNumKeta0($DP282,2) ->  | AQ282: =IF(F281="",IF($DP282=0,"0",getNumKeta0($DP282,1)),"") -> 0 | AR282: A | AS282: 非課税・不課税 | CA282: 非 課 税 小 計 | CM282: =getNumKeta0($DP283,9) ->  | CN282: =getNumKeta0($DP282,8) ->  | CO282: =getNumKeta0($DP282,7) ->  | CP282: =getNumKeta0($DP282,6) ->  | CQ282: =getNumKeta0($DP282,5) ->  | CR282: =getNumKeta0($DP282,4) ->  | CS282: =getNumKeta0($DP282,3) ->  | CT282: =getNumKeta0($DP282,2) ->  | CU282: =IF(BJ281="",IF($DP282=0,"0",getNumKeta0($DP282,1)),"") -> 0 | CV282: A | CW282: 非課税・不課税 | DP282: =IF($DK281/14=ROUNDUP(MAX($DJ:$DJ)/14,0),VLOOKUP($E$14,基本情報_工事名称マスタ,5,FALSE),0) -> 0 | DQ282: =DP282 -> 0
W283: 課 税 小 計 | AI283: =getNumKeta0($DP283,9) ->  | AJ283: =getNumKeta0($DP283,8) ->  | AK283: =getNumKeta0($DP283,7) ->  | AL283: =getNumKeta0($DP283,6) ->  | AM283: =getNumKeta0($DP283,5) ->  | AN283: =getNumKeta0($DP283,4) ->  | AO283: =getNumKeta0($DP283,3) ->  | AP283: =getNumKeta0($DP283,2) ->  | AQ283: =getNumKeta0($DP283,1) ->  | AR283: B | BB283: =IF($DP283<>$DQ283,"*","") ->  | CA283: 課 税 小 計 | CM283: =getNumKeta0($DP283,9) ->  | CN283: =getNumKeta0($DP283,8) ->  | CO283: =getNumKeta0($DP283,7) ->  | CP283: =getNumKeta0($DP283,6) ->  | CQ283: =getNumKeta0($DP283,5) ->  | CR283: =getNumKeta0($DP283,4) ->  | CS283: =getNumKeta0($DP283,3) ->  | CT283: =getNumKeta0($DP283,2) ->  | CU283: =getNumKeta0($DP283,1) ->  | CV283: B | DF283: =IF($DP283<>$DQ283,"*","") ->  | DP283: =IF($DK281/14=ROUNDUP(MAX($DJ:$DJ)/14,0),VLOOKUP($E$14,基本情報_工事名称マスタ,4,FALSE),0) -> 0 | DQ283: =DP283 -> 0
W284: 消 費 税 | AE284: =基本情報_消費税率 -> 0.1 | AI284: =getNumKeta0($DP284,9) ->  | AJ284: =getNumKeta0($DP284,8) ->  | AK284: =getNumKeta0($DP284,7) ->  | AL284: =getNumKeta0($DP284,6) ->  | AM284: =getNumKeta0($DP284,5) ->  | AN284: =getNumKeta0($DP284,4) ->  | AO284: =getNumKeta0($DP284,3) ->  | AP284: =getNumKeta0($DP284,2) ->  | AQ284: =getNumKeta0($DP284,1) ->  | AR284: C | AS284: B × 税率 | CA284: 消 費 税 | CI284: =基本情報_消費税率 -> 0.1 | CM284: =getNumKeta0($DP284,9) ->  | CN284: =getNumKeta0($DP284,8) ->  | CO284: =getNumKeta0($DP284,7) ->  | CP284: =getNumKeta0($DP284,6) ->  | CQ284: =getNumKeta0($DP284,5) ->  | CR284: =getNumKeta0($DP284,4) ->  | CS284: =getNumKeta0($DP284,3) ->  | CT284: =getNumKeta0($DP284,2) ->  | CU284: =getNumKeta0($DP284,1) ->  | CV284: C | CW284: B × 税率 | DP284: =IF($DK281/14=ROUNDUP(MAX($DJ:$DJ)/14,0),VLOOKUP($E$14,基本情報_工事名称マスタ,6,FALSE),0) -> 0 | DQ284: =DP284 -> 0
W285: 課 税 合 計 | AI285: =getNumKeta0($DP285,9) ->  | AJ285: =getNumKeta0($DP285,8) ->  | AK285: =getNumKeta0($DP285,7) ->  | AL285: =getNumKeta0($DP285,6) ->  | AM285: =getNumKeta0($DP285,5) ->  | AN285: =getNumKeta0($DP285,4) ->  | AO285: =getNumKeta0($DP285,3) ->  | AP285: =getNumKeta0($DP285,2) ->  | AQ285: =getNumKeta0($DP285,1) ->  | AR285: D | AS285: B + C | CA285: 課 税 合 計 | CM285: =getNumKeta0($DP285,9) ->  | CN285: =getNumKeta0($DP285,8) ->  | CO285: =getNumKeta0($DP285,7) ->  | CP285: =getNumKeta0($DP285,6) ->  | CQ285: =getNumKeta0($DP285,5) ->  | CR285: =getNumKeta0($DP285,4) ->  | CS285: =getNumKeta0($DP285,3) ->  | CT285: =getNumKeta0($DP285,2) ->  | CU285: =getNumKeta0($DP285,1) ->  | CV285: D | CW285: B + C | DP285: =DP283+DP284 -> 0 | DQ285: =DQ283+DQ284 -> 0
W286: 合 計 | AI286: =getNumKeta0($DP286,9) ->  | AJ286: =getNumKeta0($DP286,8) ->  | AK286: =getNumKeta0($DP286,7) ->  | AL286: =getNumKeta0($DP286,6) ->  | AM286: =getNumKeta0($DP286,5) ->  | AN286: =getNumKeta0($DP286,4) ->  | AO286: =getNumKeta0($DP286,3) ->  | AP286: =getNumKeta0($DP286,2) ->  | AQ286: =getNumKeta0($DP286,1) ->  | AR286: D | AS286: A + D | CA286: 合 計 | CM286: =getNumKeta0($DP286,9) ->  | CN286: =getNumKeta0($DP286,8) ->  | CO286: =getNumKeta0($DP286,7) ->  | CP286: =getNumKeta0($DP286,6) ->  | CQ286: =getNumKeta0($DP286,5) ->  | CR286: =getNumKeta0($DP286,4) ->  | CS286: =getNumKeta0($DP286,3) ->  | CT286: =getNumKeta0($DP286,2) ->  | CU286: =getNumKeta0($DP286,1) ->  | CV286: D | CW286: A + D | DP286: =IF($DK281/14=ROUNDUP(MAX($DJ:$DJ)/14,0),VLOOKUP($E$14,基本情報_工事名称マスタ,7,FALSE),0) -> 0 | DQ286: =DQ282+DQ285 -> 0
W287: 貴社→請求書(添付)→経理(控) | CA287: 貴社→請求書(添付)→経理→作業所長(控)
AS289: ="P " & B329/14 & "/" & ROUNDUP(COUNTIF(請求明細_工事場所, E302)/14,0) -> P 7/1 | CW289: ="P " & BF329/14 & "/" & ROUNDUP(COUNTIF(請求明細_工事場所, BI302)/14,0) -> P 7/1
D290: 請求書（一般用） | Z290: 取引先コード | AC290: =基本情報_取引先コード -> 999999 | AM290: 締日 | AP290: =基本情報_請求締日 -> 2023-01-31 | BH290: 請求書（一般用） | CD290: 取引先コード | CG290: =基本情報_取引先コード -> 999999 | CQ290: 締日 | CT290: =基本情報_請求締日 -> 2023-01-31
J291: 提出用 | BN291: 提出用
Z293: 適格請求書発行事業者登録 | AM293: =基本情報_事業者登録 -> 有 | AP293: 登録番号 | AS293: =IF(基本情報_登録番号="","",基本情報_登録番号) -> T1-2345-6789-0123 | CD293: 適格請求書発行事業者登録 | CQ293: =基本情報_事業者登録 -> 有 | CT293: 登録番号 | CW293: =IF(基本情報_登録番号="","",基本情報_登録番号) -> T1-2345-6789-0123
B296: 株式会社 丸 高 御中 | Z296: （住所・社名・電話） | BF296: 株式会社 丸 高 御中 | CD296: （住所・社名・電話）
AC300: =基本情報_住所 -> 酒田市○○○○１－１ | CG300: =基本情報_住所 -> 酒田市○○○○１－１
B302: 工 事 名 | E302: =$E$14 -> ×××××工事 | P302: 承 認 | V302: 検 印 | BF302: 工 事 名 | BI302: =$E$14 -> ×××××工事 | BT302: 承 認 | BZ302: 検 印
AC305: =基本情報_社名 -> (株）○○建設 | AY305: 印 | CG305: =基本情報_社名 -> (株）○○建設 | DC305: 印
B308: 作業所長名 | E308: =VLOOKUP(E302,基本情報_工事名称マスタ,3,FALSE) -> ×次郎 | BF308: 作業所長名 | BI308: =VLOOKUP(BI302,基本情報_工事名称マスタ,3,FALSE) -> ×次郎
AC310: =基本情報_電話番号 -> 0234 - 00 - 0000 | CG310: =基本情報_電話番号 -> 0234 - 00 - 0000
B315: 通番 | C315: 納入年月日 | F315: 品 名 ・ 規 格 | J315: 数 量 | V315: 単 位 | W315: 単 価 | AI315: 金 額 | AR315: 備 考 | BF315: 通番 | BG315: 納入年月日 | BJ315: 品 名 ・ 規 格 | BN315: 数 量 | BZ315: 単 位 | CA315: 単 価 | CM315: 金 額 | CV315: 備 考 | DI315: ヒット | DJ315: ランク | DK315: - | DL315: 通番 | DM315: 数量 | DN315: 単価 | DO315: 金額
B316: =B281+1 -> 85 | C316: =IF(ISNA($DL316),"",VLOOKUP($DL316,請求明細,3,FALSE)) ->  | F316: =IF(ISNA($DL316),"",VLOOKUP($DL316,請求明細,4,FALSE)) ->  | J316: =IF(ISNA($DL316),"",getNumKeta0($DM316,9)) ->  | K316: =IF(ISNA($DL316),"",getNumKeta0($DM316,8)) ->  | L316: =IF(ISNA($DL316),"",getNumKeta0($DM316,7)) ->  | M316: =IF(ISNA($DL316),"",getNumKeta0($DM316,6)) ->  | N316: =IF(ISNA($DL316),"",getNumKeta0($DM316,5)) ->  | O316: =IF(ISNA($DL316),"",getNumKeta0($DM316,4)) ->  | P316: =IF(ISNA($DL316),"",getNumKeta0($DM316,3)) ->  | Q316: =IF(ISNA($DL316),"",getNumKeta0($DM316,2)) ->  | R316: =IF(ISNA($DL316),"",getNumKeta0($DM316,1)) ->  | S316: =IF(ISNA($DL316),"",getNumKeta0($DM316,-1)) ->  | T316: =IF(ISNA($DL316),"",getNumKeta0($DM316,-2)) ->  | U316: =IF(ISNA($DL316),"",getNumKeta0($DM316,-3)) ->  | V316: =IF(ISNA($DL316),"",VLOOKUP($DL316,請求明細,6,FALSE)) ->  | W316: =IF(ISNA($DL316),"",getNumKeta0($DN316,9)) ->  | X316: =IF(ISNA($DL316),"",getNumKeta0($DN316,8)) ->  | Y316: =IF(ISNA($DL316),"",getNumKeta0($DN316,7)) ->  | Z316: =IF(ISNA($DL316),"",getNumKeta0($DN316,6)) ->  | AA316: =IF(ISNA($DL316),"",getNumKeta0($DN316,5)) ->  | AB316: =IF(ISNA($DL316),"",getNumKeta0($DN316,4)) ->  | AC316: =IF(ISNA($DL316),"",getNumKeta0($DN316,3)) ->  | AD316: =IF(ISNA($DL316),"",getNumKeta0($DN316,2)) ->  | AE316: =IF(ISNA($DL316),"",getNumKeta0($DN316,1)) ->  | AF316: =IF(ISNA($DL316),"",getNumKeta0($DN316,-1)) ->  | AG316: =IF(ISNA($DL316),"",getNumKeta0($DN316,-2)) ->  | AH316: =IF(ISNA($DL316),"",getNumKeta0($DN316,-3)) ->  | AI316: =IF(ISNA($DL316),"",getNumKeta0($DO316,9)) ->  | AJ316: =IF(ISNA($DL316),"",getNumKeta0($DO316,8)) ->  | AK316: =IF(ISNA($DL316),"",getNumKeta0($DO316,7)) ->  | AL316: =IF(ISNA($DL316),"",getNumKeta0($DO316,6)) ->  | AM316: =IF(ISNA($DL316),"",getNumKeta0($DO316,5)) ->  | AN316: =IF(ISNA($DL316),"",getNumKeta0($DO316,4)) ->  | AO316: =IF(ISNA($DL316),"",getNumKeta0($DO316,3)) ->  | AP316: =IF(ISNA($DL316),"",getNumKeta0($DO316,2)) ->  | AQ316: =IF(ISNA($DL316),"",getNumKeta0($DO316,1)) ->  | AR316: =IF(ISNA($DL316),"",LEFT(VLOOKUP($DL316,請求明細,10,FALSE),16)) ->  | BF316: =BF281+1 -> 85 | BG316: =IF(ISNA($DL316),"",VLOOKUP($DL316,請求明細,3,FALSE)) ->  | BJ316: =IF(ISNA($DL316),"",VLOOKUP($DL316,請求明細,4,FALSE)) ->  | BN316: =IF(ISNA($DL316),"",getNumKeta0($DM316,9)) ->  | BO316: =IF(ISNA($DL316),"",getNumKeta0($DM316,8)) ->  | BP316: =IF(ISNA($DL316),"",getNumKeta0($DM316,7)) ->  | BQ316: =IF(ISNA($DL316),"",getNumKeta0($DM316,6)) ->  | BR316: =IF(ISNA($DL316),"",getNumKeta0($DM316,5)) ->  | BS316: =IF(ISNA($DL316),"",getNumKeta0($DM316,4)) ->  | BT316: =IF(ISNA($DL316),"",getNumKeta0($DM316,3)) ->  | BU316: =IF(ISNA($DL316),"",getNumKeta0($DM316,2)) ->  | BV316: =IF(ISNA($DL316),"",getNumKeta0($DM316,1)) ->  | BW316: =IF(ISNA($DL316),"",getNumKeta0($DM316,-1)) ->  | BX316: =IF(ISNA($DL316),"",getNumKeta0($DM316,-2)) ->  | BY316: =IF(ISNA($DL316),"",getNumKeta0($DM316,-3)) ->  | BZ316: =IF(ISNA($DL316),"",VLOOKUP($DL316,請求明細,6,FALSE)) ->  | CA316: =IF(ISNA($DL316),"",getNumKeta0($DN316,9)) ->  | CB316: =IF(ISNA($DL316),"",getNumKeta0($DN316,8)) ->  | CC316: =IF(ISNA($DL316),"",getNumKeta0($DN316,7)) ->  | CD316: =IF(ISNA($DL316),"",getNumKeta0($DN316,6)) ->  | CE316: =IF(ISNA($DL316),"",getNumKeta0($DN316,5)) ->  | CF316: =IF(ISNA($DL316),"",getNumKeta0($DN316,4)) ->  | CG316: =IF(ISNA($DL316),"",getNumKeta0($DN316,3)) ->  | CH316: =IF(ISNA($DL316),"",getNumKeta0($DN316,2)) ->  | CI316: =IF(ISNA($DL316),"",getNumKeta0($DN316,1)) ->  | CJ316: =IF(ISNA($DL316),"",getNumKeta0($DN316,-1)) ->  | CK316: =IF(ISNA($DL316),"",getNumKeta0($DN316,-2)) ->  | CL316: =IF(ISNA($DL316),"",getNumKeta0($DN316,-3)) ->  | CM316: =IF(ISNA($DL316),"",getNumKeta0($DO316,9)) ->  | CN316: =IF(ISNA($DL316),"",getNumKeta0($DO316,8)) ->  | CO316: =IF(ISNA($DL316),"",getNumKeta0($DO316,7)) ->  | CP316: =IF(ISNA($DL316),"",getNumKeta0($DO316,6)) ->  | CQ316: =IF(ISNA($DL316),"",getNumKeta0($DO316,5)) ->  | CR316: =IF(ISNA($DL316),"",getNumKeta0($DO316,4)) ->  | CS316: =IF(ISNA($DL316),"",getNumKeta0($DO316,3)) ->  | CT316: =IF(ISNA($DL316),"",getNumKeta0($DO316,2)) ->  | CU316: =IF(ISNA($DL316),"",getNumKeta0($DO316,1)) ->  | CV316: =IF(ISNA($DL316),"",LEFT(VLOOKUP($DL316,請求明細,10,FALSE),16)) ->  | DI316: =IF($E$14=OFFSET(明細情報!$B$5, $DK316-1,0),1,0) -> 0 | DJ316: =IF($DI316=0, 0, SUM($DI$28:$DI316)) -> 0 | DK316: =DK281+1 -> 85 | DL316: =VLOOKUP(B316,$DJ$28:$DK$65556,2,FALSE) ->  | DM316: =IF(ISNA($DL316),0,VLOOKUP($DL316,請求明細,5,FALSE)) -> 0 | DN316: =IF(ISNA($DL316),0,VLOOKUP($DL316,請求明細,7,FALSE)) -> 0 | DO316: =IF(ISNA($DL316),0,VLOOKUP($DL316,請求明細,9,FALSE)) -> 0
B317: =B316+1 -> 86 | BF317: =BF316+1 -> 86 | DI317: =IF($E$14=OFFSET(明細情報!$B$5, $DK317-1,0),1,0) -> 0 | DJ317: =IF($DI317=0, 0, SUM($DI$28:$DI317)) -> 0 | DK317: =DK316+1 -> 86 | DM317: 0 | DN317: 0 | DO317: 0
B318: 87 | BF318: 87 | DI318: =IF($E$14=OFFSET(明細情報!$B$5, $DK318-1,0),1,0) -> 0 | DJ318: =IF($DI318=0, 0, SUM($DI$28:$DI318)) -> 0 | DK318: 87 | DM318: 0 | DN318: 0 | DO318: 0
... 420 more rows
